Organisation Name,Organisation Code,Date Paid,Transaction Number,Amount,Supplier Name,Supplier ID,Supplier post code (first 4 digits),Directorate,Service Area,General Ledger code Description,BVACOP class,Revenue/ Capital Spend
Wiltshire,http://opendatacommunities.org/id/unitary-authority/wiltshire,13/09/2017,1901997763,960.00,1st Choice Stairlifts ,113095,SN11,Wiltshire Council,Wiltshire Council,Payments to Contractors - Other,Third Party Payments,CAPITAL
Wiltshire,http://opendatacommunities.org/id/unitary-authority/wiltshire,28/09/2017,1902008946,1384.00,1st Choice Stairlifts ,113095,SN11,Wiltshire Council,Wiltshire Council,Payments to Contractors - Other,Third Party Payments,CAPITAL
Wiltshire,http://opendatacommunities.org/id/unitary-authority/wiltshire,28/09/2017,5107108335,328.29,24-7 Staffing ,140662,SN15,Community Services,Bradbury Hse Respite,Agency Staff,Employee Related,REVENUE
Wiltshire,http://opendatacommunities.org/id/unitary-authority/wiltshire,01/09/2017,1901994650,392.00,A & P Taxis ,143342,SN12,Neighbourhood & Planning,Mainstream Secondary,Transport Contracts,Third Party Payments,REVENUE
Wiltshire,http://opendatacommunities.org/id/unitary-authority/wiltshire,21/09/2017,1902000986,484.06,A C E Supplies ,126284,BA15,Resources,County Hall Complex,Preventative Property Maintenance,Premises Related,REVENUE
Wiltshire,http://opendatacommunities.org/id/unitary-authority/wiltshire,21/09/2017,1902000987,263.92,A C E Supplies ,126284,BA15,Resources,County Hall Complex,Preventative Property Maintenance,Premises Related,REVENUE
Wiltshire,http://opendatacommunities.org/id/unitary-authority/wiltshire,21/09/2017,1902000989,477.45,A C E Supplies ,126284,BA15,Resources,County Hall Complex,Preventative Property Maintenance,Premises Related,REVENUE
Wiltshire,http://opendatacommunities.org/id/unitary-authority/wiltshire,21/09/2017,1902000991,337.11,A C E Supplies ,126284,BA15,Resources,County Hall Complex,Preventative Property Maintenance,Premises Related,REVENUE
Wiltshire,http://opendatacommunities.org/id/unitary-authority/wiltshire,21/09/2017,1902000992,421.40,A C E Supplies ,126284,BA15,Resources,County Hall Complex,Preventative Property Maintenance,Premises Related,REVENUE
Wiltshire,http://opendatacommunities.org/id/unitary-authority/wiltshire,21/09/2017,1902000993,468.83,A C E Supplies ,126284,BA15,Resources,County Hall Complex,Preventative Property Maintenance,Premises Related,REVENUE
Wiltshire,http://opendatacommunities.org/id/unitary-authority/wiltshire,11/09/2017,1901996820,628.31,A G Minibuses Ltd ,100878,BA12,Community Services,Lansdown,Transport Contracts,Third Party Payments,REVENUE
Wiltshire,http://opendatacommunities.org/id/unitary-authority/wiltshire,11/09/2017,1901996821,326.07,A G Minibuses Ltd ,100878,BA12,Community Services,The Avenue,Transport Contracts,Third Party Payments,REVENUE
Wiltshire,http://opendatacommunities.org/id/unitary-authority/wiltshire,13/09/2017,1901997700,1890.89,A G Minibuses Ltd ,100878,BA12,Neighbourhood & Planning,Mainstream Primary,Transport Contracts,Third Party Payments,REVENUE
Wiltshire,http://opendatacommunities.org/id/unitary-authority/wiltshire,13/09/2017,1901997703,1988.79,A G Minibuses Ltd ,100878,BA12,Neighbourhood & Planning,Mainstream Primary,Transport Contracts,Third Party Payments,REVENUE
Wiltshire,http://opendatacommunities.org/id/unitary-authority/wiltshire,20/09/2017,1902000848,997.50,A G Minibuses Ltd ,100878,BA12,Neighbourhood & Planning,Mainstream Primary,Transport Contracts,Third Party Payments,REVENUE
Wiltshire,http://opendatacommunities.org/id/unitary-authority/wiltshire,20/09/2017,1902000848,1588.52,A G Minibuses Ltd ,100878,BA12,Neighbourhood & Planning,Public Transport,Transport Contracts,Third Party Payments,REVENUE
Wiltshire,http://opendatacommunities.org/id/unitary-authority/wiltshire,20/09/2017,1902000848,1758.83,A G Minibuses Ltd ,100878,BA12,Neighbourhood & Planning,Connect 2 Wiltshire,Transport Contracts,Third Party Payments,REVENUE
Wiltshire,http://opendatacommunities.org/id/unitary-authority/wiltshire,20/09/2017,1902000849,1583.33,A G Minibuses Ltd ,100878,BA12,Neighbourhood & Planning,Mainstream Secondary,Transport Contracts,Third Party Payments,REVENUE
Wiltshire,http://opendatacommunities.org/id/unitary-authority/wiltshire,20/09/2017,1902000849,4183.06,A G Minibuses Ltd ,100878,BA12,Neighbourhood & Planning,Connect 2 Wiltshire,Transport Contracts,Third Party Payments,REVENUE
Wiltshire,http://opendatacommunities.org/id/unitary-authority/wiltshire,28/09/2017,1901998210,2790.00,A Meredith Associates ,130972,WR14,Neighbourhood & Planning,LPS Development,Consultants Fees,Supplies and Services,REVENUE
Wiltshire,http://opendatacommunities.org/id/unitary-authority/wiltshire,26/09/2017,1901998213,1600.00,A Meredith Associates ,130972,WR14,Neighbourhood & Planning,Cranbourn Chase AONB,Consultants Fees,Supplies and Services,REVENUE
Wiltshire,http://opendatacommunities.org/id/unitary-authority/wiltshire,19/09/2017,5107106779,351.95,A S A Awards Scheme ,110020,LE11,Neighbourhood & Planning,Devizes,Traded Goods Expenses,Supplies and Services,REVENUE
Wiltshire,http://opendatacommunities.org/id/unitary-authority/wiltshire,08/09/2017,5107107654,939.75,A S A Awards Scheme ,110020,LE11,Neighbourhood & Planning,Five Rivers,Traded Goods Expenses,Supplies and Services,REVENUE
Wiltshire,http://opendatacommunities.org/id/unitary-authority/wiltshire,21/09/2017,1901995812,420.50,A Semeraro ,100112,BA14,Resources,County Hall Complex,Preventative Property Maintenance,Premises Related,REVENUE
Wiltshire,http://opendatacommunities.org/id/unitary-authority/wiltshire,19/09/2017,1901999645,9473.67,A2 Winchester Ltd ,101167,SO23,Neighbourhood & Planning,Hsg Strat & Enabling,Payments to Contractors - Other,Third Party Payments,REVENUE
Wiltshire,http://opendatacommunities.org/id/unitary-authority/wiltshire,21/09/2017,1902000981,9473.67,A2 Winchester Ltd ,101167,SO23,Neighbourhood & Planning,Hsg Strat & Enabling,Payments to Contractors - Other,Third Party Payments,REVENUE
Wiltshire,http://opendatacommunities.org/id/unitary-authority/wiltshire,12/09/2017,5107103329,66400.00,Abavus Ltd ,134621,E18 ,Resources,Microsoft Entpr&Slct,ICT - Support arrangements,Supplies and Services,REVENUE
Wiltshire,http://opendatacommunities.org/id/unitary-authority/wiltshire,12/09/2017,1901997109,254.88,Abbey Taxis (Swindon) Ltd ,100920,SN2 ,Neighbourhood & Planning,RES Secondary,Transport Contracts,Third Party Payments,REVENUE
Wiltshire,http://opendatacommunities.org/id/unitary-authority/wiltshire,20/09/2017,1902000455,346.07,Abicare Services Ltd Homecare ,110031,SP2 ,Community Services,HTLAH - Neighbourhoo,Interim Support Plan - HTLAH,Third Party Payments,REVENUE
Wiltshire,http://opendatacommunities.org/id/unitary-authority/wiltshire,15/09/2017,5107111930,1169.23,ABLE ,101029,BA14,Community Services,MH Commissioned Cont,Grants Paid to individuals for Tangible Benefits,Supplies and Services,REVENUE
Wiltshire,http://opendatacommunities.org/id/unitary-authority/wiltshire,15/09/2017,5107111931,1926.60,ABLE ,101029,BA14,Community Services,MH Commissioned Cont,Grants Paid to individuals for Tangible Benefits,Supplies and Services,REVENUE
Wiltshire,http://opendatacommunities.org/id/unitary-authority/wiltshire,05/09/2017,1901995505,280.00,Ace Taxis Warminster Ace Taxis,131208,BA12,Community Services,MH OP South Locality,Transport Contracts,Third Party Payments,REVENUE
Wiltshire,http://opendatacommunities.org/id/unitary-authority/wiltshire,19/09/2017,5107113960,945.00,Action on Hearing Loss ,112215,N1 1,Community Services,Disabilities Comm Ct,Grants Paid to individuals for Tangible Benefits,Supplies and Services,REVENUE
Wiltshire,http://opendatacommunities.org/id/unitary-authority/wiltshire,28/09/2017,5107118540,270.00,Action on Hearing Loss ,112215,N1 1,Community Services,Disabilities Comm Ct,Grants Paid to individuals for Tangible Benefits,Supplies and Services,REVENUE
Wiltshire,http://opendatacommunities.org/id/unitary-authority/wiltshire,08/09/2017,5107101927,282.55,Adams Morey Ltd ,110053,SP2 ,Neighbourhood & Planning,Fleet,Vehicle Repairs & Maintenance,Transport Related,REVENUE
Wiltshire,http://opendatacommunities.org/id/unitary-authority/wiltshire,08/09/2017,5107101964,279.50,Adams Morey Ltd ,110053,SP2 ,Neighbourhood & Planning,Fleet,Vehicle Repairs & Maintenance,Transport Related,REVENUE
Wiltshire,http://opendatacommunities.org/id/unitary-authority/wiltshire,08/09/2017,5107101965,1134.39,Adams Morey Ltd ,110053,SP2 ,Neighbourhood & Planning,Fleet,Vehicle Repairs & Maintenance,Transport Related,REVENUE
Wiltshire,http://opendatacommunities.org/id/unitary-authority/wiltshire,08/09/2017,5107101967,288.62,Adams Morey Ltd ,110053,SP2 ,Neighbourhood & Planning,Fleet,Vehicle Repairs & Maintenance,Transport Related,REVENUE
Wiltshire,http://opendatacommunities.org/id/unitary-authority/wiltshire,08/09/2017,5107101968,1531.19,Adams Morey Ltd ,110053,SP2 ,Neighbourhood & Planning,Fleet,Vehicle Parts,Transport Related,REVENUE
Wiltshire,http://opendatacommunities.org/id/unitary-authority/wiltshire,08/09/2017,5107102002,743.00,Adams Morey Ltd ,110053,SP2 ,Neighbourhood & Planning,Fleet,Vehicle Repairs & Maintenance,Transport Related,REVENUE
Wiltshire,http://opendatacommunities.org/id/unitary-authority/wiltshire,08/09/2017,5107102005,594.26,Adams Morey Ltd ,110053,SP2 ,Neighbourhood & Planning,Fleet,Vehicle Repairs & Maintenance,Transport Related,REVENUE
Wiltshire,http://opendatacommunities.org/id/unitary-authority/wiltshire,01/09/2017,5107103318,306.19,Adams Morey Ltd ,110053,SP2 ,Neighbourhood & Planning,Fleet,Vehicle Parts,Transport Related,REVENUE
Wiltshire,http://opendatacommunities.org/id/unitary-authority/wiltshire,19/09/2017,5107104251,265.00,Adams Morey Ltd ,110053,SP2 ,Neighbourhood & Planning,Fleet,Vehicle Parts,Transport Related,REVENUE
Wiltshire,http://opendatacommunities.org/id/unitary-authority/wiltshire,19/09/2017,5107113437,1203.05,Adams Morey Ltd ,110053,SP2 ,Neighbourhood & Planning,Fleet,Vehicle Parts,Transport Related,REVENUE
Wiltshire,http://opendatacommunities.org/id/unitary-authority/wiltshire,22/09/2017,5107115621,1560.96,Adams Morey Ltd ,110053,SP2 ,Neighbourhood & Planning,Fleet,Vehicle Repairs & Maintenance,Transport Related,REVENUE
Wiltshire,http://opendatacommunities.org/id/unitary-authority/wiltshire,22/09/2017,5107115622,1540.95,Adams Morey Ltd ,110053,SP2 ,Neighbourhood & Planning,Fleet,Vehicle Repairs & Maintenance,Transport Related,REVENUE
Wiltshire,http://opendatacommunities.org/id/unitary-authority/wiltshire,22/09/2017,5107115625,278.22,Adams Morey Ltd ,110053,SP2 ,Neighbourhood & Planning,Fleet,Vehicle Repairs & Maintenance,Transport Related,REVENUE
Wiltshire,http://opendatacommunities.org/id/unitary-authority/wiltshire,22/09/2017,5107115627,499.84,Adams Morey Ltd ,110053,SP2 ,Neighbourhood & Planning,Fleet,Vehicle Repairs & Maintenance,Transport Related,REVENUE
Wiltshire,http://opendatacommunities.org/id/unitary-authority/wiltshire,22/09/2017,5107115630,917.27,Adams Morey Ltd ,110053,SP2 ,Neighbourhood & Planning,Fleet,Vehicle Repairs & Maintenance,Transport Related,REVENUE
Wiltshire,http://opendatacommunities.org/id/unitary-authority/wiltshire,22/09/2017,5107115636,982.25,Adams Morey Ltd ,110053,SP2 ,Neighbourhood & Planning,Fleet,Vehicle Parts,Transport Related,REVENUE
Wiltshire,http://opendatacommunities.org/id/unitary-authority/wiltshire,22/09/2017,5107115639,434.00,Adams Morey Ltd ,110053,SP2 ,Neighbourhood & Planning,Fleet,Vehicle Repairs & Maintenance,Transport Related,REVENUE
Wiltshire,http://opendatacommunities.org/id/unitary-authority/wiltshire,22/09/2017,5107115653,310.50,Adams Morey Ltd ,110053,SP2 ,Neighbourhood & Planning,Fleet,Vehicle Parts,Transport Related,REVENUE
Wiltshire,http://opendatacommunities.org/id/unitary-authority/wiltshire,22/09/2017,5107115666,350.10,Adams Morey Ltd ,110053,SP2 ,Neighbourhood & Planning,Fleet,Vehicle Repairs & Maintenance,Transport Related,REVENUE
Wiltshire,http://opendatacommunities.org/id/unitary-authority/wiltshire,22/09/2017,5107115672,262.40,Adams Morey Ltd ,110053,SP2 ,Neighbourhood & Planning,Fleet,Vehicle Repairs & Maintenance,Transport Related,REVENUE
Wiltshire,http://opendatacommunities.org/id/unitary-authority/wiltshire,11/09/2017,1901996801,1406.79,Adrains Engineering Psv ,100848,SN15,Neighbourhood & Planning,Mainstream Secondary,Transport Contracts,Third Party Payments,REVENUE
Wiltshire,http://opendatacommunities.org/id/unitary-authority/wiltshire,11/09/2017,1901996802,3230.00,Adrains Engineering Psv ,100848,SN15,Neighbourhood & Planning,Mainstream Secondary,Transport Contracts,Third Party Payments,REVENUE
Wiltshire,http://opendatacommunities.org/id/unitary-authority/wiltshire,11/09/2017,1901996803,2873.59,Adrains Engineering Psv ,100848,SN15,Neighbourhood & Planning,Mainstream Secondary,Transport Contracts,Third Party Payments,REVENUE
Wiltshire,http://opendatacommunities.org/id/unitary-authority/wiltshire,11/09/2017,1901996804,3968.30,Adrains Engineering Psv ,100848,SN15,Neighbourhood & Planning,Mainstream Secondary,Transport Contracts,Third Party Payments,REVENUE
Wiltshire,http://opendatacommunities.org/id/unitary-authority/wiltshire,11/09/2017,1901996805,3035.09,Adrains Engineering Psv ,100848,SN15,Neighbourhood & Planning,Mainstream Primary,Transport Contracts,Third Party Payments,REVENUE
Wiltshire,http://opendatacommunities.org/id/unitary-authority/wiltshire,11/09/2017,1901996806,2919.35,Adrains Engineering Psv ,100848,SN15,Neighbourhood & Planning,Mainstream Secondary,Transport Contracts,Third Party Payments,REVENUE
Wiltshire,http://opendatacommunities.org/id/unitary-authority/wiltshire,11/09/2017,1901996807,3077.68,Adrains Engineering Psv ,100848,SN15,Neighbourhood & Planning,Mainstream Secondary,Transport Contracts,Third Party Payments,REVENUE
Wiltshire,http://opendatacommunities.org/id/unitary-authority/wiltshire,11/09/2017,1901996808,352.35,Adrains Engineering Psv ,100848,SN15,Neighbourhood & Planning,Public Transport,Transport Contracts,Third Party Payments,REVENUE
Wiltshire,http://opendatacommunities.org/id/unitary-authority/wiltshire,11/09/2017,1901996808,3333.33,Adrains Engineering Psv ,100848,SN15,Neighbourhood & Planning,Mainstream Primary,Transport Contracts,Third Party Payments,REVENUE
Wiltshire,http://opendatacommunities.org/id/unitary-authority/wiltshire,11/09/2017,1901996809,3333.33,Adrains Engineering Psv ,100848,SN15,Neighbourhood & Planning,Mainstream Secondary,Transport Contracts,Third Party Payments,REVENUE
Wiltshire,http://opendatacommunities.org/id/unitary-authority/wiltshire,11/09/2017,1901996809,3427.82,Adrains Engineering Psv ,100848,SN15,Neighbourhood & Planning,Public Transport,Transport Contracts,Third Party Payments,REVENUE
Wiltshire,http://opendatacommunities.org/id/unitary-authority/wiltshire,19/09/2017,1901999640,5326.03,Advance Housing  and  Support Ltd ,110060,OX28,Neighbourhood & Planning,Hsg Strat & Enabling,Payments to Contractors - Other,Third Party Payments,REVENUE
Wiltshire,http://opendatacommunities.org/id/unitary-authority/wiltshire,21/09/2017,1902000976,5326.03,Advance Housing  and  Support Ltd ,110060,OX28,Neighbourhood & Planning,Hsg Strat & Enabling,Payments to Contractors - Other,Third Party Payments,REVENUE
Wiltshire,http://opendatacommunities.org/id/unitary-authority/wiltshire,20/09/2017,5107109216,2431.00,AECOM Ltd ,127871,SW19,Wiltshire Council,Wiltshire Council,Consultants Fees,Supplies and Services,CAPITAL
Wiltshire,http://opendatacommunities.org/id/unitary-authority/wiltshire,14/09/2017,5107110860,2850.00,AECOM Ltd ,127871,SW19,Wiltshire Council,Wiltshire Council,Consultants Fees,Supplies and Services,CAPITAL
Wiltshire,http://opendatacommunities.org/id/unitary-authority/wiltshire,14/09/2017,5107110861,3000.00,AECOM Ltd ,127871,SW19,Wiltshire Council,Wiltshire Council,Consultants Fees,Supplies and Services,CAPITAL
Wiltshire,http://opendatacommunities.org/id/unitary-authority/wiltshire,14/09/2017,5107110862,2500.00,AECOM Ltd ,127871,SW19,Wiltshire Council,Wiltshire Council,Consultants Fees,Supplies and Services,CAPITAL
Wiltshire,http://opendatacommunities.org/id/unitary-authority/wiltshire,14/09/2017,5107110863,3000.00,AECOM Ltd ,127871,SW19,Wiltshire Council,Wiltshire Council,Consultants Fees,Supplies and Services,CAPITAL
Wiltshire,http://opendatacommunities.org/id/unitary-authority/wiltshire,14/09/2017,5107110864,2000.00,AECOM Ltd ,127871,SW19,Wiltshire Council,Wiltshire Council,Consultants Fees,Supplies and Services,CAPITAL
Wiltshire,http://opendatacommunities.org/id/unitary-authority/wiltshire,14/09/2017,5107110869,2431.00,AECOM Ltd ,127871,SW19,Wiltshire Council,Wiltshire Council,Consultants Fees,Supplies and Services,CAPITAL
Wiltshire,http://opendatacommunities.org/id/unitary-authority/wiltshire,25/09/2017,5107116502,2300.00,AECOM Ltd ,127871,SW19,Wiltshire Council,Wiltshire Council,Consultants Fees,Supplies and Services,CAPITAL
Wiltshire,http://opendatacommunities.org/id/unitary-authority/wiltshire,25/09/2017,5107116503,2000.00,AECOM Ltd ,127871,SW19,Wiltshire Council,Wiltshire Council,Consultants Fees,Supplies and Services,CAPITAL
Wiltshire,http://opendatacommunities.org/id/unitary-authority/wiltshire,25/09/2017,5107116504,2000.00,AECOM Ltd ,127871,SW19,Wiltshire Council,Wiltshire Council,Consultants Fees,Supplies and Services,CAPITAL
Wiltshire,http://opendatacommunities.org/id/unitary-authority/wiltshire,25/09/2017,5107116505,1000.00,AECOM Ltd ,127871,SW19,Wiltshire Council,Wiltshire Council,Consultants Fees,Supplies and Services,CAPITAL
Wiltshire,http://opendatacommunities.org/id/unitary-authority/wiltshire,25/09/2017,5107116506,3000.00,AECOM Ltd ,127871,SW19,Wiltshire Council,Wiltshire Council,Consultants Fees,Supplies and Services,CAPITAL
Wiltshire,http://opendatacommunities.org/id/unitary-authority/wiltshire,06/09/2017,1901982403,610.72,Agincare Ltd ,110069,DT5 ,Community Services,HTLAH - Neighbourhoo,Interim Support Plan - HTLAH,Third Party Payments,REVENUE
Wiltshire,http://opendatacommunities.org/id/unitary-authority/wiltshire,06/09/2017,1901982405,932.64,Agincare Ltd ,110069,DT5 ,Community Services,HTLAH - Neighbourhoo,Interim Support Plan - HTLAH,Third Party Payments,REVENUE
Wiltshire,http://opendatacommunities.org/id/unitary-authority/wiltshire,06/09/2017,1901982407,1428.00,Agincare Ltd ,110069,DT5 ,Community Services,HTLAH - Neighbourhoo,Interim Support Plan - HTLAH,Third Party Payments,REVENUE
Wiltshire,http://opendatacommunities.org/id/unitary-authority/wiltshire,06/09/2017,1901982409,879.75,Agincare Ltd ,110069,DT5 ,Community Services,HTLAH - Neighbourhoo,Interim Support Plan - HTLAH,Third Party Payments,REVENUE
Wiltshire,http://opendatacommunities.org/id/unitary-authority/wiltshire,06/09/2017,1901982410,2244.29,Agincare Ltd ,110069,DT5 ,Community Services,HTLAH - Neighbourhoo,Interim Support Plan - HTLAH,Third Party Payments,REVENUE
Wiltshire,http://opendatacommunities.org/id/unitary-authority/wiltshire,06/09/2017,1901982411,535.50,Agincare Ltd ,110069,DT5 ,Community Services,HTLAH - Neighbourhoo,Interim Support Plan - HTLAH,Third Party Payments,REVENUE
Wiltshire,http://opendatacommunities.org/id/unitary-authority/wiltshire,06/09/2017,1901982413,429.24,Agincare Ltd ,110069,DT5 ,Community Services,HTLAH - Neighbourhoo,Interim Support Plan - HTLAH,Third Party Payments,REVENUE
Wiltshire,http://opendatacommunities.org/id/unitary-authority/wiltshire,06/09/2017,1901982414,442.00,Agincare Ltd ,110069,DT5 ,Community Services,HTLAH - Neighbourhoo,Interim Support Plan - HTLAH,Third Party Payments,REVENUE
Wiltshire,http://opendatacommunities.org/id/unitary-authority/wiltshire,06/09/2017,1901982484,578.00,Agincare Ltd ,110069,DT5 ,Community Services,HTLAH - Neighbourhoo,Interim Support Plan - HTLAH,Third Party Payments,REVENUE
Wiltshire,http://opendatacommunities.org/id/unitary-authority/wiltshire,06/09/2017,1901982485,696.48,Agincare Ltd ,110069,DT5 ,Community Services,HTLAH - Neighbourhoo,Interim Support Plan - HTLAH,Third Party Payments,REVENUE
Wiltshire,http://opendatacommunities.org/id/unitary-authority/wiltshire,06/09/2017,1901982486,289.00,Agincare Ltd ,110069,DT5 ,Community Services,HTLAH - Neighbourhoo,Interim Support Plan - HTLAH,Third Party Payments,REVENUE
Wiltshire,http://opendatacommunities.org/id/unitary-authority/wiltshire,06/09/2017,1901982487,267.75,Agincare Ltd ,110069,DT5 ,Community Services,HTLAH - Neighbourhoo,Interim Support Plan - HTLAH,Third Party Payments,REVENUE
Wiltshire,http://opendatacommunities.org/id/unitary-authority/wiltshire,06/09/2017,1901982488,2830.50,Agincare Ltd ,110069,DT5 ,Community Services,HTLAH - Neighbourhoo,Interim Support Plan - HTLAH,Third Party Payments,REVENUE
Wiltshire,http://opendatacommunities.org/id/unitary-authority/wiltshire,06/09/2017,1901982490,468.36,Agincare Ltd ,110069,DT5 ,Community Services,HTLAH - Neighbourhoo,Interim Support Plan - HTLAH,Third Party Payments,REVENUE
Wiltshire,http://opendatacommunities.org/id/unitary-authority/wiltshire,06/09/2017,1901982492,1508.75,Agincare Ltd ,110069,DT5 ,Community Services,HTLAH - Neighbourhoo,Interim Support Plan - HTLAH,Third Party Payments,REVENUE
Wiltshire,http://opendatacommunities.org/id/unitary-authority/wiltshire,06/09/2017,1901982493,1054.00,Agincare Ltd ,110069,DT5 ,Community Services,HTLAH - Neighbourhoo,Interim Support Plan - HTLAH,Third Party Payments,REVENUE
Wiltshire,http://opendatacommunities.org/id/unitary-authority/wiltshire,06/09/2017,1901982494,429.76,Agincare Ltd ,110069,DT5 ,Community Services,HTLAH - Neighbourhoo,Interim Support Plan - HTLAH,Third Party Payments,REVENUE
Wiltshire,http://opendatacommunities.org/id/unitary-authority/wiltshire,25/09/2017,1902001461,884.90,Agincare Ltd ,110069,DT5 ,Community Services,HTLAH - Neighbourhoo,Interim Support Plan - HTLAH,Third Party Payments,REVENUE
Wiltshire,http://opendatacommunities.org/id/unitary-authority/wiltshire,08/09/2017,5107098479,275.00,Airquee Ltd ,110080,NP44,Neighbourhood & Planning,Calne Leisure Centre,Equipment Purchase,Supplies and Services,REVENUE
Wiltshire,http://opendatacommunities.org/id/unitary-authority/wiltshire,06/09/2017,5107107777,300.00,AIRSPACE SOLUTIONS COM LTD ,110081,NP22,Neighbourhood & Planning,Devizes,Equipment Purchase,Supplies and Services,REVENUE
Wiltshire,http://opendatacommunities.org/id/unitary-authority/wiltshire,20/09/2017,1902000641,405.00,Airsprung Beds Ltd ,113369,BA14,Resources,Social Fund,Social Fund Payments,Capital charges and Expenditure,REVENUE
Wiltshire,http://opendatacommunities.org/id/unitary-authority/wiltshire,05/09/2017,1901995479,444.00,Akcess Ltd ,101402,SN2 ,Neighbourhood & Planning,SEN Rechargable Exp,Transport Contracts,Third Party Payments,REVENUE
Wiltshire,http://opendatacommunities.org/id/unitary-authority/wiltshire,05/09/2017,1901995479,11960.39,Akcess Ltd ,101402,SN2 ,Neighbourhood & Planning,SEN Secondary,Transport Contracts,Third Party Payments,REVENUE
Wiltshire,http://opendatacommunities.org/id/unitary-authority/wiltshire,05/09/2017,1901995479,11960.39,Akcess Ltd ,101402,SN2 ,Neighbourhood & Planning,SEN 16+ Secondary,Transport Contracts,Third Party Payments,REVENUE
Wiltshire,http://opendatacommunities.org/id/unitary-authority/wiltshire,05/09/2017,1901995479,15947.20,Akcess Ltd ,101402,SN2 ,Neighbourhood & Planning,SEN Primary,Transport Contracts,Third Party Payments,REVENUE
Wiltshire,http://opendatacommunities.org/id/unitary-authority/wiltshire,05/09/2017,1901995481,1022.25,Akcess Ltd ,101402,SN2 ,Neighbourhood & Planning,Mainstream Primary,Transport Contracts,Third Party Payments,REVENUE
Wiltshire,http://opendatacommunities.org/id/unitary-authority/wiltshire,05/09/2017,1901995482,1022.25,Akcess Ltd ,101402,SN2 ,Neighbourhood & Planning,Mainstream Primary,Transport Contracts,Third Party Payments,REVENUE
Wiltshire,http://opendatacommunities.org/id/unitary-authority/wiltshire,05/09/2017,1901995483,2052.80,Akcess Ltd ,101402,SN2 ,Neighbourhood & Planning,Mainstream Secondary,Transport Contracts,Third Party Payments,REVENUE
Wiltshire,http://opendatacommunities.org/id/unitary-authority/wiltshire,05/09/2017,1901995484,1849.97,Akcess Ltd ,101402,SN2 ,Neighbourhood & Planning,Mainstream Primary,Transport Contracts,Third Party Payments,REVENUE
Wiltshire,http://opendatacommunities.org/id/unitary-authority/wiltshire,05/09/2017,1901995485,2083.19,Akcess Ltd ,101402,SN2 ,Neighbourhood & Planning,Mainstream Secondary,Transport Contracts,Third Party Payments,REVENUE
Wiltshire,http://opendatacommunities.org/id/unitary-authority/wiltshire,05/09/2017,1901995486,3429.17,Akcess Ltd ,101402,SN2 ,Neighbourhood & Planning,Mainstream Secondary,Transport Contracts,Third Party Payments,REVENUE
Wiltshire,http://opendatacommunities.org/id/unitary-authority/wiltshire,05/09/2017,1901995487,1564.33,Akcess Ltd ,101402,SN2 ,Neighbourhood & Planning,Mainstream Secondary,Transport Contracts,Third Party Payments,REVENUE
Wiltshire,http://opendatacommunities.org/id/unitary-authority/wiltshire,05/09/2017,1901995488,1421.83,Akcess Ltd ,101402,SN2 ,Neighbourhood & Planning,Mainstream Secondary,Transport Contracts,Third Party Payments,REVENUE
Wiltshire,http://opendatacommunities.org/id/unitary-authority/wiltshire,05/09/2017,1901995489,1833.17,Akcess Ltd ,101402,SN2 ,Neighbourhood & Planning,Mainstream Primary,Transport Contracts,Third Party Payments,REVENUE
Wiltshire,http://opendatacommunities.org/id/unitary-authority/wiltshire,05/09/2017,1901995490,2166.67,Akcess Ltd ,101402,SN2 ,Neighbourhood & Planning,Mainstream Primary,Transport Contracts,Third Party Payments,REVENUE
Wiltshire,http://opendatacommunities.org/id/unitary-authority/wiltshire,05/09/2017,1901995491,360.00,Akcess Ltd ,101402,SN2 ,Community Services,Lansdown,Transport Contracts,Third Party Payments,REVENUE
Wiltshire,http://opendatacommunities.org/id/unitary-authority/wiltshire,05/09/2017,1901995491,720.00,Akcess Ltd ,101402,SN2 ,Community Services,Cricklade,Transport Contracts,Third Party Payments,REVENUE
Wiltshire,http://opendatacommunities.org/id/unitary-authority/wiltshire,05/09/2017,1901995492,1786.63,Akcess Ltd ,101402,SN2 ,Neighbourhood & Planning,Mainstream Primary,Transport Contracts,Third Party Payments,REVENUE
Wiltshire,http://opendatacommunities.org/id/unitary-authority/wiltshire,05/09/2017,1901995493,1472.50,Akcess Ltd ,101402,SN2 ,Neighbourhood & Planning,Mainstream Secondary,Transport Contracts,Third Party Payments,REVENUE
Wiltshire,http://opendatacommunities.org/id/unitary-authority/wiltshire,05/09/2017,1901995494,1682.45,Akcess Ltd ,101402,SN2 ,Neighbourhood & Planning,Mainstream Secondary,Transport Contracts,Third Party Payments,REVENUE
Wiltshire,http://opendatacommunities.org/id/unitary-authority/wiltshire,05/09/2017,1901995495,785.68,Akcess Ltd ,101402,SN2 ,Neighbourhood & Planning,Mainstream Secondary,Transport Contracts,Third Party Payments,REVENUE
Wiltshire,http://opendatacommunities.org/id/unitary-authority/wiltshire,05/09/2017,1901995495,1122.32,Akcess Ltd ,101402,SN2 ,Neighbourhood & Planning,Mainstream Primary,Transport Contracts,Third Party Payments,REVENUE
Wiltshire,http://opendatacommunities.org/id/unitary-authority/wiltshire,18/09/2017,1901999555,933.33,Akcess Ltd ,101402,SN2 ,Neighbourhood & Planning,Mainstream Primary,Transport Contracts,Third Party Payments,REVENUE
Wiltshire,http://opendatacommunities.org/id/unitary-authority/wiltshire,18/09/2017,1901999555,1733.34,Akcess Ltd ,101402,SN2 ,Neighbourhood & Planning,Mainstream Secondary,Transport Contracts,Third Party Payments,REVENUE
Wiltshire,http://opendatacommunities.org/id/unitary-authority/wiltshire,19/09/2017,1901999626,1280.91,Alabare Christian Care Centre ,100837,SP2 ,Neighbourhood & Planning,Hsg Strat & Enabling,Payments to Contractors - Other,Third Party Payments,REVENUE
Wiltshire,http://opendatacommunities.org/id/unitary-authority/wiltshire,19/09/2017,1901999628,1709.76,Alabare Christian Care Centre ,100837,SP2 ,Neighbourhood & Planning,Hsg Strat & Enabling,Payments to Contractors - Other,Third Party Payments,REVENUE
Wiltshire,http://opendatacommunities.org/id/unitary-authority/wiltshire,19/09/2017,1901999633,2436.66,Alabare Christian Care Centre ,100837,SP2 ,Neighbourhood & Planning,Hsg Strat & Enabling,Payments to Contractors - Other,Third Party Payments,REVENUE
Wiltshire,http://opendatacommunities.org/id/unitary-authority/wiltshire,19/09/2017,1901999636,3114.93,Alabare Christian Care Centre ,100837,SP2 ,Neighbourhood & Planning,Hsg Strat & Enabling,Payments to Contractors - Other,Third Party Payments,REVENUE
Wiltshire,http://opendatacommunities.org/id/unitary-authority/wiltshire,19/09/2017,1901999637,3388.68,Alabare Christian Care Centre ,100837,SP2 ,Neighbourhood & Planning,Hsg Strat & Enabling,Payments to Contractors - Other,Third Party Payments,REVENUE
Wiltshire,http://opendatacommunities.org/id/unitary-authority/wiltshire,19/09/2017,1901999644,8245.56,Alabare Christian Care Centre ,100837,SP2 ,Neighbourhood & Planning,Hsg Strat & Enabling,Payments to Contractors - Other,Third Party Payments,REVENUE
Wiltshire,http://opendatacommunities.org/id/unitary-authority/wiltshire,19/09/2017,1901999649,21802.76,Alabare Christian Care Centre ,100837,SP2 ,Neighbourhood & Planning,Hsg Strat & Enabling,Payments to Contractors - Other,Third Party Payments,REVENUE
Wiltshire,http://opendatacommunities.org/id/unitary-authority/wiltshire,21/09/2017,1902000962,1280.91,Alabare Christian Care Centre ,100837,SP2 ,Neighbourhood & Planning,Hsg Strat & Enabling,Payments to Contractors - Other,Third Party Payments,REVENUE
Wiltshire,http://opendatacommunities.org/id/unitary-authority/wiltshire,21/09/2017,1902000964,1709.76,Alabare Christian Care Centre ,100837,SP2 ,Neighbourhood & Planning,Hsg Strat & Enabling,Payments to Contractors - Other,Third Party Payments,REVENUE
Wiltshire,http://opendatacommunities.org/id/unitary-authority/wiltshire,21/09/2017,1902000969,2436.66,Alabare Christian Care Centre ,100837,SP2 ,Neighbourhood & Planning,Hsg Strat & Enabling,Payments to Contractors - Other,Third Party Payments,REVENUE
Wiltshire,http://opendatacommunities.org/id/unitary-authority/wiltshire,21/09/2017,1902000972,3114.93,Alabare Christian Care Centre ,100837,SP2 ,Neighbourhood & Planning,Hsg Strat & Enabling,Payments to Contractors - Other,Third Party Payments,REVENUE
Wiltshire,http://opendatacommunities.org/id/unitary-authority/wiltshire,21/09/2017,1902000973,3388.68,Alabare Christian Care Centre ,100837,SP2 ,Neighbourhood & Planning,Hsg Strat & Enabling,Payments to Contractors - Other,Third Party Payments,REVENUE
Wiltshire,http://opendatacommunities.org/id/unitary-authority/wiltshire,21/09/2017,1902000980,8245.56,Alabare Christian Care Centre ,100837,SP2 ,Neighbourhood & Planning,Hsg Strat & Enabling,Payments to Contractors - Other,Third Party Payments,REVENUE
Wiltshire,http://opendatacommunities.org/id/unitary-authority/wiltshire,21/09/2017,1902000985,21802.76,Alabare Christian Care Centre ,100837,SP2 ,Neighbourhood & Planning,Hsg Strat & Enabling,Payments to Contractors - Other,Third Party Payments,REVENUE
Wiltshire,http://opendatacommunities.org/id/unitary-authority/wiltshire,04/09/2017,1901994805,3500.00,Alan Joy Windows Ltd ,129797,BA14,Wiltshire Council,Wiltshire Council,Payments to Contractors - Other,Third Party Payments,CAPITAL
Wiltshire,http://opendatacommunities.org/id/unitary-authority/wiltshire,18/09/2017,1901999524,4983.00,Albino Builders Ltd ,141742,BA4 ,Wiltshire Council,Wiltshire Council,Payments to Contractors - Other,Third Party Payments,CAPITAL
Wiltshire,http://opendatacommunities.org/id/unitary-authority/wiltshire,18/09/2017,5107102558,475.00,Aldercross Ltd ,126099,CH5 ,Neighbourhood & Planning,Sust Transport SD,Conference Fees,Supplies and Services,REVENUE
Wiltshire,http://opendatacommunities.org/id/unitary-authority/wiltshire,18/09/2017,5107106583,475.00,Aldercross Ltd ,126099,CH5 ,Resources,MembersCosts,Conference Fees,Supplies and Services,REVENUE
Wiltshire,http://opendatacommunities.org/id/unitary-authority/wiltshire,06/09/2017,5107107751,356.27,Allied Healthcare  UK  Ltd ,110113,ST18,Children & Education,CDT S&W,Other Social & Welfare Costs,Third Party Payments,REVENUE
Wiltshire,http://opendatacommunities.org/id/unitary-authority/wiltshire,06/09/2017,5107107752,300.02,Allied Healthcare  UK  Ltd ,110113,ST18,Children & Education,CDT S&W,Other Social & Welfare Costs,Third Party Payments,REVENUE
Wiltshire,http://opendatacommunities.org/id/unitary-authority/wiltshire,18/09/2017,5107112809,262.50,Allied Healthcare  UK  Ltd ,110113,ST18,Children & Education,CDT S&W,Other Social & Welfare Costs,Third Party Payments,REVENUE
Wiltshire,http://opendatacommunities.org/id/unitary-authority/wiltshire,18/09/2017,5107112810,262.50,Allied Healthcare  UK  Ltd ,110113,ST18,Children & Education,CDT S&W,Other Social & Welfare Costs,Third Party Payments,REVENUE
Wiltshire,http://opendatacommunities.org/id/unitary-authority/wiltshire,14/09/2017,5107106363,415.00,ALLSPARES  AUTO  LTD ,110116,CF33,Neighbourhood & Planning,Fleet,Vehicle Parts,Transport Related,REVENUE
Wiltshire,http://opendatacommunities.org/id/unitary-authority/wiltshire,05/09/2017,5107106727,400.00,ALLSPARES  AUTO  LTD ,110116,CF33,Neighbourhood & Planning,Contract Winter Main,Vehicle Parts,Transport Related,REVENUE
Wiltshire,http://opendatacommunities.org/id/unitary-authority/wiltshire,01/09/2017,5107096479,427.75,Alpha Chemicals ,138904,SO31,Neighbourhood & Planning,Five Rivers,Cleaning Materials - Buildings,Premises Related,REVENUE
Wiltshire,http://opendatacommunities.org/id/unitary-authority/wiltshire,01/09/2017,5107096481,359.55,Alpha Chemicals ,138904,SO31,Neighbourhood & Planning,Devizes,Cleaning Materials - Buildings,Premises Related,REVENUE
Wiltshire,http://opendatacommunities.org/id/unitary-authority/wiltshire,22/09/2017,5107107287,390.75,Alpha Chemicals ,138904,SO31,Neighbourhood & Planning,Devizes,Cleaning Materials - Buildings,Premises Related,REVENUE
Wiltshire,http://opendatacommunities.org/id/unitary-authority/wiltshire,18/09/2017,5107109281,336.95,Alpha Chemicals ,138904,SO31,Neighbourhood & Planning,Five Rivers,Cleaning Materials - Buildings,Premises Related,REVENUE
Wiltshire,http://opendatacommunities.org/id/unitary-authority/wiltshire,29/09/2017,5107109283,282.25,Alpha Chemicals ,138904,SO31,Neighbourhood & Planning,Five Rivers,Cleaning Materials - Buildings,Premises Related,REVENUE
Wiltshire,http://opendatacommunities.org/id/unitary-authority/wiltshire,19/09/2017,5107113324,419.30,Alpha Chemicals ,138904,SO31,Neighbourhood & Planning,Five Rivers,Cleaning Materials - Buildings,Premises Related,REVENUE
Wiltshire,http://opendatacommunities.org/id/unitary-authority/wiltshire,05/09/2017,1901995422,279.75,Alpha Plus Training  and  Translati Ltd,110120,TA4 ,Children & Education,HQ Social Care,Other Professional Fees,Supplies and Services,REVENUE
Wiltshire,http://opendatacommunities.org/id/unitary-authority/wiltshire,19/09/2017,5107106920,423.77,Alpha Plus Training  and  Translati Ltd,110120,TA4 ,Children & Education,HQ Social Care,Other Professional Fees,Supplies and Services,REVENUE
Wiltshire,http://opendatacommunities.org/id/unitary-authority/wiltshire,06/09/2017,1901996051,311.50,Alpha Taxis ,100124,BA14,Neighbourhood & Planning,Mainstream Primary,Transport Contracts,Third Party Payments,REVENUE
Wiltshire,http://opendatacommunities.org/id/unitary-authority/wiltshire,06/09/2017,1901996057,280.00,Alpha Taxis ,100124,BA14,Community Services,BoA Cluster,Transport Contracts,Third Party Payments,REVENUE
Wiltshire,http://opendatacommunities.org/id/unitary-authority/wiltshire,13/09/2017,1901986127,10379.00,Alun Griffiths Contractors Ltd ,110123,NP7 ,Wiltshire Council,Wiltshire Council,Highways - Other Materials,Supplies and Services,CAPITAL
Wiltshire,http://opendatacommunities.org/id/unitary-authority/wiltshire,13/09/2017,1901986347,10397.00,Alun Griffiths Contractors Ltd ,110123,NP7 ,Wiltshire Council,Wiltshire Council,Highways - Other Materials,Supplies and Services,CAPITAL
Wiltshire,http://opendatacommunities.org/id/unitary-authority/wiltshire,01/09/2017,1901994580,899.00,AMAS Ltd ,128231,E14 ,Resources,FM Highway Depots,Premises Rental / Hire Charges,Premises Related,REVENUE
Wiltshire,http://opendatacommunities.org/id/unitary-authority/wiltshire,01/09/2017,1901994581,676.50,AMAS Ltd ,128231,E14 ,Resources,FM Highway Depots,Premises Rental / Hire Charges,Premises Related,REVENUE
Wiltshire,http://opendatacommunities.org/id/unitary-authority/wiltshire,07/09/2017,1901996476,55500.00,Ameo Professional Services LLP ,137429,B80 ,Community Services,ASC Transformation,Consultants Fees,Supplies and Services,REVENUE
Wiltshire,http://opendatacommunities.org/id/unitary-authority/wiltshire,08/09/2017,1901996595,51485.00,Ameo Professional Services LLP ,137429,B80 ,Community Services,ASC Transformation,Consultants Fees,Supplies and Services,REVENUE
Wiltshire,http://opendatacommunities.org/id/unitary-authority/wiltshire,14/09/2017,1901998207,780.00,Ancient Wessex Network ,145877,DT3 ,Community Services,Collecting Cultures,Books,Supplies and Services,REVENUE
Wiltshire,http://opendatacommunities.org/id/unitary-authority/wiltshire,07/09/2017,1901996392,1111.11,Andybus  and  Coach Ltd ,100132,SN16,Neighbourhood & Planning,Mainstream Primary,Transport Contracts,Third Party Payments,REVENUE
Wiltshire,http://opendatacommunities.org/id/unitary-authority/wiltshire,07/09/2017,1901996392,17253.34,Andybus  and  Coach Ltd ,100132,SN16,Neighbourhood & Planning,Mainstream Secondary,Transport Contracts,Third Party Payments,REVENUE
Wiltshire,http://opendatacommunities.org/id/unitary-authority/wiltshire,07/09/2017,1901996393,3087.34,Andybus  and  Coach Ltd ,100132,SN16,Neighbourhood & Planning,Mainstream Secondary,Transport Contracts,Third Party Payments,REVENUE
Wiltshire,http://opendatacommunities.org/id/unitary-authority/wiltshire,07/09/2017,1901996394,3084.38,Andybus  and  Coach Ltd ,100132,SN16,Neighbourhood & Planning,Mainstream Secondary,Transport Contracts,Third Party Payments,REVENUE
Wiltshire,http://opendatacommunities.org/id/unitary-authority/wiltshire,07/09/2017,1901996395,3246.25,Andybus  and  Coach Ltd ,100132,SN16,Neighbourhood & Planning,Mainstream Secondary,Transport Contracts,Third Party Payments,REVENUE
Wiltshire,http://opendatacommunities.org/id/unitary-authority/wiltshire,07/09/2017,1901996396,3286.68,Andybus  and  Coach Ltd ,100132,SN16,Neighbourhood & Planning,Mainstream Secondary,Transport Contracts,Third Party Payments,REVENUE
Wiltshire,http://opendatacommunities.org/id/unitary-authority/wiltshire,13/09/2017,1901997758,2976.18,Aon Limited ,113554,LE1 ,Neighbourhood & Planning,Asset Management,Tenants� Contents Insurance,Premises Related,REVENUE
Wiltshire,http://opendatacommunities.org/id/unitary-authority/wiltshire,13/09/2017,1901997759,3759.84,Aon Limited ,113554,LE1 ,Neighbourhood & Planning,Asset Management,Tenants� Contents Insurance,Premises Related,REVENUE
Wiltshire,http://opendatacommunities.org/id/unitary-authority/wiltshire,13/09/2017,1901997760,3642.55,Aon Limited ,113554,LE1 ,Neighbourhood & Planning,Asset Management,Tenants� Contents Insurance,Premises Related,REVENUE
Wiltshire,http://opendatacommunities.org/id/unitary-authority/wiltshire,29/09/2017,5107116483,1560.00,APA Consultants Ltd ,113361,SN10,Neighbourhood & Planning,Development Control,Other Professional Fees,Supplies and Services,REVENUE
Wiltshire,http://opendatacommunities.org/id/unitary-authority/wiltshire,29/09/2017,5107116489,780.00,APA Consultants Ltd ,113361,SN10,Neighbourhood & Planning,Development Control,Other Professional Fees,Supplies and Services,REVENUE
Wiltshire,http://opendatacommunities.org/id/unitary-authority/wiltshire,08/09/2017,1901996504,252.31,Argos Business Solutions ,113600,MK9 ,Children & Education,Children in Care,Grants Paid to individuals for Tangible Benefits,Supplies and Services,REVENUE
Wiltshire,http://opendatacommunities.org/id/unitary-authority/wiltshire,12/09/2017,5107110269,321.74,Argos Business Solutions ,113600,MK9 ,Children & Education,CiC Through Team Nor,Grants Paid to individuals for Tangible Benefits,Supplies and Services,REVENUE
Wiltshire,http://opendatacommunities.org/id/unitary-authority/wiltshire,12/09/2017,5107110301,340.34,Argos Business Solutions ,113600,MK9 ,Wiltshire Council,Wiltshire Council,Furniture / Office Equipment Purchase,Supplies and Services,CAPITAL
Wiltshire,http://opendatacommunities.org/id/unitary-authority/wiltshire,26/09/2017,1902002001,355.20,Aria Warmsley-Esteves ,143714,BA15,Children & Education,CDT S&W,Other Social & Welfare Costs,Third Party Payments,REVENUE
Wiltshire,http://opendatacommunities.org/id/unitary-authority/wiltshire,18/09/2017,5107106447,3718.00,Arqiva Services Limited ,137139,SO21,Neighbourhood & Planning,Fleet,Radio Communications,Supplies and Services,REVENUE
Wiltshire,http://opendatacommunities.org/id/unitary-authority/wiltshire,26/09/2017,5107110619,1200.00,Arthur Williams Consulting Ltd ,129581,BA14,Wiltshire Council,Wiltshire Council,Consultants Fees,Supplies and Services,CAPITAL
Wiltshire,http://opendatacommunities.org/id/unitary-authority/wiltshire,26/09/2017,5107110630,450.00,Arthur Williams Consulting Ltd ,129581,BA14,Wiltshire Council,Wiltshire Council,Consultants Fees,Supplies and Services,CAPITAL
Wiltshire,http://opendatacommunities.org/id/unitary-authority/wiltshire,26/09/2017,5107110631,1200.00,Arthur Williams Consulting Ltd ,129581,BA14,Wiltshire Council,Wiltshire Council,Consultants Fees,Supplies and Services,CAPITAL
Wiltshire,http://opendatacommunities.org/id/unitary-authority/wiltshire,01/09/2017,5107106849,2250.00,Ashfords Solicitors ,113641,EX1 ,Wiltshire Council,Wiltshire Council,Legal Fees,Supplies and Services,CAPITAL
Wiltshire,http://opendatacommunities.org/id/unitary-authority/wiltshire,28/09/2017,5107118484,1330.00,Ashfords Solicitors ,113641,EX1 ,Wiltshire Council,Wiltshire Council,Legal Fees,Supplies and Services,CAPITAL
Wiltshire,http://opendatacommunities.org/id/unitary-authority/wiltshire,05/09/2017,1901995316,316.67,AspireMedia Productions ,144883,MK10,Neighbourhood & Planning,City Hall,City Hall Shows,Balance Sheet Accounts,REVENUE
Wiltshire,http://opendatacommunities.org/id/unitary-authority/wiltshire,01/09/2017,5107106804,13418.58,Assoc Of Electoral Administrators ,113675,SR2 ,Resources,Parliamentary Electi,Consultants Fees,Supplies and Services,REVENUE
Wiltshire,http://opendatacommunities.org/id/unitary-authority/wiltshire,07/09/2017,1901984795,650.00,Aster ,135687,SN10,Wiltshire Council,Wiltshire Council,Other Professional Fees,Supplies and Services,CAPITAL
Wiltshire,http://opendatacommunities.org/id/unitary-authority/wiltshire,07/09/2017,1901986393,795.00,Aster ,135687,SN10,Wiltshire Council,Wiltshire Council,Other Professional Fees,Supplies and Services,CAPITAL
Wiltshire,http://opendatacommunities.org/id/unitary-authority/wiltshire,11/09/2017,1901996774,3000.00,Aster ,135687,SN10,Wiltshire Council,Wiltshire Council,Other Professional Fees,Supplies and Services,CAPITAL
Wiltshire,http://opendatacommunities.org/id/unitary-authority/wiltshire,12/09/2017,1901997005,650.00,Aster ,135687,SN10,Wiltshire Council,Wiltshire Council,Other Professional Fees,Supplies and Services,CAPITAL
Wiltshire,http://opendatacommunities.org/id/unitary-authority/wiltshire,12/09/2017,1901997062,1646.00,Aster ,135687,SN10,Wiltshire Council,Wiltshire Council,Other Professional Fees,Supplies and Services,CAPITAL
Wiltshire,http://opendatacommunities.org/id/unitary-authority/wiltshire,13/09/2017,1901997775,490.58,Aster ,135687,SN10,Wiltshire Council,Wiltshire Council,Other Professional Fees,Supplies and Services,CAPITAL
Wiltshire,http://opendatacommunities.org/id/unitary-authority/wiltshire,19/09/2017,1901999607,500.00,Aster ,135687,SN10,Wiltshire Council,Wiltshire Council,Other Professional Fees,Supplies and Services,CAPITAL
Wiltshire,http://opendatacommunities.org/id/unitary-authority/wiltshire,19/09/2017,1901999902,1775.00,Aster ,135687,SN10,Wiltshire Council,Wiltshire Council,Other Professional Fees,Supplies and Services,CAPITAL
Wiltshire,http://opendatacommunities.org/id/unitary-authority/wiltshire,21/09/2017,1902000954,2202.40,Aster ,135687,SN10,Wiltshire Council,Wiltshire Council,Other Professional Fees,Supplies and Services,CAPITAL
Wiltshire,http://opendatacommunities.org/id/unitary-authority/wiltshire,29/09/2017,1902008957,853.00,Aster ,135687,SN10,Wiltshire Council,Wiltshire Council,Other Professional Fees,Supplies and Services,CAPITAL
Wiltshire,http://opendatacommunities.org/id/unitary-authority/wiltshire,13/09/2017,1901997778,277.00,Atkins Ltd ,110197,KT18,Wiltshire Council,Wiltshire Council,Highways Term - Consultant,Third Party Payments,CAPITAL
Wiltshire,http://opendatacommunities.org/id/unitary-authority/wiltshire,13/09/2017,1901997778,342.69,Atkins Ltd ,110197,KT18,Wiltshire Council,Wiltshire Council,Highways Term - Consultant,Third Party Payments,CAPITAL
Wiltshire,http://opendatacommunities.org/id/unitary-authority/wiltshire,13/09/2017,1901997778,358.62,Atkins Ltd ,110197,KT18,Wiltshire Council,Wiltshire Council,Highways Term - Consultant,Third Party Payments,CAPITAL
Wiltshire,http://opendatacommunities.org/id/unitary-authority/wiltshire,13/09/2017,1901997778,451.37,Atkins Ltd ,110197,KT18,Wiltshire Council,Wiltshire Council,Highways Term - Consultant,Third Party Payments,CAPITAL
Wiltshire,http://opendatacommunities.org/id/unitary-authority/wiltshire,13/09/2017,1901997778,481.34,Atkins Ltd ,110197,KT18,Wiltshire Council,Wiltshire Council,Highways Term - Consultant,Third Party Payments,CAPITAL
Wiltshire,http://opendatacommunities.org/id/unitary-authority/wiltshire,13/09/2017,1901997778,498.99,Atkins Ltd ,110197,KT18,Wiltshire Council,Wiltshire Council,Highways Term - Consultant,Third Party Payments,CAPITAL
Wiltshire,http://opendatacommunities.org/id/unitary-authority/wiltshire,13/09/2017,1901997778,505.63,Atkins Ltd ,110197,KT18,Wiltshire Council,Wiltshire Council,Highways Term - Consultant,Third Party Payments,CAPITAL
Wiltshire,http://opendatacommunities.org/id/unitary-authority/wiltshire,13/09/2017,1901997778,599.61,Atkins Ltd ,110197,KT18,Wiltshire Council,Wiltshire Council,Highways Term - Consultant,Third Party Payments,CAPITAL
Wiltshire,http://opendatacommunities.org/id/unitary-authority/wiltshire,13/09/2017,1901997778,626.76,Atkins Ltd ,110197,KT18,Wiltshire Council,Wiltshire Council,Highways Term - Consultant,Third Party Payments,CAPITAL
Wiltshire,http://opendatacommunities.org/id/unitary-authority/wiltshire,13/09/2017,1901997778,794.04,Atkins Ltd ,110197,KT18,Wiltshire Council,Wiltshire Council,Highways Term - Consultant,Third Party Payments,CAPITAL
Wiltshire,http://opendatacommunities.org/id/unitary-authority/wiltshire,13/09/2017,1901997778,853.94,Atkins Ltd ,110197,KT18,Wiltshire Council,Wiltshire Council,Highways Term - Consultant,Third Party Payments,CAPITAL
Wiltshire,http://opendatacommunities.org/id/unitary-authority/wiltshire,13/09/2017,1901997778,862.86,Atkins Ltd ,110197,KT18,Wiltshire Council,Wiltshire Council,Highways Term - Consultant,Third Party Payments,CAPITAL
Wiltshire,http://opendatacommunities.org/id/unitary-authority/wiltshire,13/09/2017,1901997778,1477.93,Atkins Ltd ,110197,KT18,Wiltshire Council,Wiltshire Council,Highways Term - Consultant,Third Party Payments,CAPITAL
Wiltshire,http://opendatacommunities.org/id/unitary-authority/wiltshire,13/09/2017,1901997778,1713.42,Atkins Ltd ,110197,KT18,Community Services,One Public Estate,Highways Term - Consultant,Third Party Payments,REVENUE
Wiltshire,http://opendatacommunities.org/id/unitary-authority/wiltshire,13/09/2017,1901997778,1995.00,Atkins Ltd ,110197,KT18,Wiltshire Council,Wiltshire Council,Highways Term - Consultant,Third Party Payments,CAPITAL
Wiltshire,http://opendatacommunities.org/id/unitary-authority/wiltshire,13/09/2017,1901997778,2065.89,Atkins Ltd ,110197,KT18,Wiltshire Council,Wiltshire Council,Highways Term - Consultant,Third Party Payments,CAPITAL
Wiltshire,http://opendatacommunities.org/id/unitary-authority/wiltshire,13/09/2017,1901997778,2205.38,Atkins Ltd ,110197,KT18,Wiltshire Council,Wiltshire Council,Highways Term - Consultant,Third Party Payments,CAPITAL
Wiltshire,http://opendatacommunities.org/id/unitary-authority/wiltshire,13/09/2017,1901997778,2433.85,Atkins Ltd ,110197,KT18,Wiltshire Council,Wiltshire Council,Highways Term - Consultant,Third Party Payments,CAPITAL
Wiltshire,http://opendatacommunities.org/id/unitary-authority/wiltshire,13/09/2017,1901997778,2562.76,Atkins Ltd ,110197,KT18,Wiltshire Council,Wiltshire Council,Highways Term - Consultant,Third Party Payments,CAPITAL
Wiltshire,http://opendatacommunities.org/id/unitary-authority/wiltshire,13/09/2017,1901997778,2976.26,Atkins Ltd ,110197,KT18,Wiltshire Council,Wiltshire Council,Highways Term - Consultant,Third Party Payments,CAPITAL
Wiltshire,http://opendatacommunities.org/id/unitary-authority/wiltshire,13/09/2017,1901997778,3042.32,Atkins Ltd ,110197,KT18,Wiltshire Council,Wiltshire Council,Highways Term - Consultant,Third Party Payments,CAPITAL
Wiltshire,http://opendatacommunities.org/id/unitary-authority/wiltshire,13/09/2017,1901997778,3447.51,Atkins Ltd ,110197,KT18,Wiltshire Council,Wiltshire Council,Highways Term - Consultant,Third Party Payments,CAPITAL
Wiltshire,http://opendatacommunities.org/id/unitary-authority/wiltshire,13/09/2017,1901997778,3798.08,Atkins Ltd ,110197,KT18,Wiltshire Council,Wiltshire Council,Highways Term - Consultant,Third Party Payments,CAPITAL
Wiltshire,http://opendatacommunities.org/id/unitary-authority/wiltshire,13/09/2017,1901997778,4693.27,Atkins Ltd ,110197,KT18,Wiltshire Council,Wiltshire Council,Highways Term - Consultant,Third Party Payments,CAPITAL
Wiltshire,http://opendatacommunities.org/id/unitary-authority/wiltshire,13/09/2017,1901997778,5136.52,Atkins Ltd ,110197,KT18,Wiltshire Council,Wiltshire Council,Highways Term - Consultant,Third Party Payments,CAPITAL
Wiltshire,http://opendatacommunities.org/id/unitary-authority/wiltshire,13/09/2017,1901997778,5467.28,Atkins Ltd ,110197,KT18,Neighbourhood & Planning,Highw Hedges & Trees,Highways Term - Consultant,Third Party Payments,REVENUE
Wiltshire,http://opendatacommunities.org/id/unitary-authority/wiltshire,13/09/2017,1901997778,5903.45,Atkins Ltd ,110197,KT18,Neighbourhood & Planning,Bridge Routine Mtc,Highways Term - Consultant,Third Party Payments,REVENUE
Wiltshire,http://opendatacommunities.org/id/unitary-authority/wiltshire,13/09/2017,1901997778,6269.20,Atkins Ltd ,110197,KT18,Wiltshire Council,Wiltshire Council,Highways Term - Consultant,Third Party Payments,CAPITAL
Wiltshire,http://opendatacommunities.org/id/unitary-authority/wiltshire,13/09/2017,1901997778,6906.78,Atkins Ltd ,110197,KT18,Wiltshire Council,Wiltshire Council,Highways Term - Consultant,Third Party Payments,CAPITAL
Wiltshire,http://opendatacommunities.org/id/unitary-authority/wiltshire,13/09/2017,1901997778,8016.91,Atkins Ltd ,110197,KT18,Neighbourhood & Planning,Traffic Signal Mtc,Highways Term - Consultant,Third Party Payments,REVENUE
Wiltshire,http://opendatacommunities.org/id/unitary-authority/wiltshire,13/09/2017,1901997778,8957.56,Atkins Ltd ,110197,KT18,Wiltshire Council,Wiltshire Council,Highways Term - Consultant,Third Party Payments,CAPITAL
Wiltshire,http://opendatacommunities.org/id/unitary-authority/wiltshire,13/09/2017,1901997778,10124.91,Atkins Ltd ,110197,KT18,Neighbourhood & Planning,Network Manager Team,Highways Term - Consultant,Third Party Payments,REVENUE
Wiltshire,http://opendatacommunities.org/id/unitary-authority/wiltshire,13/09/2017,1901997778,10994.45,Atkins Ltd ,110197,KT18,Wiltshire Council,Wiltshire Council,Highways Term - Consultant,Third Party Payments,CAPITAL
Wiltshire,http://opendatacommunities.org/id/unitary-authority/wiltshire,13/09/2017,1901997778,18276.19,Atkins Ltd ,110197,KT18,Neighbourhood & Planning,Street Lighting,Highways Term - Consultant,Third Party Payments,REVENUE
Wiltshire,http://opendatacommunities.org/id/unitary-authority/wiltshire,13/09/2017,1901997778,40131.00,Atkins Ltd ,110197,KT18,Wiltshire Council,Wiltshire Council,Highways Term - Consultant,Third Party Payments,CAPITAL
Wiltshire,http://opendatacommunities.org/id/unitary-authority/wiltshire,13/09/2017,1901997778,51108.71,Atkins Ltd ,110197,KT18,Wiltshire Council,Wiltshire Council,Highways Term - Consultant,Third Party Payments,CAPITAL
Wiltshire,http://opendatacommunities.org/id/unitary-authority/wiltshire,13/09/2017,1901997778,53282.71,Atkins Ltd ,110197,KT18,Neighbourhood & Planning,Master Planning,Highways Term - Consultant,Third Party Payments,REVENUE
Wiltshire,http://opendatacommunities.org/id/unitary-authority/wiltshire,13/09/2017,1901997778,82633.88,Atkins Ltd ,110197,KT18,Wiltshire Council,Wiltshire Council,Highways Term - Consultant,Third Party Payments,CAPITAL
Wiltshire,http://opendatacommunities.org/id/unitary-authority/wiltshire,28/09/2017,5107115569,12524.05,Ats Euromaster Ltd ,113709,B6 5,Neighbourhood & Planning,Fleet,Vehicle Parts,Transport Related,REVENUE
Wiltshire,http://opendatacommunities.org/id/unitary-authority/wiltshire,20/09/2017,1902000456,456.44,Audley Care White Horse ,121958,SN8 ,Community Services,HTLAH - Neighbourhoo,Interim Support Plan - HTLAH,Third Party Payments,REVENUE
Wiltshire,http://opendatacommunities.org/id/unitary-authority/wiltshire,20/09/2017,1902000457,951.89,Audley Care White Horse ,121958,SN8 ,Community Services,HTLAH - Neighbourhoo,Interim Support Plan - HTLAH,Third Party Payments,REVENUE
Wiltshire,http://opendatacommunities.org/id/unitary-authority/wiltshire,20/09/2017,1902000458,627.30,Audley Care White Horse ,121958,SN8 ,Community Services,HTLAH - Neighbourhoo,Interim Support Plan - HTLAH,Third Party Payments,REVENUE
Wiltshire,http://opendatacommunities.org/id/unitary-authority/wiltshire,25/09/2017,1902001452,796.10,Audley Care White Horse ,121958,SN8 ,Community Services,HTLAH - Neighbourhoo,Interim Support Plan - HTLAH,Third Party Payments,REVENUE
Wiltshire,http://opendatacommunities.org/id/unitary-authority/wiltshire,25/09/2017,1902001454,315.60,Audley Care White Horse ,121958,SN8 ,Community Services,HTLAH - Neighbourhoo,Interim Support Plan - HTLAH,Third Party Payments,REVENUE
Wiltshire,http://opendatacommunities.org/id/unitary-authority/wiltshire,25/09/2017,1902001455,315.60,Audley Care White Horse ,121958,SN8 ,Community Services,HTLAH - Neighbourhoo,Interim Support Plan - HTLAH,Third Party Payments,REVENUE
Wiltshire,http://opendatacommunities.org/id/unitary-authority/wiltshire,25/09/2017,1902001456,339.90,Audley Care White Horse ,121958,SN8 ,Community Services,HTLAH - Neighbourhoo,Interim Support Plan - HTLAH,Third Party Payments,REVENUE
Wiltshire,http://opendatacommunities.org/id/unitary-authority/wiltshire,19/09/2017,5107113217,321.21,Automotive Leasing Ltd ,113729,SL1 ,Neighbourhood & Planning,Fleet,Commercial Leased Vehicles,Transport Related,REVENUE
Wiltshire,http://opendatacommunities.org/id/unitary-authority/wiltshire,19/09/2017,5107113219,321.21,Automotive Leasing Ltd ,113729,SL1 ,Neighbourhood & Planning,Fleet,Commercial Leased Vehicles,Transport Related,REVENUE
Wiltshire,http://opendatacommunities.org/id/unitary-authority/wiltshire,19/09/2017,5107113222,321.21,Automotive Leasing Ltd ,113729,SL1 ,Neighbourhood & Planning,Fleet,Commercial Leased Vehicles,Transport Related,REVENUE
Wiltshire,http://opendatacommunities.org/id/unitary-authority/wiltshire,28/09/2017,5107118566,2007.35,Autonomy Care Limited ,126128,SN10,Children & Education,0-25 extnl disabty p,Other Social & Welfare Costs,Third Party Payments,REVENUE
Wiltshire,http://opendatacommunities.org/id/unitary-authority/wiltshire,28/09/2017,5107118569,11623.50,Autonomy Care Limited ,126128,SN10,Children & Education,0-25 extnl disabty p,Other Social & Welfare Costs,Third Party Payments,REVENUE
Wiltshire,http://opendatacommunities.org/id/unitary-authority/wiltshire,28/09/2017,5107118574,4882.60,Autonomy Care Limited ,126128,SN10,Children & Education,0-25 extnl disabty p,Other Social & Welfare Costs,Third Party Payments,REVENUE
Wiltshire,http://opendatacommunities.org/id/unitary-authority/wiltshire,20/09/2017,5107106570,830.00,Axial Systems Ltd ,101147,SL6 ,Resources,ICT Corporate Networ,Hardware Maintenance,Supplies and Services,REVENUE
Wiltshire,http://opendatacommunities.org/id/unitary-authority/wiltshire,28/09/2017,5107107976,111628.65,Axial Systems Ltd ,101147,SL6 ,Wiltshire Council,Wiltshire Council,Hardware Maintenance,Supplies and Services,CAPITAL
Wiltshire,http://opendatacommunities.org/id/unitary-authority/wiltshire,25/09/2017,5107116446,5281.20,Axiell Ltd ,135646,NG1 ,Resources,Applications SuppLOB,ICT Apps - Axiell (Galaxy),Supplies and Services,REVENUE
Wiltshire,http://opendatacommunities.org/id/unitary-authority/wiltshire,08/09/2017,1901996586,990.00,Axiomatic Technology Ltd ,113773,NG16,Community Services,Libraries,Equipment Maintenance,Supplies and Services,REVENUE
Wiltshire,http://opendatacommunities.org/id/unitary-authority/wiltshire,20/09/2017,5107114159,450.00,B P Estates (Contractors) Limited ,132851,SY23,Resources,Other Offices,Premises Management Costs,Premises Related,REVENUE
Wiltshire,http://opendatacommunities.org/id/unitary-authority/wiltshire,20/09/2017,5107114160,450.00,B P Estates (Contractors) Limited ,132851,SY23,Resources,Investment Estate,Premises Management Costs,Premises Related,REVENUE
Wiltshire,http://opendatacommunities.org/id/unitary-authority/wiltshire,20/09/2017,5107114151,2226.72,B P Estates Ltd ,113821,BA14,Resources,Investment Estate,Premises Management Costs,Premises Related,REVENUE
Wiltshire,http://opendatacommunities.org/id/unitary-authority/wiltshire,18/09/2017,5107113168,63639.41,Balfour Beatty Regional Constructio ,141762,NE12,Wiltshire Council,Wiltshire Council,Buildings Minor Alterations,Premises Related,CAPITAL
Wiltshire,http://opendatacommunities.org/id/unitary-authority/wiltshire,20/09/2017,5107114158,119987.32,Barclays Bank Plc ,126156,E14 ,Resources,Monkton Pk Off Accom,PFI & PPP Schemes,Supplies and Services,REVENUE
Wiltshire,http://opendatacommunities.org/id/unitary-authority/wiltshire,05/09/2017,5107107527,750.00,Barford Settled Estate ,110256,SP2 ,Neighbourhood & Planning,Communal Areas,Premises Rental / Hire Charges,Premises Related,REVENUE
Wiltshire,http://opendatacommunities.org/id/unitary-authority/wiltshire,11/09/2017,1901996826,3083.25,Barnes Coaches Ltd ,100190,SN3 ,Neighbourhood & Planning,Mainstream Primary,Transport Contracts,Third Party Payments,REVENUE
Wiltshire,http://opendatacommunities.org/id/unitary-authority/wiltshire,11/09/2017,5107102655,266.73,BARRETTINE ENVIRONMENTAL HEALTH ,110260,BS30,Health & Wellbeing,CommunityPestControl,Materials & Consumables (Non-Educational),Supplies and Services,REVENUE
Wiltshire,http://opendatacommunities.org/id/unitary-authority/wiltshire,05/09/2017,1901995334,750.95,Barts Health NHS Trust ,137417,E1 8,Neighbourhood & Planning,Sexual Health GUM,Public Health Commissioning,Supplies and Services,REVENUE
Wiltshire,http://opendatacommunities.org/id/unitary-authority/wiltshire,15/09/2017,5107111938,545.83,Bath Mind ,134100,BA1 ,Community Services,MH Commissioned Cont,Grants Paid to individuals for Tangible Benefits,Supplies and Services,REVENUE
Wiltshire,http://opendatacommunities.org/id/unitary-authority/wiltshire,21/09/2017,5107114842,2488.00,BCIS ,110271,SW1P,Resources,Facilities Managemen,Professional Subscriptions/Memberships,Employee Related,REVENUE
Wiltshire,http://opendatacommunities.org/id/unitary-authority/wiltshire,19/09/2017,5107113350,4217.10,Bechtle Direct Limited ,145225,SN14,Resources,Desk Top Hardware,Hardware Purchases IT,Supplies and Services,REVENUE
Wiltshire,http://opendatacommunities.org/id/unitary-authority/wiltshire,19/09/2017,5107113352,1560.36,Bechtle Direct Limited ,145225,SN14,Resources,Desk Top Hardware,Hardware Purchases IT,Supplies and Services,REVENUE
Wiltshire,http://opendatacommunities.org/id/unitary-authority/wiltshire,18/09/2017,1901999541,306.06,Beeline Coaches ,101673,BA12,Children & Education,EOTAS Service,Transport Contract -  Bus Season Tickets,Third Party Payments,REVENUE
Wiltshire,http://opendatacommunities.org/id/unitary-authority/wiltshire,18/09/2017,1901999541,13403.94,Beeline Coaches ,101673,BA12,Neighbourhood & Planning,Mainstream Secondary,Transport Contract -  Bus Season Tickets,Third Party Payments,REVENUE
Wiltshire,http://opendatacommunities.org/id/unitary-authority/wiltshire,19/09/2017,1902000378,250.91,Beeline Coaches ,101673,BA12,Neighbourhood & Planning,Concessionary Fares,Compensation for Concessionary fares,Third Party Payments,REVENUE
Wiltshire,http://opendatacommunities.org/id/unitary-authority/wiltshire,01/09/2017,5107106862,521.00,Bellevue Veterinary Clinic ,115941,BA11,Health & Wellbeing,Gambling & Other,Other Professional Fees,Supplies and Services,REVENUE
Wiltshire,http://opendatacommunities.org/id/unitary-authority/wiltshire,19/09/2017,5107113980,945.00,BemroseBooth ,113983,HU7 ,Resources,DesignPrintTrowbridg,Printing External,Supplies and Services,REVENUE
Wiltshire,http://opendatacommunities.org/id/unitary-authority/wiltshire,25/09/2017,5107116465,448.00,BemroseBooth ,113983,HU7 ,Resources,DesignPrintTrowbridg,Equipment Maintenance,Supplies and Services,REVENUE
Wiltshire,http://opendatacommunities.org/id/unitary-authority/wiltshire,25/09/2017,5107116466,676.00,BemroseBooth ,113983,HU7 ,Resources,DesignPrintTrowbridg,Equipment Maintenance,Supplies and Services,REVENUE
Wiltshire,http://opendatacommunities.org/id/unitary-authority/wiltshire,29/09/2017,5107110316,30866.85,Bentley Systems International Ltd ,135473,DUBL,Resources,Applications SuppLOB,ICT - Support arrangements,Supplies and Services,REVENUE
Wiltshire,http://opendatacommunities.org/id/unitary-authority/wiltshire,29/09/2017,1901997696,9406.66,Bertram Library Services ,101283,NR7 ,Community Services,Libraries,Books,Supplies and Services,REVENUE
Wiltshire,http://opendatacommunities.org/id/unitary-authority/wiltshire,07/09/2017,1901985709,753.73,Bibliotheca Ltd ,125688,SK8 ,Community Services,Libraries,Books,Supplies and Services,REVENUE
Wiltshire,http://opendatacommunities.org/id/unitary-authority/wiltshire,27/09/2017,5107107778,500.55,Bibliotheca Ltd ,125688,SK8 ,Wiltshire Council,Wiltshire Council,Furniture / Office Equipment Purchase,Supplies and Services,CAPITAL
Wiltshire,http://opendatacommunities.org/id/unitary-authority/wiltshire,12/09/2017,1901997093,2003.30,Bikeability Materials ,114019,CB4 ,Neighbourhood & Planning,Road Safety Bike Ab,Consultants Fees,Supplies and Services,REVENUE
Wiltshire,http://opendatacommunities.org/id/unitary-authority/wiltshire,08/09/2017,1901995779,2128.78,Billington Bioenergy ,136801,L3 1,Resources,Corsham Campus,Fuel Oil,Premises Related,REVENUE
Wiltshire,http://opendatacommunities.org/id/unitary-authority/wiltshire,26/09/2017,1902001864,1770.18,Billington Bioenergy ,136801,L3 1,Resources,Tisbury Sports Centr,Fuel Oil,Premises Related,REVENUE
Wiltshire,http://opendatacommunities.org/id/unitary-authority/wiltshire,26/09/2017,1902001865,2200.50,Billington Bioenergy ,136801,L3 1,Resources,Tisbury Sports Centr,Fuel Oil,Premises Related,REVENUE
Wiltshire,http://opendatacommunities.org/id/unitary-authority/wiltshire,14/09/2017,1901986877,393.89,Biogas Technology Ltd ,100573,PE17,Neighbourhood & Planning,Permitted Sites,Preventative Property Maintenance,Premises Related,REVENUE
Wiltshire,http://opendatacommunities.org/id/unitary-authority/wiltshire,25/09/2017,5107116464,400.00,Black Dog Graphics and Training Solutions Ltd,137895,DT11,Neighbourhood & Planning,Forestry NWD AONB,Marketing and Promotions,Supplies and Services,REVENUE
Wiltshire,http://opendatacommunities.org/id/unitary-authority/wiltshire,29/09/2017,1901996736,270.00,Blue 9 Security Limited ,144177,SP1 ,Resources,FM Libraries,Premises Security Costs,Premises Related,REVENUE
Wiltshire,http://opendatacommunities.org/id/unitary-authority/wiltshire,29/09/2017,1901996736,307.50,Blue 9 Security Limited ,144177,SP1 ,Resources,Bourne Hill,Premises Security Costs,Premises Related,REVENUE
Wiltshire,http://opendatacommunities.org/id/unitary-authority/wiltshire,29/09/2017,1901996736,311.00,Blue 9 Security Limited ,144177,SP1 ,Children & Education,Aspire House,Premises Security Costs,Premises Related,REVENUE
Wiltshire,http://opendatacommunities.org/id/unitary-authority/wiltshire,29/09/2017,1901996736,1746.33,Blue 9 Security Limited ,144177,SP1 ,Resources,County Hall Complex,Premises Security Costs,Premises Related,REVENUE
Wiltshire,http://opendatacommunities.org/id/unitary-authority/wiltshire,29/09/2017,1901996736,3367.24,Blue 9 Security Limited ,144177,SP1 ,Resources,Unoccupied Sites,Premises Security Costs,Premises Related,REVENUE
Wiltshire,http://opendatacommunities.org/id/unitary-authority/wiltshire,29/09/2017,1901996736,5254.00,Blue 9 Security Limited ,144177,SP1 ,Resources,FM Highway Depots,Premises Security Costs,Premises Related,REVENUE
Wiltshire,http://opendatacommunities.org/id/unitary-authority/wiltshire,27/09/2017,1902000473,596.61,Bluebird Care Wilts South ,140951,SP1 ,Community Services,HTLAH - Neighbourhoo,Interim Support Plan - HTLAH,Third Party Payments,REVENUE
Wiltshire,http://opendatacommunities.org/id/unitary-authority/wiltshire,20/09/2017,1902000474,672.81,Bluebird Care Wilts South ,140951,SP1 ,Community Services,HTLAH - Neighbourhoo,Interim Support Plan - HTLAH,Third Party Payments,REVENUE
Wiltshire,http://opendatacommunities.org/id/unitary-authority/wiltshire,04/09/2017,1901994783,11000.00,BNP Paribas Real Estate Finance dept,135256,EC2V,Neighbourhood & Planning,Wiltshire Housing Si,Other Professional Fees,Supplies and Services,REVENUE
Wiltshire,http://opendatacommunities.org/id/unitary-authority/wiltshire,19/09/2017,1901999648,20179.52,Bournemouth Churches Housing Assoc ,143919,BH1 ,Neighbourhood & Planning,Hsg Strat & Enabling,Payments to Contractors - Other,Third Party Payments,REVENUE
Wiltshire,http://opendatacommunities.org/id/unitary-authority/wiltshire,21/09/2017,1902000984,20179.52,Bournemouth Churches Housing Assoc ,143919,BH1 ,Neighbourhood & Planning,Hsg Strat & Enabling,Payments to Contractors - Other,Third Party Payments,REVENUE
Wiltshire,http://opendatacommunities.org/id/unitary-authority/wiltshire,07/09/2017,1901996391,1711.82,Bradies Taxis ,100249,SN15,Community Services,MH OP South Locality,Transport Contracts,Third Party Payments,REVENUE
Wiltshire,http://opendatacommunities.org/id/unitary-authority/wiltshire,07/09/2017,1901996406,405.20,Bradies Taxis ,100249,SN15,Community Services,MH OP N&E Locality,Transport Contracts,Third Party Payments,REVENUE
Wiltshire,http://opendatacommunities.org/id/unitary-authority/wiltshire,07/09/2017,1901996406,801.96,Bradies Taxis ,100249,SN15,Neighbourhood & Planning,Mainstream Primary,Transport Contracts,Third Party Payments,REVENUE
Wiltshire,http://opendatacommunities.org/id/unitary-authority/wiltshire,07/09/2017,1901996406,801.96,Bradies Taxis ,100249,SN15,Neighbourhood & Planning,Mainstream 16+ FE,Transport Contracts,Third Party Payments,REVENUE
Wiltshire,http://opendatacommunities.org/id/unitary-authority/wiltshire,07/09/2017,1901996406,810.40,Bradies Taxis ,100249,SN15,Community Services,Cricklade,Transport Contracts,Third Party Payments,REVENUE
Wiltshire,http://opendatacommunities.org/id/unitary-authority/wiltshire,07/09/2017,1901996406,3999.15,Bradies Taxis ,100249,SN15,Neighbourhood & Planning,Connect 2 Wiltshire,Transport Contracts,Third Party Payments,REVENUE
Wiltshire,http://opendatacommunities.org/id/unitary-authority/wiltshire,07/09/2017,1901996407,400.00,Bradies Taxis ,100249,SN15,Neighbourhood & Planning,Connect 2 Wiltshire,Transport Contracts,Third Party Payments,REVENUE
Wiltshire,http://opendatacommunities.org/id/unitary-authority/wiltshire,07/09/2017,1901996417,400.00,Bradies Taxis ,100249,SN15,Neighbourhood & Planning,Public Transport,Transport Contracts,Third Party Payments,REVENUE
Wiltshire,http://opendatacommunities.org/id/unitary-authority/wiltshire,19/09/2017,1902000385,7800.00,Bradies Taxis - Concession Scheme O ,114143,SN15,Neighbourhood & Planning,Concessionary Fares,Compensation for Concessionary fares,Third Party Payments,REVENUE
Wiltshire,http://opendatacommunities.org/id/unitary-authority/wiltshire,29/09/2017,1902000823,321.94,Brakes Bros Ltd ,110344,TN24,Neighbourhood & Planning,Marlborough LC Cafe,Catering,Supplies and Services,REVENUE
Wiltshire,http://opendatacommunities.org/id/unitary-authority/wiltshire,21/09/2017,5107107441,287.18,Brakes Bros Ltd ,110344,TN24,Children & Education,Braeside,Catering,Supplies and Services,REVENUE
Wiltshire,http://opendatacommunities.org/id/unitary-authority/wiltshire,20/09/2017,1902000464,252.17,Bramley Homecare ,140933,SP7 ,Community Services,HTLAH - Neighbourhoo,Interim Support Plan - HTLAH,Third Party Payments,REVENUE
Wiltshire,http://opendatacommunities.org/id/unitary-authority/wiltshire,21/09/2017,5107107652,300.00,Brandon Hire ,130758,SP2 ,Neighbourhood & Planning,DLO,Staff Training Course Costs,Employee Related,REVENUE
Wiltshire,http://opendatacommunities.org/id/unitary-authority/wiltshire,21/09/2017,5107107673,600.00,Brandon Hire ,130758,SP2 ,Neighbourhood & Planning,DLO,Staff Training Course Costs,Employee Related,REVENUE
Wiltshire,http://opendatacommunities.org/id/unitary-authority/wiltshire,21/09/2017,5107107678,300.00,Brandon Hire ,130758,SP2 ,Neighbourhood & Planning,DLO,Staff Training Course Costs,Employee Related,REVENUE
Wiltshire,http://opendatacommunities.org/id/unitary-authority/wiltshire,15/09/2017,5107110943,329938.36,Bray & Slaughter Limited ,137562,BS3 ,Wiltshire Council,Wiltshire Council,Buildings Minor Alterations,Premises Related,CAPITAL
Wiltshire,http://opendatacommunities.org/id/unitary-authority/wiltshire,21/09/2017,5107114921,65017.45,Bray & Slaughter Limited ,137562,BS3 ,Wiltshire Council,Wiltshire Council,Buildings Minor Alterations,Premises Related,CAPITAL
Wiltshire,http://opendatacommunities.org/id/unitary-authority/wiltshire,14/09/2017,5107102729,402.50,Brenntag UK Ltd ,100412,LS19,Neighbourhood & Planning,Five Rivers,Chemicals - Others,Premises Related,REVENUE
Wiltshire,http://opendatacommunities.org/id/unitary-authority/wiltshire,20/09/2017,5107106552,762.75,Brenntag UK Ltd ,100412,LS19,Neighbourhood & Planning,Devizes,Chemicals - Others,Premises Related,REVENUE
Wiltshire,http://opendatacommunities.org/id/unitary-authority/wiltshire,14/09/2017,5107106571,467.78,Brenntag UK Ltd ,100412,LS19,Neighbourhood & Planning,Calne Leisure Centre,Cleaning Materials - Buildings,Premises Related,REVENUE
Wiltshire,http://opendatacommunities.org/id/unitary-authority/wiltshire,06/09/2017,5107107674,323.96,Brenntag UK Ltd ,100412,LS19,Neighbourhood & Planning,Springfield Leisr Cn,Chemicals - Others,Premises Related,REVENUE
Wiltshire,http://opendatacommunities.org/id/unitary-authority/wiltshire,28/09/2017,5107114793,411.99,Brian Bell Ltd T/A Autosmart ,110354,SN3 ,Neighbourhood & Planning,Fleet,Vehicle Parts,Transport Related,REVENUE
Wiltshire,http://opendatacommunities.org/id/unitary-authority/wiltshire,20/09/2017,5107114796,380.90,Brian Bell Ltd T/A Autosmart ,110354,SN3 ,Neighbourhood & Planning,Fleet,Vehicle Parts,Transport Related,REVENUE
Wiltshire,http://opendatacommunities.org/id/unitary-authority/wiltshire,15/09/2017,5107111018,1012.50,Bristol Auto Electrics ,114191,BA13,Neighbourhood & Planning,Fleet,Vehicle Parts,Transport Related,REVENUE
Wiltshire,http://opendatacommunities.org/id/unitary-authority/wiltshire,15/09/2017,5107112120,290.82,Bristol Auto Electrics ,114191,BA13,Neighbourhood & Planning,Fleet,Vehicle Repairs & Maintenance,Transport Related,REVENUE
Wiltshire,http://opendatacommunities.org/id/unitary-authority/wiltshire,15/09/2017,5107112121,371.00,Bristol Auto Electrics ,114191,BA13,Neighbourhood & Planning,Fleet,Vehicle Parts,Transport Related,REVENUE
Wiltshire,http://opendatacommunities.org/id/unitary-authority/wiltshire,20/09/2017,5107114791,1402.53,Bristol Auto Electrics ,114191,BA13,Neighbourhood & Planning,Fleet,Vehicle Parts,Transport Related,REVENUE
Wiltshire,http://opendatacommunities.org/id/unitary-authority/wiltshire,28/09/2017,5107115538,595.00,Bristol Auto Electrics ,114191,BA13,Neighbourhood & Planning,Fleet,Vehicle Repairs & Maintenance,Transport Related,REVENUE
Wiltshire,http://opendatacommunities.org/id/unitary-authority/wiltshire,28/09/2017,5107115560,661.00,Bristol Auto Electrics ,114191,BA13,Neighbourhood & Planning,Fleet,Vehicle Repairs & Maintenance,Transport Related,REVENUE
Wiltshire,http://opendatacommunities.org/id/unitary-authority/wiltshire,20/09/2017,5107110933,1500.00,Bristol City Council ,129855,BS1 ,Children & Education,EYLearnDevTm,Professional Subscriptions/Memberships,Employee Related,REVENUE
Wiltshire,http://opendatacommunities.org/id/unitary-authority/wiltshire,18/09/2017,1901999603,655.01,Bristow & Sutor ,132631,B98 ,Resources,Revs&Bens-Revenues,Cash Collection / Bailiff's Fees,Supplies and Services,REVENUE
Wiltshire,http://opendatacommunities.org/id/unitary-authority/wiltshire,27/09/2017,1902008520,362.00,Bristow & Sutor ,132631,B98 ,Resources,Revs&Bens-Revenues,Cash Collection / Bailiff's Fees,Supplies and Services,REVENUE
Wiltshire,http://opendatacommunities.org/id/unitary-authority/wiltshire,20/09/2017,5107114020,250.00,British Forces Resettlement Service ,137896,LE1 ,Neighbourhood & Planning,Wilts Incubation Env,Marketing and Promotions,Supplies and Services,REVENUE
Wiltshire,http://opendatacommunities.org/id/unitary-authority/wiltshire,05/09/2017,1901981047,32893.69,British Telecom ,100310,DH98,Resources,Main xchg phon lines,Telephones - Landlines (incl fax),Supplies and Services,REVENUE
Wiltshire,http://opendatacommunities.org/id/unitary-authority/wiltshire,19/09/2017,1901999634,2469.95,Bromford Housing Group ,101149,WV10,Neighbourhood & Planning,Hsg Strat & Enabling,Payments to Contractors - Other,Third Party Payments,REVENUE
Wiltshire,http://opendatacommunities.org/id/unitary-authority/wiltshire,21/09/2017,1902000970,2469.95,Bromford Housing Group ,101149,WV10,Neighbourhood & Planning,Hsg Strat & Enabling,Payments to Contractors - Other,Third Party Payments,REVENUE
Wiltshire,http://opendatacommunities.org/id/unitary-authority/wiltshire,22/09/2017,1902001354,5300.00,Bruton School for Girls ,135251,BA10,Children & Education,IndepSpecialSchFees,Educational Fees,Supplies and Services,REVENUE
Wiltshire,http://opendatacommunities.org/id/unitary-authority/wiltshire,25/09/2017,5107116744,513.66,Bruton School for Girls ,135251,BA10,Neighbourhood & Planning,SEN Non Contract Exp,Educational Fees,Supplies and Services,REVENUE
Wiltshire,http://opendatacommunities.org/id/unitary-authority/wiltshire,25/09/2017,5107116745,297.50,Bruton School for Girls ,135251,BA10,Children & Education,SENSORY SERVICE,Educational Fees,Supplies and Services,REVENUE
Wiltshire,http://opendatacommunities.org/id/unitary-authority/wiltshire,15/09/2017,5107100276,8107.50,BWSIPP Trustees Ltd ,131981,SN15,Resources,Youth Centres,Premises Rental / Hire Charges,Premises Related,REVENUE
Wiltshire,http://opendatacommunities.org/id/unitary-authority/wiltshire,13/09/2017,1901997837,1786.00,C & G Tarmac Surfacing Ltd ,101697,SP3 ,Neighbourhood & Planning,Responsive Repairs,Premises Related Other Maintenance Costs,Premises Related,REVENUE
Wiltshire,http://opendatacommunities.org/id/unitary-authority/wiltshire,20/09/2017,1902000856,1070.00,C & G Tarmac Surfacing Ltd ,101697,SP3 ,Neighbourhood & Planning,Responsive Repairs,Premises Related Other Maintenance Costs,Premises Related,REVENUE
Wiltshire,http://opendatacommunities.org/id/unitary-authority/wiltshire,05/09/2017,1901995432,3900.00,C Cryer Ltd ,145662,SN15,Neighbourhood & Planning,ESIF SME Initiative,Consultants Fees,Supplies and Services,REVENUE
Wiltshire,http://opendatacommunities.org/id/unitary-authority/wiltshire,13/09/2017,1901997777,1589.86,C.A.P. Security ,129128,BS15,Wiltshire Council,Wiltshire Council,Payments to Contractors - Other,Third Party Payments,CAPITAL
Wiltshire,http://opendatacommunities.org/id/unitary-authority/wiltshire,06/09/2017,1901996021,3237.67,Calne Travel ,100267,SN11,Neighbourhood & Planning,Mainstream Secondary,Transport Contracts,Third Party Payments,REVENUE
Wiltshire,http://opendatacommunities.org/id/unitary-authority/wiltshire,06/09/2017,1901996022,4170.63,Calne Travel ,100267,SN11,Neighbourhood & Planning,Mainstream Secondary,Transport Contracts,Third Party Payments,REVENUE
Wiltshire,http://opendatacommunities.org/id/unitary-authority/wiltshire,01/09/2017,5107106810,23166.67,Cambian Asperger Syndrome Services ,110433,W6 9,Children & Education,IndepSpecialSchFees,Educational Fees,Supplies and Services,REVENUE
Wiltshire,http://opendatacommunities.org/id/unitary-authority/wiltshire,01/09/2017,5107106811,35848.79,Cambian Asperger Syndrome Services ,110433,W6 9,Children & Education,IndepSpecialSchFees,Educational Fees,Supplies and Services,REVENUE
Wiltshire,http://opendatacommunities.org/id/unitary-authority/wiltshire,01/09/2017,5107106812,23166.67,Cambian Asperger Syndrome Services ,110433,W6 9,Children & Education,IndepSpecialSchFees,Educational Fees,Supplies and Services,REVENUE
Wiltshire,http://opendatacommunities.org/id/unitary-authority/wiltshire,01/09/2017,5107106813,38270.87,Cambian Asperger Syndrome Services ,110433,W6 9,Children & Education,IndepSpecialSchFees,Educational Fees,Supplies and Services,REVENUE
Wiltshire,http://opendatacommunities.org/id/unitary-authority/wiltshire,12/09/2017,5107109317,9572.21,Cambian Autism Services Ltd ,110434,W6 9,Children & Education,IndepSpecialSchFees,Educational Fees,Supplies and Services,REVENUE
Wiltshire,http://opendatacommunities.org/id/unitary-authority/wiltshire,12/09/2017,5107109317,9572.21,Cambian Autism Services Ltd ,110434,W6 9,Children & Education,0-25 extnl disabty p,Educational Fees,Supplies and Services,REVENUE
Wiltshire,http://opendatacommunities.org/id/unitary-authority/wiltshire,12/09/2017,5107110069,9572.21,Cambian Autism Services Ltd ,110434,W6 9,Children & Education,IndepSpecialSchFees,Educational Fees,Supplies and Services,REVENUE
Wiltshire,http://opendatacommunities.org/id/unitary-authority/wiltshire,12/09/2017,5107110070,9572.21,Cambian Autism Services Ltd ,110434,W6 9,Children & Education,0-25 extnl disabty p,Educational Fees,Supplies and Services,REVENUE
Wiltshire,http://opendatacommunities.org/id/unitary-authority/wiltshire,12/09/2017,5107110225,9572.21,Cambian Autism Services Ltd ,110434,W6 9,Children & Education,IndepSpecialSchFees,Educational Fees,Supplies and Services,REVENUE
Wiltshire,http://opendatacommunities.org/id/unitary-authority/wiltshire,12/09/2017,5107110226,9572.21,Cambian Autism Services Ltd ,110434,W6 9,Children & Education,0-25 extnl disabty p,Educational Fees,Supplies and Services,REVENUE
Wiltshire,http://opendatacommunities.org/id/unitary-authority/wiltshire,28/09/2017,5107118581,23712.98,Cambian Autism Services Ltd ,110434,W6 9,Children & Education,IndepSpecialSchFees,Educational Fees,Supplies and Services,REVENUE
Wiltshire,http://opendatacommunities.org/id/unitary-authority/wiltshire,28/09/2017,5107118582,41184.74,Cambian Autism Services Ltd ,110434,W6 9,Children & Education,0-25 extnl disabty p,Educational Fees,Supplies and Services,REVENUE
Wiltshire,http://opendatacommunities.org/id/unitary-authority/wiltshire,28/09/2017,5107118583,9572.21,Cambian Autism Services Ltd ,110434,W6 9,Children & Education,IndepSpecialSchFees,Educational Fees,Supplies and Services,REVENUE
Wiltshire,http://opendatacommunities.org/id/unitary-authority/wiltshire,28/09/2017,5107118584,9572.21,Cambian Autism Services Ltd ,110434,W6 9,Children & Education,0-25 extnl disabty p,Educational Fees,Supplies and Services,REVENUE
Wiltshire,http://opendatacommunities.org/id/unitary-authority/wiltshire,28/09/2017,5107118585,21751.45,Cambian Autism Services Ltd ,110434,W6 9,Children & Education,IndepSpecialSchFees,Educational Fees,Supplies and Services,REVENUE
Wiltshire,http://opendatacommunities.org/id/unitary-authority/wiltshire,28/09/2017,5107118586,37841.55,Cambian Autism Services Ltd ,110434,W6 9,Children & Education,0-25 extnl disabty p,Educational Fees,Supplies and Services,REVENUE
Wiltshire,http://opendatacommunities.org/id/unitary-authority/wiltshire,28/09/2017,5107118587,15857.00,Cambian Autism Services Ltd ,110434,W6 9,Children & Education,TOP UP POST 16,Educational Fees,Supplies and Services,REVENUE
Wiltshire,http://opendatacommunities.org/id/unitary-authority/wiltshire,28/09/2017,5107118588,15857.00,Cambian Autism Services Ltd ,110434,W6 9,Children & Education,0-25 extnl disabty p,Educational Fees,Supplies and Services,REVENUE
Wiltshire,http://opendatacommunities.org/id/unitary-authority/wiltshire,28/09/2017,5107118589,3523.78,Cambian Autism Services Ltd ,110434,W6 9,Children & Education,TOP UP POST 16,Educational Fees,Supplies and Services,REVENUE
Wiltshire,http://opendatacommunities.org/id/unitary-authority/wiltshire,28/09/2017,5107118590,13047.51,Cambian Autism Services Ltd ,110434,W6 9,Children & Education,0-25 extnl disabty p,Educational Fees,Supplies and Services,REVENUE
Wiltshire,http://opendatacommunities.org/id/unitary-authority/wiltshire,28/09/2017,5107118591,16879.12,Cambian Autism Services Ltd ,110434,W6 9,Children & Education,IndepSpecialSchFees,Educational Fees,Supplies and Services,REVENUE
Wiltshire,http://opendatacommunities.org/id/unitary-authority/wiltshire,28/09/2017,5107118592,29313.16,Cambian Autism Services Ltd ,110434,W6 9,Children & Education,0-25 extnl disabty p,Educational Fees,Supplies and Services,REVENUE
Wiltshire,http://opendatacommunities.org/id/unitary-authority/wiltshire,25/09/2017,1902001739,9459.05,Canon  Uk  Ltd ,110444,RH2 ,Resources,DesignPrintTrowbridg,Photocopier Rental,Supplies and Services,REVENUE
Wiltshire,http://opendatacommunities.org/id/unitary-authority/wiltshire,25/09/2017,1902001739,57783.37,Canon  Uk  Ltd ,110444,RH2 ,Resources,Canon Copier Contrct,Photocopier Rental,Supplies and Services,REVENUE
Wiltshire,http://opendatacommunities.org/id/unitary-authority/wiltshire,15/09/2017,5107110959,349.05,Canon  Uk  Ltd ,110444,RH2 ,Resources,Canon Copier Contrct,Photocopier Rental,Supplies and Services,REVENUE
Wiltshire,http://opendatacommunities.org/id/unitary-authority/wiltshire,15/09/2017,5107110961,349.05,Canon  Uk  Ltd ,110444,RH2 ,Resources,Canon Copier Contrct,Photocopier Rental,Supplies and Services,REVENUE
Wiltshire,http://opendatacommunities.org/id/unitary-authority/wiltshire,15/09/2017,5107110962,349.05,Canon  Uk  Ltd ,110444,RH2 ,Resources,Canon Copier Contrct,Photocopier Rental,Supplies and Services,REVENUE
Wiltshire,http://opendatacommunities.org/id/unitary-authority/wiltshire,15/09/2017,5107110963,349.05,Canon  Uk  Ltd ,110444,RH2 ,Resources,Canon Copier Contrct,Photocopier Rental,Supplies and Services,REVENUE
Wiltshire,http://opendatacommunities.org/id/unitary-authority/wiltshire,15/09/2017,5107110964,338.55,Canon  Uk  Ltd ,110444,RH2 ,Resources,Canon Copier Contrct,Photocopier Rental,Supplies and Services,REVENUE
Wiltshire,http://opendatacommunities.org/id/unitary-authority/wiltshire,28/09/2017,5107107930,1000.00,Carbon Consult Limited ,143175,BA2 ,Wiltshire Council,Wiltshire Council,Consultants Fees,Supplies and Services,CAPITAL
Wiltshire,http://opendatacommunities.org/id/unitary-authority/wiltshire,06/09/2017,1901993493,426.16,Care Matters (Wiltshire) Ltd ,126011,BA12,Community Services,HTLAH - Neighbourhoo,Interim Support Plan - HTLAH,Third Party Payments,REVENUE
Wiltshire,http://opendatacommunities.org/id/unitary-authority/wiltshire,20/09/2017,1902000461,428.16,Care Matters (Wiltshire) Ltd ,126011,BA12,Community Services,HTLAH - Neighbourhoo,Interim Support Plan - HTLAH,Third Party Payments,REVENUE
Wiltshire,http://opendatacommunities.org/id/unitary-authority/wiltshire,06/09/2017,1901993501,1108.50,Carewatch Wessex ,100762,SP8 ,Community Services,HTLAH - Neighbourhoo,Interim Support Plan - HTLAH,Third Party Payments,REVENUE
Wiltshire,http://opendatacommunities.org/id/unitary-authority/wiltshire,06/09/2017,1901993502,476.00,Carewatch Wessex ,100762,SP8 ,Community Services,HTLAH - Neighbourhoo,Interim Support Plan - HTLAH,Third Party Payments,REVENUE
Wiltshire,http://opendatacommunities.org/id/unitary-authority/wiltshire,26/09/2017,1902001458,272.09,Carewatch Wessex ,100762,SP8 ,Community Services,HTLAH - Neighbourhoo,Interim Support Plan - HTLAH,Third Party Payments,REVENUE
Wiltshire,http://opendatacommunities.org/id/unitary-authority/wiltshire,26/09/2017,1902001459,483.85,Carewatch Wessex ,100762,SP8 ,Community Services,HTLAH - Neighbourhoo,Interim Support Plan - HTLAH,Third Party Payments,REVENUE
Wiltshire,http://opendatacommunities.org/id/unitary-authority/wiltshire,01/09/2017,1901994652,974.84,Carpetright ,114537,RM19,Community Services,MH AOWA N&E Locality,Other Social & Welfare Costs,Third Party Payments,REVENUE
Wiltshire,http://opendatacommunities.org/id/unitary-authority/wiltshire,08/09/2017,5107107817,2787.21,Carter Brown The Expert Service ,133141,B60 ,Children & Education,In house fostering t,Carer Recruitment & Training,Third Party Payments,REVENUE
Wiltshire,http://opendatacommunities.org/id/unitary-authority/wiltshire,08/09/2017,5107107818,1730.23,Carter Brown The Expert Service ,133141,B60 ,Children & Education,In house fostering t,Carer Recruitment & Training,Third Party Payments,REVENUE
Wiltshire,http://opendatacommunities.org/id/unitary-authority/wiltshire,25/09/2017,5107116455,360.00,Carter Brown The Expert Service ,133141,B60 ,Children & Education,In house fostering t,Carer Recruitment & Training,Third Party Payments,REVENUE
Wiltshire,http://opendatacommunities.org/id/unitary-authority/wiltshire,25/09/2017,5107116457,294.40,Carter Brown The Expert Service ,133141,B60 ,Children & Education,In house fostering t,Carer Recruitment & Training,Third Party Payments,REVENUE
Wiltshire,http://opendatacommunities.org/id/unitary-authority/wiltshire,21/09/2017,1901995323,834.27,Castle Water Ltd ,145216,PH10,Resources,Marlb Leisure Ctr,Water - metered,Premises Related,REVENUE
Wiltshire,http://opendatacommunities.org/id/unitary-authority/wiltshire,21/09/2017,1901995330,345.31,Castle Water Ltd ,145216,PH10,Resources,Wootton Bassett LKSC,Water - metered,Premises Related,REVENUE
Wiltshire,http://opendatacommunities.org/id/unitary-authority/wiltshire,29/09/2017,1901996508,834.40,Castle Water Ltd ,145216,PH10,Resources,Marlb Leisure Ctr,Water - sewerage,Premises Related,REVENUE
Wiltshire,http://opendatacommunities.org/id/unitary-authority/wiltshire,11/09/2017,5107107783,300.00,CB Skip Hire ,110484,SP1 ,Neighbourhood & Planning,DLO,Equipment Purchase,Supplies and Services,REVENUE
Wiltshire,http://opendatacommunities.org/id/unitary-authority/wiltshire,07/09/2017,5107107784,300.00,CB Skip Hire ,110484,SP1 ,Neighbourhood & Planning,Responsive Repairs,Equipment Purchase,Supplies and Services,REVENUE
Wiltshire,http://opendatacommunities.org/id/unitary-authority/wiltshire,21/09/2017,5107110567,585.00,CB Skip Hire ,110484,SP1 ,Neighbourhood & Planning,DLO,Equipment Purchase,Supplies and Services,REVENUE
Wiltshire,http://opendatacommunities.org/id/unitary-authority/wiltshire,21/09/2017,5107110588,286.00,CB Skip Hire ,110484,SP1 ,Neighbourhood & Planning,DLO,Equipment Purchase,Supplies and Services,REVENUE
Wiltshire,http://opendatacommunities.org/id/unitary-authority/wiltshire,05/09/2017,1901995440,8092.50,CFH Total Document ,133330,BA3 ,Neighbourhood & Planning,Waste Mangmt Team,Marketing and Promotions,Supplies and Services,REVENUE
Wiltshire,http://opendatacommunities.org/id/unitary-authority/wiltshire,05/09/2017,1901995442,946.92,CFH Total Document ,133330,BA3 ,Neighbourhood & Planning,Waste Mangmt Team,Marketing and Promotions,Supplies and Services,REVENUE
Wiltshire,http://opendatacommunities.org/id/unitary-authority/wiltshire,08/09/2017,1901996490,288.71,CFH Total Document ,133330,BA3 ,Resources,Revs&Bens-Housng Ben,Postage,Supplies and Services,REVENUE
Wiltshire,http://opendatacommunities.org/id/unitary-authority/wiltshire,08/09/2017,1901996490,288.71,CFH Total Document ,133330,BA3 ,Resources,Revs&Bens-Revenues,Postage,Supplies and Services,REVENUE
Wiltshire,http://opendatacommunities.org/id/unitary-authority/wiltshire,14/09/2017,1901996775,1484.69,CFH Total Document ,133330,BA3 ,Resources,Revs&Bens-Housng Ben,Payments to Contractors - Other,Third Party Payments,REVENUE
Wiltshire,http://opendatacommunities.org/id/unitary-authority/wiltshire,14/09/2017,1901996775,1484.69,CFH Total Document ,133330,BA3 ,Resources,Revs&Bens-Revenues,Payments to Contractors - Other,Third Party Payments,REVENUE
Wiltshire,http://opendatacommunities.org/id/unitary-authority/wiltshire,14/09/2017,1901996779,260.00,CFH Total Document ,133330,BA3 ,Resources,Revs&Bens-Revenues,ICT - Support arrangements,Supplies and Services,REVENUE
Wiltshire,http://opendatacommunities.org/id/unitary-authority/wiltshire,12/09/2017,1901997126,391.85,CFH Total Document ,133330,BA3 ,Resources,Revs&Bens-Housng Ben,Postage,Supplies and Services,REVENUE
Wiltshire,http://opendatacommunities.org/id/unitary-authority/wiltshire,12/09/2017,1901997126,391.85,CFH Total Document ,133330,BA3 ,Resources,Revs&Bens-Revenues,Postage,Supplies and Services,REVENUE
Wiltshire,http://opendatacommunities.org/id/unitary-authority/wiltshire,14/09/2017,1901997297,926.64,CFH Total Document ,133330,BA3 ,Resources,Revs&Bens-Housng Ben,Postage,Supplies and Services,REVENUE
Wiltshire,http://opendatacommunities.org/id/unitary-authority/wiltshire,14/09/2017,1901997297,926.64,CFH Total Document ,133330,BA3 ,Resources,Revs&Bens-Revenues,Postage,Supplies and Services,REVENUE
Wiltshire,http://opendatacommunities.org/id/unitary-authority/wiltshire,14/09/2017,1901997300,2771.08,CFH Total Document ,133330,BA3 ,Resources,Revs&Bens-Housng Ben,Postage,Supplies and Services,REVENUE
Wiltshire,http://opendatacommunities.org/id/unitary-authority/wiltshire,14/09/2017,1901997300,2771.08,CFH Total Document ,133330,BA3 ,Resources,Revs&Bens-Revenues,Postage,Supplies and Services,REVENUE
Wiltshire,http://opendatacommunities.org/id/unitary-authority/wiltshire,05/09/2017,1901986474,357.71,Chapple  and  Jenkins Limited ,110503,BS15,Neighbourhood & Planning,Marlborough LC Cafe,Catering,Supplies and Services,REVENUE
Wiltshire,http://opendatacommunities.org/id/unitary-authority/wiltshire,19/09/2017,1901994534,496.66,Chapple  and  Jenkins Limited ,110503,BS15,Neighbourhood & Planning,Marlborough LC Cafe,Catering,Supplies and Services,REVENUE
Wiltshire,http://opendatacommunities.org/id/unitary-authority/wiltshire,20/09/2017,5107106347,612.82,Chapple  and  Jenkins Limited ,110503,BS15,Neighbourhood & Planning,Devizes,Vending costs,Supplies and Services,REVENUE
Wiltshire,http://opendatacommunities.org/id/unitary-authority/wiltshire,25/09/2017,5107116487,2115.00,Chargemaster Plc ,144717,LU1 ,Neighbourhood & Planning,Fleet,Equipment Maintenance,Supplies and Services,REVENUE
Wiltshire,http://opendatacommunities.org/id/unitary-authority/wiltshire,01/09/2017,1901994647,1077.00,Chariots Of Hire ,101456,BA12,Neighbourhood & Planning,SEN Secondary,Transport Contracts,Third Party Payments,REVENUE
Wiltshire,http://opendatacommunities.org/id/unitary-authority/wiltshire,19/09/2017,1901995339,1799.61,Chelsea & Westminster Hospital NHS Foundation Trust,138260,WF3 ,Neighbourhood & Planning,Sexual Health GUM,Public Health Commissioning,Supplies and Services,REVENUE
Wiltshire,http://opendatacommunities.org/id/unitary-authority/wiltshire,12/09/2017,1901997220,48750.57,Chippenham BID ,141656,SN15,Wiltshire Council,Wiltshire Council,NNDR - Chippenham,Balance Sheet Accounts,REVENUE
Wiltshire,http://opendatacommunities.org/id/unitary-authority/wiltshire,29/09/2017,1902009088,5250.00,Chippenham Town Council ,110525,SN15,Neighbourhood & Planning,Countryside,Grants Paid to individuals for Tangible Benefits,Supplies and Services,REVENUE
Wiltshire,http://opendatacommunities.org/id/unitary-authority/wiltshire,04/09/2017,5107107450,325.52,Chippenham Vehicle Services Ltd ,125326,SN14,Neighbourhood & Planning,Fleet,Vehicle Parts,Transport Related,REVENUE
Wiltshire,http://opendatacommunities.org/id/unitary-authority/wiltshire,28/09/2017,5107113359,4905.47,Chipside Limited ,110526,SN5 ,Neighbourhood & Planning,Car Park Admin,ICT - Support arrangements,Supplies and Services,REVENUE
Wiltshire,http://opendatacommunities.org/id/unitary-authority/wiltshire,28/09/2017,5107113362,2113.51,Chipside Limited ,110526,SN5 ,Neighbourhood & Planning,Car Park Admin,ICT - Support arrangements,Supplies and Services,REVENUE
Wiltshire,http://opendatacommunities.org/id/unitary-authority/wiltshire,06/09/2017,1901995940,3760.00,Chris Blandford Associates ,114724,TN22,Neighbourhood & Planning,LPS Development,Consultants Fees,Supplies and Services,REVENUE
Wiltshire,http://opendatacommunities.org/id/unitary-authority/wiltshire,05/09/2017,1901995360,413.25,Churchill Contract Services Ltd ,135047,AL5 ,Resources,Market Sales,Cleaning Contracts - Buildings,Premises Related,REVENUE
Wiltshire,http://opendatacommunities.org/id/unitary-authority/wiltshire,05/09/2017,1901995360,477.00,Churchill Contract Services Ltd ,135047,AL5 ,Resources,FM Highway Depots,Cleaning Contracts - Buildings,Premises Related,REVENUE
Wiltshire,http://opendatacommunities.org/id/unitary-authority/wiltshire,05/09/2017,1901995360,571.25,Churchill Contract Services Ltd ,135047,AL5 ,Resources,Unoccupied Sites,Cleaning Contracts - Buildings,Premises Related,REVENUE
Wiltshire,http://opendatacommunities.org/id/unitary-authority/wiltshire,05/09/2017,1901995360,1103.00,Churchill Contract Services Ltd ,135047,AL5 ,Resources,Bourne Hill,Cleaning Contracts - Buildings,Premises Related,REVENUE
Wiltshire,http://opendatacommunities.org/id/unitary-authority/wiltshire,05/09/2017,1901995360,2403.00,Churchill Contract Services Ltd ,135047,AL5 ,Resources,FM Libraries,Cleaning Contracts - Buildings,Premises Related,REVENUE
Wiltshire,http://opendatacommunities.org/id/unitary-authority/wiltshire,06/09/2017,1901995814,262.90,Churchill Contract Services Ltd ,135047,AL5 ,Neighbourhood & Planning,The Old Fire Sttn EC,Cleaning Contracts - Buildings,Premises Related,REVENUE
Wiltshire,http://opendatacommunities.org/id/unitary-authority/wiltshire,06/09/2017,1901995814,317.99,Churchill Contract Services Ltd ,135047,AL5 ,Resources,FM Leisure Centres,Cleaning Contracts - Buildings,Premises Related,REVENUE
Wiltshire,http://opendatacommunities.org/id/unitary-authority/wiltshire,06/09/2017,1901995814,332.55,Churchill Contract Services Ltd ,135047,AL5 ,Resources,Special Schools,Cleaning Contracts - Buildings,Premises Related,REVENUE
Wiltshire,http://opendatacommunities.org/id/unitary-authority/wiltshire,06/09/2017,1901995814,353.43,Churchill Contract Services Ltd ,135047,AL5 ,Neighbourhood & Planning,Manor House Enterpri,Cleaning Contracts - Buildings,Premises Related,REVENUE
Wiltshire,http://opendatacommunities.org/id/unitary-authority/wiltshire,06/09/2017,1901995814,394.12,Churchill Contract Services Ltd ,135047,AL5 ,Resources,Investment Estate,Cleaning Contracts - Buildings,Premises Related,REVENUE
Wiltshire,http://opendatacommunities.org/id/unitary-authority/wiltshire,06/09/2017,1901995814,437.89,Churchill Contract Services Ltd ,135047,AL5 ,Neighbourhood & Planning,Kingsbury Hostel,Cleaning Contracts - Buildings,Premises Related,REVENUE
Wiltshire,http://opendatacommunities.org/id/unitary-authority/wiltshire,06/09/2017,1901995814,655.59,Churchill Contract Services Ltd ,135047,AL5 ,Children & Education,Aspire House,Cleaning Contracts - Buildings,Premises Related,REVENUE
Wiltshire,http://opendatacommunities.org/id/unitary-authority/wiltshire,06/09/2017,1901995814,784.98,Churchill Contract Services Ltd ,135047,AL5 ,Community Services,Bradbury Manor Resp,Cleaning Contracts - Buildings,Premises Related,REVENUE
Wiltshire,http://opendatacommunities.org/id/unitary-authority/wiltshire,06/09/2017,1901995814,1459.14,Churchill Contract Services Ltd ,135047,AL5 ,Resources,Salisbury City Hall,Cleaning Contracts - Buildings,Premises Related,REVENUE
Wiltshire,http://opendatacommunities.org/id/unitary-authority/wiltshire,06/09/2017,1901995814,2654.30,Churchill Contract Services Ltd ,135047,AL5 ,Resources,Bourne Hill,Cleaning Contracts - Buildings,Premises Related,REVENUE
Wiltshire,http://opendatacommunities.org/id/unitary-authority/wiltshire,06/09/2017,1901995814,4147.00,Churchill Contract Services Ltd ,135047,AL5 ,Resources,FM Highway Depots,Cleaning Contracts - Buildings,Premises Related,REVENUE
Wiltshire,http://opendatacommunities.org/id/unitary-authority/wiltshire,06/09/2017,1901995814,4369.36,Churchill Contract Services Ltd ,135047,AL5 ,Resources,Monkton Park,Cleaning Contracts - Buildings,Premises Related,REVENUE
Wiltshire,http://opendatacommunities.org/id/unitary-authority/wiltshire,06/09/2017,1901995814,5639.18,Churchill Contract Services Ltd ,135047,AL5 ,Resources,5 Rivers LC,Cleaning Contracts - Buildings,Premises Related,REVENUE
Wiltshire,http://opendatacommunities.org/id/unitary-authority/wiltshire,06/09/2017,1901995814,7715.30,Churchill Contract Services Ltd ,135047,AL5 ,Resources,Unoccupied Sites,Cleaning Contracts - Buildings,Premises Related,REVENUE
Wiltshire,http://opendatacommunities.org/id/unitary-authority/wiltshire,06/09/2017,1901995814,13621.66,Churchill Contract Services Ltd ,135047,AL5 ,Resources,County Hall Complex,Cleaning Contracts - Buildings,Premises Related,REVENUE
Wiltshire,http://opendatacommunities.org/id/unitary-authority/wiltshire,06/09/2017,1901995814,15238.70,Churchill Contract Services Ltd ,135047,AL5 ,Resources,FM Libraries,Cleaning Contracts - Buildings,Premises Related,REVENUE
Wiltshire,http://opendatacommunities.org/id/unitary-authority/wiltshire,11/09/2017,1901995347,305.12,Churchill Environmental Services ,143816,AL5 ,Children & Education,Sch Compliance Schem,Premises Related Other Maintenance Costs,Premises Related,REVENUE
Wiltshire,http://opendatacommunities.org/id/unitary-authority/wiltshire,11/09/2017,1901996010,375.78,Churchill Environmental Services ,143816,AL5 ,Children & Education,Sch Compliance Schem,Premises Related Other Maintenance Costs,Premises Related,REVENUE
Wiltshire,http://opendatacommunities.org/id/unitary-authority/wiltshire,22/09/2017,1901996061,520.00,Churchill Environmental Services ,143816,AL5 ,Wiltshire Council,Wiltshire Council,Buildings Minor Alterations,Premises Related,CAPITAL
Wiltshire,http://opendatacommunities.org/id/unitary-authority/wiltshire,22/09/2017,1901996062,260.00,Churchill Environmental Services ,143816,AL5 ,Resources,County Hall Complex,Preventative Property Maintenance,Premises Related,REVENUE
Wiltshire,http://opendatacommunities.org/id/unitary-authority/wiltshire,22/09/2017,1901996063,520.00,Churchill Environmental Services ,143816,AL5 ,Wiltshire Council,Wiltshire Council,Buildings Minor Alterations,Premises Related,CAPITAL
Wiltshire,http://opendatacommunities.org/id/unitary-authority/wiltshire,22/09/2017,1901996064,1560.00,Churchill Environmental Services ,143816,AL5 ,Resources,FM Leisure Centres,Preventative Property Maintenance,Premises Related,REVENUE
Wiltshire,http://opendatacommunities.org/id/unitary-authority/wiltshire,22/09/2017,1901996065,520.00,Churchill Environmental Services ,143816,AL5 ,Resources,FM Libraries,Preventative Property Maintenance,Premises Related,REVENUE
Wiltshire,http://opendatacommunities.org/id/unitary-authority/wiltshire,22/09/2017,1901996066,520.00,Churchill Environmental Services ,143816,AL5 ,Wiltshire Council,Wiltshire Council,Buildings Minor Alterations,Premises Related,CAPITAL
Wiltshire,http://opendatacommunities.org/id/unitary-authority/wiltshire,29/09/2017,1901996097,495.00,Churchill Environmental Services ,143816,AL5 ,Children & Education,Sch Compliance Schem,Premises Related Other Maintenance Costs,Premises Related,REVENUE
Wiltshire,http://opendatacommunities.org/id/unitary-authority/wiltshire,22/09/2017,5107116372,925.00,CIPFA Business Limited ,116688,E1 8,Resources,Facilities Managemen,Professional Subscriptions/Memberships,Employee Related,REVENUE
Wiltshire,http://opendatacommunities.org/id/unitary-authority/wiltshire,26/09/2017,5107107796,4830.00,City Environmental Services UK Ltd ,145782,SY4 ,Wiltshire Council,Wiltshire Council,Consultants Fees,Supplies and Services,CAPITAL
Wiltshire,http://opendatacommunities.org/id/unitary-authority/wiltshire,05/09/2017,5107101858,7999.25,CLEAPSS ,113089,UB8 ,Resources,SharedServHRHealSafe,Professional Subscriptions/Memberships,Employee Related,REVENUE
Wiltshire,http://opendatacommunities.org/id/unitary-authority/wiltshire,05/09/2017,1901995454,3333.33,Coachstyle Ltd ,100176,SN14,Neighbourhood & Planning,Mainstream Secondary,Transport Contracts,Third Party Payments,REVENUE
Wiltshire,http://opendatacommunities.org/id/unitary-authority/wiltshire,05/09/2017,1901995454,9999.99,Coachstyle Ltd ,100176,SN14,Neighbourhood & Planning,Mainstream 16+ Sec,Transport Contracts,Third Party Payments,REVENUE
Wiltshire,http://opendatacommunities.org/id/unitary-authority/wiltshire,05/09/2017,1901995454,9999.99,Coachstyle Ltd ,100176,SN14,Neighbourhood & Planning,Mainstream 16+ FE,Transport Contracts,Third Party Payments,REVENUE
Wiltshire,http://opendatacommunities.org/id/unitary-authority/wiltshire,05/09/2017,1901995454,30750.02,Coachstyle Ltd ,100176,SN14,Neighbourhood & Planning,Public Transport,Transport Contracts,Third Party Payments,REVENUE
Wiltshire,http://opendatacommunities.org/id/unitary-authority/wiltshire,05/09/2017,1901995455,1040.00,Coachstyle Ltd ,100176,SN14,Neighbourhood & Planning,Public Transport,Transport Contracts,Third Party Payments,REVENUE
Wiltshire,http://opendatacommunities.org/id/unitary-authority/wiltshire,05/09/2017,1901995456,3467.50,Coachstyle Ltd ,100176,SN14,Neighbourhood & Planning,Mainstream Secondary,Transport Contracts,Third Party Payments,REVENUE
Wiltshire,http://opendatacommunities.org/id/unitary-authority/wiltshire,05/09/2017,1901995458,3483.34,Coachstyle Ltd ,100176,SN14,Neighbourhood & Planning,Mainstream Secondary,Transport Contracts,Third Party Payments,REVENUE
Wiltshire,http://opendatacommunities.org/id/unitary-authority/wiltshire,05/09/2017,1901995459,2992.50,Coachstyle Ltd ,100176,SN14,Neighbourhood & Planning,Mainstream Secondary,Transport Contracts,Third Party Payments,REVENUE
Wiltshire,http://opendatacommunities.org/id/unitary-authority/wiltshire,05/09/2017,1901995460,2992.50,Coachstyle Ltd ,100176,SN14,Neighbourhood & Planning,Mainstream Secondary,Transport Contracts,Third Party Payments,REVENUE
Wiltshire,http://opendatacommunities.org/id/unitary-authority/wiltshire,05/09/2017,1901995461,600.00,Coachstyle Ltd ,100176,SN14,Neighbourhood & Planning,Mainstream 16+ FE,Transport Contracts,Third Party Payments,REVENUE
Wiltshire,http://opendatacommunities.org/id/unitary-authority/wiltshire,05/09/2017,1901995462,1805.00,Coachstyle Ltd ,100176,SN14,Neighbourhood & Planning,Mainstream Secondary,Transport Contract -  Bus Season Tickets,Third Party Payments,REVENUE
Wiltshire,http://opendatacommunities.org/id/unitary-authority/wiltshire,05/09/2017,1901995463,4572.67,Coachstyle Ltd ,100176,SN14,Neighbourhood & Planning,Mainstream Secondary,Transport Contract -  Bus Season Tickets,Third Party Payments,REVENUE
Wiltshire,http://opendatacommunities.org/id/unitary-authority/wiltshire,18/09/2017,1901999554,3995.83,Coachstyle Ltd ,100176,SN14,Neighbourhood & Planning,Mainstream Secondary,Transport Contracts,Third Party Payments,REVENUE
Wiltshire,http://opendatacommunities.org/id/unitary-authority/wiltshire,19/09/2017,1902000372,8675.93,Coachstyle Ltd ,100176,SN14,Neighbourhood & Planning,Concessionary Fares,Compensation for Concessionary fares,Third Party Payments,REVENUE
Wiltshire,http://opendatacommunities.org/id/unitary-authority/wiltshire,29/09/2017,5107118476,304.68,Coate Auto Repair Services ,141902,SN10,Neighbourhood & Planning,Fleet,Vehicle Parts,Transport Related,REVENUE
Wiltshire,http://opendatacommunities.org/id/unitary-authority/wiltshire,29/09/2017,5107118480,290.15,Coate Auto Repair Services ,141902,SN10,Neighbourhood & Planning,Fleet,Vehicle Repairs & Maintenance,Transport Related,REVENUE
Wiltshire,http://opendatacommunities.org/id/unitary-authority/wiltshire,28/09/2017,5107118483,327.96,Coate Auto Repair Services ,141902,SN10,Neighbourhood & Planning,Fleet,Vehicle Repairs & Maintenance,Transport Related,REVENUE
Wiltshire,http://opendatacommunities.org/id/unitary-authority/wiltshire,28/09/2017,5107118485,2115.07,Coate Auto Repair Services ,141902,SN10,Neighbourhood & Planning,Fleet,Vehicle Repairs & Maintenance,Transport Related,REVENUE
Wiltshire,http://opendatacommunities.org/id/unitary-authority/wiltshire,11/09/2017,5107108320,3500.00,Cobweb Information Ltd ,101326,NE11,Neighbourhood & Planning,Swindon & Wilts LEP,ICT - Support arrangements,Supplies and Services,REVENUE
Wiltshire,http://opendatacommunities.org/id/unitary-authority/wiltshire,11/09/2017,1901996719,1520.43,Comensura Limited ,130253,LU1 ,Neighbourhood & Planning,East Operations,Agency Staff,Employee Related,REVENUE
Wiltshire,http://opendatacommunities.org/id/unitary-authority/wiltshire,11/09/2017,1901996719,1914.03,Comensura Limited ,130253,LU1 ,Children & Education,CiC Through Team Nor,Agency Staff,Employee Related,REVENUE
Wiltshire,http://opendatacommunities.org/id/unitary-authority/wiltshire,11/09/2017,1901996719,2025.35,Comensura Limited ,130253,LU1 ,Resources,New Build Team,Agency Staff,Employee Related,REVENUE
Wiltshire,http://opendatacommunities.org/id/unitary-authority/wiltshire,11/09/2017,1901996719,2200.32,Comensura Limited ,130253,LU1 ,Resources,Procurement,Agency Staff,Employee Related,REVENUE
Wiltshire,http://opendatacommunities.org/id/unitary-authority/wiltshire,11/09/2017,1901996719,2860.84,Comensura Limited ,130253,LU1 ,Children & Education,MASH (prev R&A),Agency Staff,Employee Related,REVENUE
Wiltshire,http://opendatacommunities.org/id/unitary-authority/wiltshire,11/09/2017,1901996719,3914.52,Comensura Limited ,130253,LU1 ,Community Services,Emergency Duty Servc,Agency Staff,Employee Related,REVENUE
Wiltshire,http://opendatacommunities.org/id/unitary-authority/wiltshire,11/09/2017,1901996719,3997.42,Comensura Limited ,130253,LU1 ,Resources,HR-Recruitment & DBS,Agency Staff,Employee Related,REVENUE
Wiltshire,http://opendatacommunities.org/id/unitary-authority/wiltshire,11/09/2017,1901996719,4120.82,Comensura Limited ,130253,LU1 ,Children & Education,Safeguarding Ass Nth,Agency Staff,Employee Related,REVENUE
Wiltshire,http://opendatacommunities.org/id/unitary-authority/wiltshire,11/09/2017,1901996719,4161.04,Comensura Limited ,130253,LU1 ,Neighbourhood & Planning,North Operations,Agency Staff,Employee Related,REVENUE
Wiltshire,http://opendatacommunities.org/id/unitary-authority/wiltshire,11/09/2017,1901996732,1339.40,Comensura Limited ,130253,LU1 ,Children & Education,Children in Care,Agency Staff,Employee Related,REVENUE
Wiltshire,http://opendatacommunities.org/id/unitary-authority/wiltshire,11/09/2017,1901996732,1412.85,Comensura Limited ,130253,LU1 ,Community Services,Hospital - Great Wes,Agency Staff,Employee Related,REVENUE
Wiltshire,http://opendatacommunities.org/id/unitary-authority/wiltshire,11/09/2017,1901996732,1430.42,Comensura Limited ,130253,LU1 ,Children & Education,MASH (prev R&A),Agency Staff,Employee Related,REVENUE
Wiltshire,http://opendatacommunities.org/id/unitary-authority/wiltshire,11/09/2017,1901996732,1650.24,Comensura Limited ,130253,LU1 ,Resources,Procurement,Agency Staff,Employee Related,REVENUE
Wiltshire,http://opendatacommunities.org/id/unitary-authority/wiltshire,11/09/2017,1901996732,1928.43,Comensura Limited ,130253,LU1 ,Children & Education,CiC Through Team Nor,Agency Staff,Employee Related,REVENUE
Wiltshire,http://opendatacommunities.org/id/unitary-authority/wiltshire,11/09/2017,1901996732,2030.40,Comensura Limited ,130253,LU1 ,Health & Wellbeing,Director Public Prot,Agency Staff,Employee Related,REVENUE
Wiltshire,http://opendatacommunities.org/id/unitary-authority/wiltshire,11/09/2017,1901996732,2469.25,Comensura Limited ,130253,LU1 ,Resources,Street Name & Number,Agency Staff,Employee Related,REVENUE
Wiltshire,http://opendatacommunities.org/id/unitary-authority/wiltshire,11/09/2017,1901996732,3728.93,Comensura Limited ,130253,LU1 ,Community Services,Emergency Duty Servc,Agency Staff,Employee Related,REVENUE
Wiltshire,http://opendatacommunities.org/id/unitary-authority/wiltshire,11/09/2017,1901996732,3838.60,Comensura Limited ,130253,LU1 ,Neighbourhood & Planning,Growth Hub - Round 3,Agency Staff,Employee Related,REVENUE
Wiltshire,http://opendatacommunities.org/id/unitary-authority/wiltshire,11/09/2017,1901996732,3934.96,Comensura Limited ,130253,LU1 ,Resources,Staffing (Applctns),Agency Staff,Employee Related,REVENUE
Wiltshire,http://opendatacommunities.org/id/unitary-authority/wiltshire,11/09/2017,1901996732,4296.75,Comensura Limited ,130253,LU1 ,Children & Education,Safeguarding Ass Nth,Agency Staff,Employee Related,REVENUE
Wiltshire,http://opendatacommunities.org/id/unitary-authority/wiltshire,11/09/2017,1901996732,7974.00,Comensura Limited ,130253,LU1 ,Health & Wellbeing,FoodSafetyN&W,Agency Staff,Employee Related,REVENUE
Wiltshire,http://opendatacommunities.org/id/unitary-authority/wiltshire,11/09/2017,1901996732,9918.88,Comensura Limited ,130253,LU1 ,Neighbourhood & Planning,East Operations,Agency Staff,Employee Related,REVENUE
Wiltshire,http://opendatacommunities.org/id/unitary-authority/wiltshire,11/09/2017,1901996732,13261.10,Comensura Limited ,130253,LU1 ,Neighbourhood & Planning,South Operations,Agency Staff,Employee Related,REVENUE
Wiltshire,http://opendatacommunities.org/id/unitary-authority/wiltshire,11/09/2017,1901996732,17376.51,Comensura Limited ,130253,LU1 ,Neighbourhood & Planning,North Operations,Agency Staff,Employee Related,REVENUE
Wiltshire,http://opendatacommunities.org/id/unitary-authority/wiltshire,13/09/2017,1901997709,440.00,Community First Trading Limited ,143759,SN10,Neighbourhood & Planning,Public Transport,Transport Contracts,Third Party Payments,REVENUE
Wiltshire,http://opendatacommunities.org/id/unitary-authority/wiltshire,18/09/2017,1901999542,408.97,Community First Trading Limited ,143759,SN10,Neighbourhood & Planning,Mainstream Primary,Transport Contracts,Third Party Payments,REVENUE
Wiltshire,http://opendatacommunities.org/id/unitary-authority/wiltshire,18/09/2017,1901999542,759.52,Community First Trading Limited ,143759,SN10,Neighbourhood & Planning,Mainstream Secondary,Transport Contracts,Third Party Payments,REVENUE
Wiltshire,http://opendatacommunities.org/id/unitary-authority/wiltshire,21/09/2017,1902001254,400.00,Community First Trading Limited ,143759,SN10,Neighbourhood & Planning,SEN Primary,Transport Contracts,Third Party Payments,REVENUE
Wiltshire,http://opendatacommunities.org/id/unitary-authority/wiltshire,19/09/2017,1902000369,3206.26,Community Transport for South Wilts ,100761,SP2 ,Neighbourhood & Planning,Concessionary Fares,Compensation for Concessionary fares,Third Party Payments,REVENUE
Wiltshire,http://opendatacommunities.org/id/unitary-authority/wiltshire,01/09/2017,1901994688,192000.00,Compass AHDC Local Offer Fund ,128607,TA1 ,Children & Education,AimHighDisabldChild,Subsistence expenses,Supplies and Services,REVENUE
Wiltshire,http://opendatacommunities.org/id/unitary-authority/wiltshire,01/09/2017,1901994689,13000.00,Compass Disability Services ,124067,TA1 ,Children & Education,AimHighDisabldChild,Subsistence expenses,Supplies and Services,REVENUE
Wiltshire,http://opendatacommunities.org/id/unitary-authority/wiltshire,04/09/2017,5107107427,192000.00,Compass Disability Services DP User Acct CLosed,110601,TA1 ,Children & Education,AimHighDisabldChild,Subsistence expenses,Supplies and Services,REVENUE
Wiltshire,http://opendatacommunities.org/id/unitary-authority/wiltshire,04/09/2017,5107107428,13000.00,Compass Disability Services DP User Acct CLosed,110601,TA1 ,Children & Education,AimHighDisabldChild,Subsistence expenses,Supplies and Services,REVENUE
Wiltshire,http://opendatacommunities.org/id/unitary-authority/wiltshire,11/09/2017,5107106355,7313.88,Compass Minerals ,112379,CW7 ,Neighbourhood & Planning,Winter Maintenance,Highways - Salt,Supplies and Services,REVENUE
Wiltshire,http://opendatacommunities.org/id/unitary-authority/wiltshire,12/09/2017,5107106394,15957.45,Compass Minerals ,112379,CW7 ,Neighbourhood & Planning,Winter Maintenance,Highways - Salt,Supplies and Services,REVENUE
Wiltshire,http://opendatacommunities.org/id/unitary-authority/wiltshire,19/09/2017,5107106576,4158.84,Compass Minerals ,112379,CW7 ,Neighbourhood & Planning,Winter Maintenance,Highways - Salt,Supplies and Services,REVENUE
Wiltshire,http://opendatacommunities.org/id/unitary-authority/wiltshire,15/09/2017,5107106783,2906.10,Compass Minerals ,112379,CW7 ,Neighbourhood & Planning,Winter Maintenance,Highways - Salt,Supplies and Services,REVENUE
Wiltshire,http://opendatacommunities.org/id/unitary-authority/wiltshire,14/09/2017,5107106784,1966.19,Compass Minerals ,112379,CW7 ,Neighbourhood & Planning,Winter Maintenance,Highways - Salt,Supplies and Services,REVENUE
Wiltshire,http://opendatacommunities.org/id/unitary-authority/wiltshire,13/09/2017,5107110313,12215.96,Compass Minerals ,112379,CW7 ,Neighbourhood & Planning,Winter Maintenance,Highways - Salt,Supplies and Services,REVENUE
Wiltshire,http://opendatacommunities.org/id/unitary-authority/wiltshire,18/09/2017,5107110400,9219.11,Compass Minerals ,112379,CW7 ,Neighbourhood & Planning,Winter Maintenance,Highways - Salt,Supplies and Services,REVENUE
Wiltshire,http://opendatacommunities.org/id/unitary-authority/wiltshire,11/09/2017,5107103308,332.95,Connevans Ltd ,114939,RH1 ,Children & Education,SEND Central Equipme,Client Aids and Adaptations,Third Party Payments,REVENUE
Wiltshire,http://opendatacommunities.org/id/unitary-authority/wiltshire,04/09/2017,5107098535,9265.00,Conservation Contractors ,114941,SN10,Neighbourhood & Planning,Highw Hedges & Trees,Grounds Maintenance,Premises Related,REVENUE
Wiltshire,http://opendatacommunities.org/id/unitary-authority/wiltshire,21/09/2017,5107107955,2150.00,Conservation Contractors ,114941,SN10,Neighbourhood & Planning,Countryside,Grounds Maintenance,Premises Related,REVENUE
Wiltshire,http://opendatacommunities.org/id/unitary-authority/wiltshire,08/09/2017,1901996609,417.27,Corsham Taxis ,100434,SN13,Community Services,MH OP N&E Locality,Transport Contracts,Third Party Payments,REVENUE
Wiltshire,http://opendatacommunities.org/id/unitary-authority/wiltshire,08/09/2017,1901996609,417.27,Corsham Taxis ,100434,SN13,Community Services,Chippenham,Transport Contracts,Third Party Payments,REVENUE
Wiltshire,http://opendatacommunities.org/id/unitary-authority/wiltshire,08/09/2017,1901996609,695.46,Corsham Taxis ,100434,SN13,Community Services,Corsh & Box,Transport Contracts,Third Party Payments,REVENUE
Wiltshire,http://opendatacommunities.org/id/unitary-authority/wiltshire,08/09/2017,1901996610,684.00,Corsham Taxis ,100434,SN13,Community Services,MH OP N&E Locality,Transport Contracts,Third Party Payments,REVENUE
Wiltshire,http://opendatacommunities.org/id/unitary-authority/wiltshire,20/09/2017,5107114065,362.38,Cotswold Outdoor Ltd ,115002,SN16,Neighbourhood & Planning,Springfield Leisr Cn,Equipment Purchase,Supplies and Services,REVENUE
Wiltshire,http://opendatacommunities.org/id/unitary-authority/wiltshire,27/09/2017,5107116993,2265.00,County Community Projects ,144013,GL50,Community Services,MH Commissioned Cont,Grants Paid to individuals for Tangible Benefits,Supplies and Services,REVENUE
Wiltshire,http://opendatacommunities.org/id/unitary-authority/wiltshire,28/09/2017,1901997010,317.68,CSS ,130460,SP2 ,Neighbourhood & Planning,SH Westwood House,Cleaning Contracts - Buildings,Premises Related,REVENUE
Wiltshire,http://opendatacommunities.org/id/unitary-authority/wiltshire,28/09/2017,1901997010,334.00,CSS ,130460,SP2 ,Neighbourhood & Planning,SH Crane Lodge,Cleaning Contracts - Buildings,Premises Related,REVENUE
Wiltshire,http://opendatacommunities.org/id/unitary-authority/wiltshire,28/09/2017,1901997010,502.20,CSS ,130460,SP2 ,Neighbourhood & Planning,SH Nadder Close,Cleaning Contracts - Buildings,Premises Related,REVENUE
Wiltshire,http://opendatacommunities.org/id/unitary-authority/wiltshire,27/09/2017,5107113375,3500.00,Currie & Brown UK Limited ,110663,WC1X,Wiltshire Council,Wiltshire Council,Consultants Fees,Supplies and Services,CAPITAL
Wiltshire,http://opendatacommunities.org/id/unitary-authority/wiltshire,26/09/2017,5107116806,3500.00,Currie & Brown UK Limited ,110663,WC1X,Wiltshire Council,Wiltshire Council,Consultants Fees,Supplies and Services,CAPITAL
Wiltshire,http://opendatacommunities.org/id/unitary-authority/wiltshire,29/09/2017,5107118628,3000.00,Currie & Brown UK Limited ,110663,WC1X,Wiltshire Council,Wiltshire Council,Consultants Fees,Supplies and Services,CAPITAL
Wiltshire,http://opendatacommunities.org/id/unitary-authority/wiltshire,19/09/2017,5107113405,1875.00,Cushman & Wakefield (DTZ) ,130250,B4 5,Wiltshire Council,Wiltshire Council,Consultants Fees,Supplies and Services,CAPITAL
Wiltshire,http://opendatacommunities.org/id/unitary-authority/wiltshire,20/09/2017,5107114018,2497.50,Cushman & Wakefield (DTZ) ,130250,B4 5,Wiltshire Council,Wiltshire Council,Consultants Fees,Supplies and Services,CAPITAL
Wiltshire,http://opendatacommunities.org/id/unitary-authority/wiltshire,13/09/2017,1901997307,1953.74,Cyclescheme Ltd ,137260,BA1 ,Wiltshire Council,Wiltshire Council,Staff Cycle to Work Scheme,Balance Sheet Accounts,REVENUE
Wiltshire,http://opendatacommunities.org/id/unitary-authority/wiltshire,27/09/2017,5107114894,1525.24,D A Archive Solutions Ltd ,115106,SN12,Neighbourhood & Planning,Building Control,Printing External,Supplies and Services,REVENUE
Wiltshire,http://opendatacommunities.org/id/unitary-authority/wiltshire,20/09/2017,1902000632,5377.00,D J Taylor Services Ltd ,144379,RG7 ,Wiltshire Council,Wiltshire Council,Payments to Contractors - Other,Third Party Payments,CAPITAL
Wiltshire,http://opendatacommunities.org/id/unitary-authority/wiltshire,08/09/2017,5107106524,866.80,DACWS Limited ,142787,S72 ,Wiltshire Council,Wiltshire Council,Consultants Fees,Supplies and Services,CAPITAL
Wiltshire,http://opendatacommunities.org/id/unitary-authority/wiltshire,22/09/2017,5107108313,850.15,DACWS Limited ,142787,S72 ,Wiltshire Council,Wiltshire Council,Consultants Fees,Supplies and Services,CAPITAL
Wiltshire,http://opendatacommunities.org/id/unitary-authority/wiltshire,22/09/2017,5107108314,836.60,DACWS Limited ,142787,S72 ,Wiltshire Council,Wiltshire Council,Consultants Fees,Supplies and Services,CAPITAL
Wiltshire,http://opendatacommunities.org/id/unitary-authority/wiltshire,22/09/2017,5107108318,1036.20,DACWS Limited ,142787,S72 ,Wiltshire Council,Wiltshire Council,Consultants Fees,Supplies and Services,CAPITAL
Wiltshire,http://opendatacommunities.org/id/unitary-authority/wiltshire,22/09/2017,5107108319,581.30,DACWS Limited ,142787,S72 ,Wiltshire Council,Wiltshire Council,Consultants Fees,Supplies and Services,CAPITAL
Wiltshire,http://opendatacommunities.org/id/unitary-authority/wiltshire,22/09/2017,5107113369,440.00,DACWS Limited ,142787,S72 ,Wiltshire Council,Wiltshire Council,Consultants Fees,Supplies and Services,CAPITAL
Wiltshire,http://opendatacommunities.org/id/unitary-authority/wiltshire,22/09/2017,5107113371,1094.40,DACWS Limited ,142787,S72 ,Wiltshire Council,Wiltshire Council,Consultants Fees,Supplies and Services,CAPITAL
Wiltshire,http://opendatacommunities.org/id/unitary-authority/wiltshire,26/09/2017,5107116805,469.85,DACWS Limited ,142787,S72 ,Wiltshire Council,Wiltshire Council,Consultants Fees,Supplies and Services,CAPITAL
Wiltshire,http://opendatacommunities.org/id/unitary-authority/wiltshire,28/09/2017,5107118475,440.10,DACWS Limited ,142787,S72 ,Wiltshire Council,Wiltshire Council,Consultants Fees,Supplies and Services,CAPITAL
Wiltshire,http://opendatacommunities.org/id/unitary-authority/wiltshire,29/09/2017,5107118783,1113.50,DACWS Limited ,142787,S72 ,Wiltshire Council,Wiltshire Council,Consultants Fees,Supplies and Services,CAPITAL
Wiltshire,http://opendatacommunities.org/id/unitary-authority/wiltshire,04/09/2017,5107096499,327.50,Danuk Innovative Gifts Limited ,123484,WN7 ,Neighbourhood & Planning,Health Emergency Pla,Marketing and Promotions,Supplies and Services,REVENUE
Wiltshire,http://opendatacommunities.org/id/unitary-authority/wiltshire,01/09/2017,5107106866,600.00,Darnton B3 Architecture ,134322,CF10,Wiltshire Council,Wiltshire Council,Buildings Minor Alterations,Premises Related,CAPITAL
Wiltshire,http://opendatacommunities.org/id/unitary-authority/wiltshire,01/09/2017,5107106867,788.00,Darnton B3 Architecture ,134322,CF10,Wiltshire Council,Wiltshire Council,Consultants Fees,Supplies and Services,CAPITAL
Wiltshire,http://opendatacommunities.org/id/unitary-authority/wiltshire,01/09/2017,5107106880,4912.00,Darnton B3 Architecture ,134322,CF10,Wiltshire Council,Wiltshire Council,Consultants Fees,Supplies and Services,CAPITAL
Wiltshire,http://opendatacommunities.org/id/unitary-authority/wiltshire,28/09/2017,5107107816,791.47,Darnton B3 Architecture ,134322,CF10,Wiltshire Council,Wiltshire Council,Consultants Fees,Supplies and Services,CAPITAL
Wiltshire,http://opendatacommunities.org/id/unitary-authority/wiltshire,08/09/2017,5107107962,5062.50,Darnton B3 Architecture ,134322,CF10,Wiltshire Council,Wiltshire Council,Consultants Fees,Supplies and Services,CAPITAL
Wiltshire,http://opendatacommunities.org/id/unitary-authority/wiltshire,29/09/2017,5107118625,12090.00,Darnton B3 Architecture ,134322,CF10,Wiltshire Council,Wiltshire Council,Consultants Fees,Supplies and Services,CAPITAL
Wiltshire,http://opendatacommunities.org/id/unitary-authority/wiltshire,05/09/2017,5107101844,760.00,Data Pro IT Ltd ,141097,SK7 ,Resources,Infrastructure,Hardware Maintenance,Supplies and Services,REVENUE
Wiltshire,http://opendatacommunities.org/id/unitary-authority/wiltshire,05/09/2017,5107101845,690.00,Data Pro IT Ltd ,141097,SK7 ,Resources,Infrastructure,Hardware Maintenance,Supplies and Services,REVENUE
Wiltshire,http://opendatacommunities.org/id/unitary-authority/wiltshire,05/09/2017,5107101846,430.00,Data Pro IT Ltd ,141097,SK7 ,Resources,Infrastructure,Hardware Maintenance,Supplies and Services,REVENUE
Wiltshire,http://opendatacommunities.org/id/unitary-authority/wiltshire,27/09/2017,5107110918,633.30,Data Pro IT Ltd ,141097,SK7 ,Resources,Infrastructure,Hardware Maintenance,Supplies and Services,REVENUE
Wiltshire,http://opendatacommunities.org/id/unitary-authority/wiltshire,13/09/2017,5107110383,2000.00,David Kent Architects ,100942,BA2 ,Wiltshire Council,Wiltshire Council,Consultants Fees,Supplies and Services,CAPITAL
Wiltshire,http://opendatacommunities.org/id/unitary-authority/wiltshire,13/09/2017,5107110384,3000.00,David Kent Architects ,100942,BA2 ,Wiltshire Council,Wiltshire Council,Consultants Fees,Supplies and Services,CAPITAL
Wiltshire,http://opendatacommunities.org/id/unitary-authority/wiltshire,22/09/2017,5107115751,3000.00,David Kent Architects ,100942,BA2 ,Wiltshire Council,Wiltshire Council,Consultants Fees,Supplies and Services,CAPITAL
Wiltshire,http://opendatacommunities.org/id/unitary-authority/wiltshire,22/09/2017,5107115752,1500.00,David Kent Architects ,100942,BA2 ,Wiltshire Council,Wiltshire Council,Consultants Fees,Supplies and Services,CAPITAL
Wiltshire,http://opendatacommunities.org/id/unitary-authority/wiltshire,28/09/2017,5107115753,1460.00,David Kent Architects ,100942,BA2 ,Wiltshire Council,Wiltshire Council,Consultants Fees,Supplies and Services,CAPITAL
Wiltshire,http://opendatacommunities.org/id/unitary-authority/wiltshire,22/09/2017,5107115754,1500.00,David Kent Architects ,100942,BA2 ,Wiltshire Council,Wiltshire Council,Consultants Fees,Supplies and Services,CAPITAL
Wiltshire,http://opendatacommunities.org/id/unitary-authority/wiltshire,28/09/2017,5107115755,1460.00,David Kent Architects ,100942,BA2 ,Wiltshire Council,Wiltshire Council,Consultants Fees,Supplies and Services,CAPITAL
Wiltshire,http://opendatacommunities.org/id/unitary-authority/wiltshire,22/09/2017,5107115756,1750.00,David Kent Architects ,100942,BA2 ,Wiltshire Council,Wiltshire Council,Consultants Fees,Supplies and Services,CAPITAL
Wiltshire,http://opendatacommunities.org/id/unitary-authority/wiltshire,22/09/2017,5107115757,1125.00,David Kent Architects ,100942,BA2 ,Wiltshire Council,Wiltshire Council,Buildings Minor Alterations,Premises Related,CAPITAL
Wiltshire,http://opendatacommunities.org/id/unitary-authority/wiltshire,28/09/2017,5107115758,4000.00,David Kent Architects ,100942,BA2 ,Wiltshire Council,Wiltshire Council,Buildings Minor Alterations,Premises Related,CAPITAL
Wiltshire,http://opendatacommunities.org/id/unitary-authority/wiltshire,28/09/2017,5107115759,2750.00,David Kent Architects ,100942,BA2 ,Wiltshire Council,Wiltshire Council,Consultants Fees,Supplies and Services,CAPITAL
Wiltshire,http://opendatacommunities.org/id/unitary-authority/wiltshire,28/09/2017,5107116500,2000.00,David Kent Architects ,100942,BA2 ,Wiltshire Council,Wiltshire Council,Consultants Fees,Supplies and Services,CAPITAL
Wiltshire,http://opendatacommunities.org/id/unitary-authority/wiltshire,28/09/2017,5107116501,2000.00,David Kent Architects ,100942,BA2 ,Wiltshire Council,Wiltshire Council,Consultants Fees,Supplies and Services,CAPITAL
Wiltshire,http://opendatacommunities.org/id/unitary-authority/wiltshire,12/09/2017,5107106584,300.00,David Marriott Ltd ,134078,SN4 ,Children & Education,GovernorSupport,Consultants Fees,Supplies and Services,REVENUE
Wiltshire,http://opendatacommunities.org/id/unitary-authority/wiltshire,29/09/2017,5107108368,1604.70,Dawson Rentals ,143627,HD6 ,Neighbourhood & Planning,Litter Picking,Equipment Hire,Supplies and Services,REVENUE
Wiltshire,http://opendatacommunities.org/id/unitary-authority/wiltshire,29/09/2017,5107108369,1604.70,Dawson Rentals ,143627,HD6 ,Neighbourhood & Planning,Litter Picking,Equipment Hire,Supplies and Services,REVENUE
Wiltshire,http://opendatacommunities.org/id/unitary-authority/wiltshire,20/09/2017,5107098776,2521.01,Dawson Rentals Bus  and  Coach Ltd ,101159,MK15,Neighbourhood & Planning,Connect 2 Wiltshire,Short Term Vehicle Hire,Transport Related,REVENUE
Wiltshire,http://opendatacommunities.org/id/unitary-authority/wiltshire,28/09/2017,5107118490,2521.01,Dawson Rentals Bus  and  Coach Ltd ,101159,MK15,Neighbourhood & Planning,Connect 2 Wiltshire,Short Term Vehicle Hire,Transport Related,REVENUE
Wiltshire,http://opendatacommunities.org/id/unitary-authority/wiltshire,07/09/2017,5107107851,233521.24,De Lage Landen Leasing Ltd ,144037,WD18,Resources,Microsoft Entpr&Slct,ICT - Support arrangements,Supplies and Services,REVENUE
Wiltshire,http://opendatacommunities.org/id/unitary-authority/wiltshire,07/09/2017,5107107852,23793.87,De Lage Landen Leasing Ltd ,144037,WD18,Resources,Microsoft Entpr&Slct,ICT - Support arrangements,Supplies and Services,REVENUE
Wiltshire,http://opendatacommunities.org/id/unitary-authority/wiltshire,08/09/2017,1901996596,347.20,Deandrive ,100861,SP3 ,Community Services,MH AOWA N&E Locality,Transport Contracts,Third Party Payments,REVENUE
Wiltshire,http://opendatacommunities.org/id/unitary-authority/wiltshire,21/09/2017,5107115534,343.44,DENNIS EAGLE LTD ,110710,CV34,Neighbourhood & Planning,Fleet,Vehicle Repairs & Maintenance,Transport Related,REVENUE
Wiltshire,http://opendatacommunities.org/id/unitary-authority/wiltshire,21/09/2017,5107115535,999.62,DENNIS EAGLE LTD ,110710,CV34,Neighbourhood & Planning,Fleet,Vehicle Repairs & Maintenance,Transport Related,REVENUE
Wiltshire,http://opendatacommunities.org/id/unitary-authority/wiltshire,21/09/2017,5107115536,279.00,DENNIS EAGLE LTD ,110710,CV34,Neighbourhood & Planning,Fleet,Vehicle Repairs & Maintenance,Transport Related,REVENUE
Wiltshire,http://opendatacommunities.org/id/unitary-authority/wiltshire,21/09/2017,5107115537,534.24,DENNIS EAGLE LTD ,110710,CV34,Neighbourhood & Planning,Fleet,Vehicle Repairs & Maintenance,Transport Related,REVENUE
Wiltshire,http://opendatacommunities.org/id/unitary-authority/wiltshire,22/09/2017,5107115673,324.25,DENNIS EAGLE LTD ,110710,CV34,Neighbourhood & Planning,Fleet,Vehicle Repairs & Maintenance,Transport Related,REVENUE
Wiltshire,http://opendatacommunities.org/id/unitary-authority/wiltshire,12/09/2017,1901986834,21112.96,Derwent Flooring Limited ,141989,BS4 ,Wiltshire Council,Wiltshire Council,Buildings Minor Alterations,Premises Related,CAPITAL
Wiltshire,http://opendatacommunities.org/id/unitary-authority/wiltshire,06/09/2017,1901995795,66252.85,Derwent Flooring Limited ,141989,BS4 ,Wiltshire Council,Wiltshire Council,Buildings Minor Alterations,Premises Related,CAPITAL
Wiltshire,http://opendatacommunities.org/id/unitary-authority/wiltshire,08/09/2017,5107102736,1123.20,Devizes Motor Panels ,100125,SN10,Neighbourhood & Planning,Contract Winter Main,Vehicle Parts,Transport Related,REVENUE
Wiltshire,http://opendatacommunities.org/id/unitary-authority/wiltshire,07/09/2017,5107102737,950.40,Devizes Motor Panels ,100125,SN10,Neighbourhood & Planning,Contract Winter Main,Vehicle Parts,Transport Related,REVENUE
Wiltshire,http://opendatacommunities.org/id/unitary-authority/wiltshire,01/09/2017,1901994648,1080.00,Devizes Taxis ,100136,SN10,Community Services,MH OP N&E Locality,Transport Contracts,Third Party Payments,REVENUE
Wiltshire,http://opendatacommunities.org/id/unitary-authority/wiltshire,05/09/2017,1901995500,360.00,Devizes Taxis ,100136,SN10,Community Services,MH OP N&E Locality,Transport Contracts,Third Party Payments,REVENUE
Wiltshire,http://opendatacommunities.org/id/unitary-authority/wiltshire,20/09/2017,1902000842,1218.94,Devizes Taxis ,100136,SN10,Neighbourhood & Planning,Mainstream Primary,Transport Contracts,Third Party Payments,REVENUE
Wiltshire,http://opendatacommunities.org/id/unitary-authority/wiltshire,20/09/2017,1902000842,2314.58,Devizes Taxis ,100136,SN10,Neighbourhood & Planning,Connect 2 Wiltshire,Transport Contracts,Third Party Payments,REVENUE
Wiltshire,http://opendatacommunities.org/id/unitary-authority/wiltshire,29/09/2017,5107109337,549.08,Digital ID ,142611,SK1 ,Resources,County Hall Complex,Building Fixtures and Fittings,Premises Related,REVENUE
Wiltshire,http://opendatacommunities.org/id/unitary-authority/wiltshire,06/09/2017,1901995960,3808.29,Dinton Recreation Ground ,131145,SP3 ,Resources,SW Wilts AreaBd S106,S106 Public Open Spaces Contributions,Balance Sheet Accounts,REVENUE
Wiltshire,http://opendatacommunities.org/id/unitary-authority/wiltshire,20/09/2017,1902000635,10496.00,Disclosure & Barring Service ,110647,L69 ,Resources,Recruitment - TRADED,Criminal Record Bureau Checks,Employee Related,REVENUE
Wiltshire,http://opendatacommunities.org/id/unitary-authority/wiltshire,14/09/2017,5107110691,76593.00,Dorset & Wiltshire Fire and Rescue ,143370,SP1 ,Resources,WC Bus Rate Ret Schm,BRRS Fire Share Payment - NOT FOR GENERAL USE,Balance Sheet Accounts,REVENUE
Wiltshire,http://opendatacommunities.org/id/unitary-authority/wiltshire,28/09/2017,5107118505,76593.00,Dorset & Wiltshire Fire and Rescue ,143370,SP1 ,Resources,WC Bus Rate Ret Schm,BRRS Fire Share Payment - NOT FOR GENERAL USE,Balance Sheet Accounts,REVENUE
Wiltshire,http://opendatacommunities.org/id/unitary-authority/wiltshire,05/09/2017,1901986399,352.00,Dorset County Hospital NHS Foundation Trust,124603,DT1 ,Neighbourhood & Planning,Sexual Health GUM,Public Health Commissioning,Supplies and Services,REVENUE
Wiltshire,http://opendatacommunities.org/id/unitary-authority/wiltshire,01/09/2017,5107106776,2020.90,Dr Darko Lazic Ultrasound World Ltd,115479,SN3 ,Resources,Coroner,Pathology Fees,Supplies and Services,REVENUE
Wiltshire,http://opendatacommunities.org/id/unitary-authority/wiltshire,06/09/2017,1901996058,1841.68,Drain Services Ltd ,101715,SP2 ,Resources,FM Highway Depots,Preventative Property Maintenance,Premises Related,REVENUE
Wiltshire,http://opendatacommunities.org/id/unitary-authority/wiltshire,15/09/2017,1901998272,1035.00,Drain Services Ltd ,101715,SP2 ,Neighbourhood & Planning,Responsive Repairs,Premises Related Other Maintenance Costs,Premises Related,REVENUE
Wiltshire,http://opendatacommunities.org/id/unitary-authority/wiltshire,18/09/2017,1901999562,2604.20,Drain Services Ltd ,101715,SP2 ,Neighbourhood & Planning,Responsive Repairs,Premises Related Other Maintenance Costs,Premises Related,REVENUE
Wiltshire,http://opendatacommunities.org/id/unitary-authority/wiltshire,20/09/2017,1902000921,1329.60,Drain Services Ltd ,101715,SP2 ,Neighbourhood & Planning,Responsive Repairs,Premises Related Other Maintenance Costs,Premises Related,REVENUE
Wiltshire,http://opendatacommunities.org/id/unitary-authority/wiltshire,13/09/2017,5107110558,20449.97,Drain Services Ltd ,101715,SP2 ,Neighbourhood & Planning,Housg Rprs Contracts,Premises Related Other Maintenance Costs,Premises Related,REVENUE
Wiltshire,http://opendatacommunities.org/id/unitary-authority/wiltshire,19/09/2017,5107113200,499.50,Drakewell Computer Systems ,115531,MK18,Resources,Applications SuppLOB,Software Purchases,Supplies and Services,REVENUE
Wiltshire,http://opendatacommunities.org/id/unitary-authority/wiltshire,20/09/2017,5107114161,20400.00,DTZ Debenham Tie Leung Ltd ,144813,B4 6,Resources,Trow Castle Place LC,Premises Rental / Hire Charges,Premises Related,REVENUE
Wiltshire,http://opendatacommunities.org/id/unitary-authority/wiltshire,20/09/2017,5107114162,7140.00,DTZ Debenham Tie Leung Ltd ,144813,B4 6,Resources,Trow Castle Place LC,Premises Management Costs,Premises Related,REVENUE
Wiltshire,http://opendatacommunities.org/id/unitary-authority/wiltshire,04/09/2017,5107103309,560.00,Dubit Limited ,141951,LS12,Children & Education,In house fostering t,Furniture / Office Equipment Purchase,Supplies and Services,REVENUE
Wiltshire,http://opendatacommunities.org/id/unitary-authority/wiltshire,12/09/2017,1901996492,1375.00,Duchy Of Cornwall ,115546,BA2 ,Resources,Unoccupied Sites,Premises Rental / Hire Charges,Premises Related,REVENUE
Wiltshire,http://opendatacommunities.org/id/unitary-authority/wiltshire,11/09/2017,1901996964,3907.00,DW Contractors (Oxford) Limited ,142340,OX4 ,Wiltshire Council,Wiltshire Council,Payments to Contractors - Other,Third Party Payments,CAPITAL
Wiltshire,http://opendatacommunities.org/id/unitary-authority/wiltshire,01/09/2017,5107106790,1000.50,DYS Space Ltd ,145665,EX2 ,Children & Education,Edctn Serv to CLA,Educational Fees,Supplies and Services,REVENUE
Wiltshire,http://opendatacommunities.org/id/unitary-authority/wiltshire,01/09/2017,5107106790,1899.50,DYS Space Ltd ,145665,EX2 ,Children & Education,Pupil Premium LAC,Educational Fees,Supplies and Services,REVENUE
Wiltshire,http://opendatacommunities.org/id/unitary-authority/wiltshire,04/09/2017,5107107440,670.45,E W Beard Ltd ,100171,SN3 ,Wiltshire Council,Wiltshire Council,Buildings Minor Alterations,Premises Related,CAPITAL
Wiltshire,http://opendatacommunities.org/id/unitary-authority/wiltshire,04/09/2017,5107103258,453.50,Eastern Shire Purchasing Organisati ,133593,LE19,Resources,County Hall Complex,Cleaning Materials - Buildings,Premises Related,REVENUE
Wiltshire,http://opendatacommunities.org/id/unitary-authority/wiltshire,14/09/2017,1901998204,11398.68,Easterton Village Hall ,124513,SN10,Resources,Devizes AreaBrd S106,S106 Public Open Spaces Contributions,Balance Sheet Accounts,REVENUE
Wiltshire,http://opendatacommunities.org/id/unitary-authority/wiltshire,29/09/2017,5107110429,414.29,Eclipse Scientific Ltd (ALS Food ) ,131122,WF14,Health & Wellbeing,EnvProtectionN&W,Consumer Protection-Measurement Equipment,Supplies and Services,REVENUE
Wiltshire,http://opendatacommunities.org/id/unitary-authority/wiltshire,29/09/2017,1902000636,10454.36,Elior UK PLC ,135123,SK11,Resources,County Hall Complex,Catering,Supplies and Services,REVENUE
Wiltshire,http://opendatacommunities.org/id/unitary-authority/wiltshire,29/09/2017,1902000643,6819.07,Elior UK PLC ,135123,SK11,Resources,Monkton Park,Catering,Supplies and Services,REVENUE
Wiltshire,http://opendatacommunities.org/id/unitary-authority/wiltshire,12/09/2017,1901997097,3194.63,Ellisons Coaches ,100162,SN6 ,Neighbourhood & Planning,Mainstream Secondary,Transport Contracts,Third Party Payments,REVENUE
Wiltshire,http://opendatacommunities.org/id/unitary-authority/wiltshire,12/09/2017,1901997098,3263.25,Ellisons Coaches ,100162,SN6 ,Neighbourhood & Planning,Mainstream Secondary,Transport Contracts,Third Party Payments,REVENUE
Wiltshire,http://opendatacommunities.org/id/unitary-authority/wiltshire,12/09/2017,1901997100,2984.36,Ellisons Coaches ,100162,SN6 ,Neighbourhood & Planning,Mainstream Secondary,Transport Contracts,Third Party Payments,REVENUE
Wiltshire,http://opendatacommunities.org/id/unitary-authority/wiltshire,12/09/2017,1901997103,3135.00,Ellisons Coaches ,100162,SN6 ,Neighbourhood & Planning,Mainstream Secondary,Transport Contracts,Third Party Payments,REVENUE
Wiltshire,http://opendatacommunities.org/id/unitary-authority/wiltshire,12/09/2017,5107110290,555.00,Elmar Rubio Photography ,145856,SN3 ,Neighbourhood & Planning,Swindon & Wilts LEP,Printing External,Supplies and Services,REVENUE
Wiltshire,http://opendatacommunities.org/id/unitary-authority/wiltshire,12/09/2017,5107109280,900.00,EMAP Publishing Ltd ,139682,EC2A,Resources,Democracy & Perform,Professional Subscriptions/Memberships,Employee Related,REVENUE
Wiltshire,http://opendatacommunities.org/id/unitary-authority/wiltshire,07/09/2017,1901996105,261.45,Encompassed Ltd ,133342,BS11,Wiltshire Council,Wiltshire Council,Buildings Minor Alterations,Premises Related,CAPITAL
Wiltshire,http://opendatacommunities.org/id/unitary-authority/wiltshire,07/09/2017,1901996107,413.25,Encompassed Ltd ,133342,BS11,Wiltshire Council,Wiltshire Council,Buildings Minor Alterations,Premises Related,CAPITAL
Wiltshire,http://opendatacommunities.org/id/unitary-authority/wiltshire,07/09/2017,1901996112,414.95,Encompassed Ltd ,133342,BS11,Wiltshire Council,Wiltshire Council,Buildings Minor Alterations,Premises Related,CAPITAL
Wiltshire,http://opendatacommunities.org/id/unitary-authority/wiltshire,07/09/2017,1901996113,324.45,Encompassed Ltd ,133342,BS11,Wiltshire Council,Wiltshire Council,Buildings Minor Alterations,Premises Related,CAPITAL
Wiltshire,http://opendatacommunities.org/id/unitary-authority/wiltshire,07/09/2017,1901996116,625.95,Encompassed Ltd ,133342,BS11,Wiltshire Council,Wiltshire Council,Buildings Minor Alterations,Premises Related,CAPITAL
Wiltshire,http://opendatacommunities.org/id/unitary-authority/wiltshire,07/09/2017,1901996119,324.75,Encompassed Ltd ,133342,BS11,Wiltshire Council,Wiltshire Council,Buildings Minor Alterations,Premises Related,CAPITAL
Wiltshire,http://opendatacommunities.org/id/unitary-authority/wiltshire,07/09/2017,1901996120,346.45,Encompassed Ltd ,133342,BS11,Wiltshire Council,Wiltshire Council,Buildings Minor Alterations,Premises Related,CAPITAL
Wiltshire,http://opendatacommunities.org/id/unitary-authority/wiltshire,07/09/2017,1901996121,648.25,Encompassed Ltd ,133342,BS11,Wiltshire Council,Wiltshire Council,Buildings Minor Alterations,Premises Related,CAPITAL
Wiltshire,http://opendatacommunities.org/id/unitary-authority/wiltshire,07/09/2017,1901996122,483.00,Encompassed Ltd ,133342,BS11,Wiltshire Council,Wiltshire Council,Buildings Minor Alterations,Premises Related,CAPITAL
Wiltshire,http://opendatacommunities.org/id/unitary-authority/wiltshire,14/09/2017,5107110625,3482.00,Encompassed Ltd ,133342,BS11,Wiltshire Council,Wiltshire Council,Premises Related Other Maintenance Costs,Premises Related,CAPITAL
Wiltshire,http://opendatacommunities.org/id/unitary-authority/wiltshire,14/09/2017,5107110626,16404.98,Encompassed Ltd ,133342,BS11,Wiltshire Council,Wiltshire Council,Premises Related Other Maintenance Costs,Premises Related,CAPITAL
Wiltshire,http://opendatacommunities.org/id/unitary-authority/wiltshire,28/09/2017,5107110340,431.41,Endell Veterinary Group Ltd ,110865,SP1 ,Health & Wellbeing,Gambling & Other,Other Professional Fees,Supplies and Services,REVENUE
Wiltshire,http://opendatacommunities.org/id/unitary-authority/wiltshire,26/09/2017,1902001893,495.00,Entre-Prises (UK) Ltd ,142337,BB18,Children & Education,Braeside,Equipment Maintenance,Supplies and Services,REVENUE
Wiltshire,http://opendatacommunities.org/id/unitary-authority/wiltshire,27/09/2017,5107116996,148529.75,Environment Agency ,110878,PE2 ,Resources,Corporate Levys,Water - Flood Defence Levy,Premises Related,REVENUE
Wiltshire,http://opendatacommunities.org/id/unitary-authority/wiltshire,18/09/2017,5107107452,530.00,ESP Colour Ltd ,110881,SN2 ,Resources,DesignPrintTrowbridg,Printing External,Supplies and Services,REVENUE
Wiltshire,http://opendatacommunities.org/id/unitary-authority/wiltshire,29/09/2017,5107118716,547.00,ESP Colour Ltd ,110881,SN2 ,Community Services,WHS Project,Printing External,Supplies and Services,REVENUE
Wiltshire,http://opendatacommunities.org/id/unitary-authority/wiltshire,20/09/2017,5107107813,485.00,Ethos Environmental Planning Limite ,139813,BA1 ,Wiltshire Council,Wiltshire Council,Surveyors Fees,Supplies and Services,CAPITAL
Wiltshire,http://opendatacommunities.org/id/unitary-authority/wiltshire,28/09/2017,5107108333,6443.00,Euclid Limited ,124955,PO7 ,Neighbourhood & Planning,Concessionary Fares,Printing External,Supplies and Services,REVENUE
Wiltshire,http://opendatacommunities.org/id/unitary-authority/wiltshire,28/09/2017,5107110276,6423.60,Euclid Limited ,124955,PO7 ,Neighbourhood & Planning,Pass Transport Group,Printing External,Supplies and Services,REVENUE
Wiltshire,http://opendatacommunities.org/id/unitary-authority/wiltshire,26/09/2017,5107116847,17403.37,Exalon Care Limited ,110896,SN10,Children & Education,0-25 extnl disabty p,Other Social & Welfare Costs,Third Party Payments,REVENUE
Wiltshire,http://opendatacommunities.org/id/unitary-authority/wiltshire,25/09/2017,5107116751,39672.00,Exeter Royal Academy for Deaf Education,110897,EX2 ,Children & Education,SpecialistProvision,Educational Fees,Supplies and Services,REVENUE
Wiltshire,http://opendatacommunities.org/id/unitary-authority/wiltshire,05/09/2017,1901995504,448.00,Ezy s Taxis Ltd ,101645,SN15,Community Services,Chippenham,Transport Contracts,Third Party Payments,REVENUE
Wiltshire,http://opendatacommunities.org/id/unitary-authority/wiltshire,05/09/2017,1901995504,448.00,Ezy s Taxis Ltd ,101645,SN15,Community Services,Malmesbury,Transport Contracts,Third Party Payments,REVENUE
Wiltshire,http://opendatacommunities.org/id/unitary-authority/wiltshire,26/09/2017,1902002079,1318.70,Fairweathers Surveyors Limited ,115821,RG6 ,Resources,Unoccupied Sites,Premises Rental / Hire Charges,Premises Related,REVENUE
Wiltshire,http://opendatacommunities.org/id/unitary-authority/wiltshire,05/09/2017,5107100266,1106.29,Faithful   Gould ,101321,BS32,Wiltshire Council,Wiltshire Council,Buildings Minor Alterations,Premises Related,CAPITAL
Wiltshire,http://opendatacommunities.org/id/unitary-authority/wiltshire,05/09/2017,5107106412,9720.00,Faithful   Gould ,101321,BS32,Wiltshire Council,Wiltshire Council,Consultants Fees,Supplies and Services,CAPITAL
Wiltshire,http://opendatacommunities.org/id/unitary-authority/wiltshire,12/09/2017,5107106532,2556.00,Faithful   Gould ,101321,BS32,Wiltshire Council,Wiltshire Council,Consultants Fees,Supplies and Services,CAPITAL
Wiltshire,http://opendatacommunities.org/id/unitary-authority/wiltshire,12/09/2017,5107106533,1609.00,Faithful   Gould ,101321,BS32,Wiltshire Council,Wiltshire Council,Consultants Fees,Supplies and Services,CAPITAL
Wiltshire,http://opendatacommunities.org/id/unitary-authority/wiltshire,12/09/2017,5107106534,871.50,Faithful   Gould ,101321,BS32,Wiltshire Council,Wiltshire Council,Consultants Fees,Supplies and Services,CAPITAL
Wiltshire,http://opendatacommunities.org/id/unitary-authority/wiltshire,29/09/2017,5107107994,1005.39,Faithful   Gould ,101321,BS32,Wiltshire Council,Wiltshire Council,Consultants Fees,Supplies and Services,CAPITAL
Wiltshire,http://opendatacommunities.org/id/unitary-authority/wiltshire,14/09/2017,5107110678,651.00,Faithful   Gould ,101321,BS32,Wiltshire Council,Wiltshire Council,Consultants Fees,Supplies and Services,CAPITAL
Wiltshire,http://opendatacommunities.org/id/unitary-authority/wiltshire,21/09/2017,5107115520,5196.63,Faithful   Gould ,101321,BS32,Wiltshire Council,Wiltshire Council,Consultants Fees,Supplies and Services,CAPITAL
Wiltshire,http://opendatacommunities.org/id/unitary-authority/wiltshire,21/09/2017,5107115521,6501.26,Faithful   Gould ,101321,BS32,Wiltshire Council,Wiltshire Council,Consultants Fees,Supplies and Services,CAPITAL
Wiltshire,http://opendatacommunities.org/id/unitary-authority/wiltshire,05/09/2017,5107106799,1508.00,Faithful + Gould ,136315,CF24,Wiltshire Council,Wiltshire Council,Consultants Fees,Supplies and Services,CAPITAL
Wiltshire,http://opendatacommunities.org/id/unitary-authority/wiltshire,25/09/2017,5107116459,265.00,Family Media Ltd ,145536,BA1 ,Children & Education,In house fostering t,Carer Recruitment & Training,Third Party Payments,REVENUE
Wiltshire,http://opendatacommunities.org/id/unitary-authority/wiltshire,25/09/2017,5107116419,6500.00,Farleigh FEC - Swindon Priory ,137850,DL2 ,Children & Education,TOP UP POST 16,Educational Fees,Supplies and Services,REVENUE
Wiltshire,http://opendatacommunities.org/id/unitary-authority/wiltshire,25/09/2017,5107116422,6500.00,Farleigh FEC - Swindon Priory ,137850,DL2 ,Children & Education,TOP UP POST 16,Educational Fees,Supplies and Services,REVENUE
Wiltshire,http://opendatacommunities.org/id/unitary-authority/wiltshire,25/09/2017,5107116423,6500.00,Farleigh FEC - Swindon Priory ,137850,DL2 ,Children & Education,TOP UP POST 16,Educational Fees,Supplies and Services,REVENUE
Wiltshire,http://opendatacommunities.org/id/unitary-authority/wiltshire,25/09/2017,5107116424,10718.76,Farleigh FEC - Swindon Priory ,137850,DL2 ,Children & Education,TOP UP POST 16,Educational Fees,Supplies and Services,REVENUE
Wiltshire,http://opendatacommunities.org/id/unitary-authority/wiltshire,25/09/2017,5107116425,10718.76,Farleigh FEC - Swindon Priory ,137850,DL2 ,Children & Education,TOP UP POST 16,Educational Fees,Supplies and Services,REVENUE
Wiltshire,http://opendatacommunities.org/id/unitary-authority/wiltshire,25/09/2017,5107116426,6500.00,Farleigh FEC - Swindon Priory ,137850,DL2 ,Children & Education,TOP UP POST 16,Educational Fees,Supplies and Services,REVENUE
Wiltshire,http://opendatacommunities.org/id/unitary-authority/wiltshire,29/09/2017,5107118661,394.70,Faun Zoeller (UK) Ltd ,145851,B98 ,Neighbourhood & Planning,Fleet,Vehicle Parts,Transport Related,REVENUE
Wiltshire,http://opendatacommunities.org/id/unitary-authority/wiltshire,29/09/2017,5107118662,394.70,Faun Zoeller (UK) Ltd ,145851,B98 ,Neighbourhood & Planning,Fleet,Vehicle Parts,Transport Related,REVENUE
Wiltshire,http://opendatacommunities.org/id/unitary-authority/wiltshire,20/09/2017,5107114133,492.88,Financial Data Management Limited ,129034,E16 ,Resources,RegistrationofElectr,Postage,Supplies and Services,REVENUE
Wiltshire,http://opendatacommunities.org/id/unitary-authority/wiltshire,20/09/2017,5107114136,56690.85,Financial Data Management Limited ,129034,E16 ,Resources,RegistrationofElectr,Postage,Supplies and Services,REVENUE
Wiltshire,http://opendatacommunities.org/id/unitary-authority/wiltshire,28/09/2017,5107118473,1020.00,Financial Data Management Limited ,129034,E16 ,Resources,DesignPrintTrowbridg,Printing External,Supplies and Services,REVENUE
Wiltshire,http://opendatacommunities.org/id/unitary-authority/wiltshire,08/09/2017,5107108006,3550.00,Fiona Farquhar ,141428,BS1 ,Children & Education,HQ Social Care,Legal Fees,Supplies and Services,REVENUE
Wiltshire,http://opendatacommunities.org/id/unitary-authority/wiltshire,13/09/2017,5107100271,2405.00,Fireblitz Extinguisher Limited ,142796,DA8 ,Community Services,Hearing & Vision,Client Aids and Adaptations,Third Party Payments,REVENUE
Wiltshire,http://opendatacommunities.org/id/unitary-authority/wiltshire,15/09/2017,5107103227,662.52,First Corporate Clothing Ltd ,122929,SA13,Community Services,Libraries,Clothing and Uniform Purchase,Supplies and Services,REVENUE
Wiltshire,http://opendatacommunities.org/id/unitary-authority/wiltshire,01/09/2017,1901994649,525.00,First Klass Taxis ,130827,SP4 ,Neighbourhood & Planning,Mainstream Primary,Transport Contracts,Third Party Payments,REVENUE
Wiltshire,http://opendatacommunities.org/id/unitary-authority/wiltshire,13/09/2017,1901997705,1203.56,First Somerset  and  Avon Ltd ,101188,AB24,Neighbourhood & Planning,Public Transport,Transport Contracts,Third Party Payments,REVENUE
Wiltshire,http://opendatacommunities.org/id/unitary-authority/wiltshire,13/09/2017,1901997706,3784.00,First Somerset  and  Avon Ltd ,101188,AB24,Neighbourhood & Planning,Public Transport,Transport Contracts,Third Party Payments,REVENUE
Wiltshire,http://opendatacommunities.org/id/unitary-authority/wiltshire,13/09/2017,1901997707,3613.07,First Somerset  and  Avon Ltd ,101188,AB24,Neighbourhood & Planning,Public Transport,Transport Contracts,Third Party Payments,REVENUE
Wiltshire,http://opendatacommunities.org/id/unitary-authority/wiltshire,13/09/2017,1901997713,953.57,First Somerset  and  Avon Ltd ,101188,AB24,Neighbourhood & Planning,Public Transport,Transport Contracts,Third Party Payments,REVENUE
Wiltshire,http://opendatacommunities.org/id/unitary-authority/wiltshire,19/09/2017,1902000371,13510.00,First Somerset  and  Avon Ltd ,101188,AB24,Neighbourhood & Planning,Concessionary Fares,Compensation for Concessionary fares,Third Party Payments,REVENUE
Wiltshire,http://opendatacommunities.org/id/unitary-authority/wiltshire,28/09/2017,5107118593,5658.00,Five Rivers Child Care Ltd ,110930,SP1 ,Children & Education,IndepSpecialSchFees,Educational Fees,Supplies and Services,REVENUE
Wiltshire,http://opendatacommunities.org/id/unitary-authority/wiltshire,28/09/2017,5107118594,1230.00,Five Rivers Child Care Ltd ,110930,SP1 ,Children & Education,IndepSpecialSchFees,Educational Fees,Supplies and Services,REVENUE
Wiltshire,http://opendatacommunities.org/id/unitary-authority/wiltshire,22/09/2017,1902000942,300.00,Flying Monk Graphics ,131525,SN16,Resources,Malmsbry AreaBd S106,S106 Publicn Art Contributions,Balance Sheet Accounts,REVENUE
Wiltshire,http://opendatacommunities.org/id/unitary-authority/wiltshire,12/09/2017,5107109284,318534.59,Focsa Services  uk  Ltd ,115903,BA14,Neighbourhood & Planning,West Ops - Waste,Payments to Contractors - Waste - Other,Third Party Payments,REVENUE
Wiltshire,http://opendatacommunities.org/id/unitary-authority/wiltshire,14/09/2017,5107110679,1500.00,Footprint Architects Ltd ,140690,BH1 ,Wiltshire Council,Wiltshire Council,Consultants Fees,Supplies and Services,CAPITAL
Wiltshire,http://opendatacommunities.org/id/unitary-authority/wiltshire,14/09/2017,5107110680,1500.00,Footprint Architects Ltd ,140690,BH1 ,Wiltshire Council,Wiltshire Council,Consultants Fees,Supplies and Services,CAPITAL
Wiltshire,http://opendatacommunities.org/id/unitary-authority/wiltshire,14/09/2017,5107110681,250.00,Footprint Architects Ltd ,140690,BH1 ,Wiltshire Council,Wiltshire Council,Consultants Fees,Supplies and Services,CAPITAL
Wiltshire,http://opendatacommunities.org/id/unitary-authority/wiltshire,14/09/2017,5107110682,1000.00,Footprint Architects Ltd ,140690,BH1 ,Wiltshire Council,Wiltshire Council,Consultants Fees,Supplies and Services,CAPITAL
Wiltshire,http://opendatacommunities.org/id/unitary-authority/wiltshire,14/09/2017,5107110683,1500.00,Footprint Architects Ltd ,140690,BH1 ,Wiltshire Council,Wiltshire Council,Consultants Fees,Supplies and Services,CAPITAL
Wiltshire,http://opendatacommunities.org/id/unitary-authority/wiltshire,14/09/2017,5107110653,1351.35,Ford Fuel Oils  Bristol ,110945,DT10,Neighbourhood & Planning,Fleet,Vehicle Fuel,Transport Related,REVENUE
Wiltshire,http://opendatacommunities.org/id/unitary-authority/wiltshire,14/09/2017,5107110654,13745.99,Ford Fuel Oils  Bristol ,110945,DT10,Neighbourhood & Planning,Fleet,Vehicle Fuel,Transport Related,REVENUE
Wiltshire,http://opendatacommunities.org/id/unitary-authority/wiltshire,14/09/2017,5107110878,16056.25,Ford Fuel Oils  Bristol ,110945,DT10,Neighbourhood & Planning,Fleet,Vehicle Fuel,Transport Related,REVENUE
Wiltshire,http://opendatacommunities.org/id/unitary-authority/wiltshire,12/09/2017,5107109270,3697.50,Forensics Ltd ,124600,WR14,Resources,Coroner,Forensic / Special Post Mortems,Supplies and Services,REVENUE
Wiltshire,http://opendatacommunities.org/id/unitary-authority/wiltshire,12/09/2017,1901997094,1056.00,Forest Taxis ,101069,SN12,Children & Education,BehaviourSuppCore,Transport Contracts,Third Party Payments,REVENUE
Wiltshire,http://opendatacommunities.org/id/unitary-authority/wiltshire,12/09/2017,1901997110,1634.00,Forest Taxis ,101069,SN12,Children & Education,BehaviourSuppCore,Transport Contracts,Third Party Payments,REVENUE
Wiltshire,http://opendatacommunities.org/id/unitary-authority/wiltshire,20/09/2017,1902000477,523.94,Forget Me Not Care Ltd ,115921,BA13,Community Services,HTLAH - Neighbourhoo,Interim Support Plan - HTLAH,Third Party Payments,REVENUE
Wiltshire,http://opendatacommunities.org/id/unitary-authority/wiltshire,12/09/2017,1901997111,3241.42,Frome Minibuses ,100601,BA11,Neighbourhood & Planning,Public Transport,Transport Contracts,Third Party Payments,REVENUE
Wiltshire,http://opendatacommunities.org/id/unitary-authority/wiltshire,12/09/2017,1901997112,8765.68,Frome Minibuses ,100601,BA11,Neighbourhood & Planning,Public Transport,Transport Contracts,Third Party Payments,REVENUE
Wiltshire,http://opendatacommunities.org/id/unitary-authority/wiltshire,12/09/2017,1901997113,3011.28,Frome Minibuses ,100601,BA11,Neighbourhood & Planning,Mainstream Secondary,Transport Contracts,Third Party Payments,REVENUE
Wiltshire,http://opendatacommunities.org/id/unitary-authority/wiltshire,12/09/2017,1901997113,9033.85,Frome Minibuses ,100601,BA11,Neighbourhood & Planning,Public Transport,Transport Contracts,Third Party Payments,REVENUE
Wiltshire,http://opendatacommunities.org/id/unitary-authority/wiltshire,12/09/2017,1901997114,9661.29,Frome Minibuses ,100601,BA11,Neighbourhood & Planning,Public Transport,Transport Contracts,Third Party Payments,REVENUE
Wiltshire,http://opendatacommunities.org/id/unitary-authority/wiltshire,12/09/2017,1901997115,6259.34,Frome Minibuses ,100601,BA11,Neighbourhood & Planning,Public Transport,Transport Contracts,Third Party Payments,REVENUE
Wiltshire,http://opendatacommunities.org/id/unitary-authority/wiltshire,12/09/2017,1901997116,3698.39,Frome Minibuses ,100601,BA11,Neighbourhood & Planning,Public Transport,Transport Contracts,Third Party Payments,REVENUE
Wiltshire,http://opendatacommunities.org/id/unitary-authority/wiltshire,12/09/2017,1901997116,6311.25,Frome Minibuses ,100601,BA11,Neighbourhood & Planning,Mainstream Secondary,Transport Contracts,Third Party Payments,REVENUE
Wiltshire,http://opendatacommunities.org/id/unitary-authority/wiltshire,12/09/2017,1901997117,1484.82,Frome Minibuses ,100601,BA11,Neighbourhood & Planning,Public Transport,Transport Contracts,Third Party Payments,REVENUE
Wiltshire,http://opendatacommunities.org/id/unitary-authority/wiltshire,18/09/2017,1901999540,1035.13,Frome Minibuses ,100601,BA11,Neighbourhood & Planning,Public Transport,Transport Contracts,Third Party Payments,REVENUE
Wiltshire,http://opendatacommunities.org/id/unitary-authority/wiltshire,18/09/2017,1901999540,3333.00,Frome Minibuses ,100601,BA11,Neighbourhood & Planning,Mainstream Secondary,Transport Contracts,Third Party Payments,REVENUE
Wiltshire,http://opendatacommunities.org/id/unitary-authority/wiltshire,19/09/2017,1902000374,11001.00,Frome Minibuses ,100601,BA11,Neighbourhood & Planning,Concessionary Fares,Compensation for Concessionary fares,Third Party Payments,REVENUE
Wiltshire,http://opendatacommunities.org/id/unitary-authority/wiltshire,15/09/2017,5107111932,1088.85,Frowds House Trust ,101134,SP1 ,Community Services,MH Commissioned Cont,Grants Paid to individuals for Tangible Benefits,Supplies and Services,REVENUE
Wiltshire,http://opendatacommunities.org/id/unitary-authority/wiltshire,29/09/2017,1902009086,8251.04,Gaiger Bros Ltd ,116048,SN10,Resources,Investment Estate,Premises Rental / Hire Charges,Premises Related,REVENUE
Wiltshire,http://opendatacommunities.org/id/unitary-authority/wiltshire,18/09/2017,1901999534,20000.00,Gleeds Cost Management Limited ,136728,BS34,Wiltshire Council,Wiltshire Council,Cost of Asset Disposal,Balance Sheet Accounts,REVENUE
Wiltshire,http://opendatacommunities.org/id/unitary-authority/wiltshire,22/09/2017,1902001350,607.50,Good Egg Safety CIC ,145942,SG19,Neighbourhood & Planning,Road Safety,Highways - Other Materials,Supplies and Services,REVENUE
Wiltshire,http://opendatacommunities.org/id/unitary-authority/wiltshire,06/09/2017,5107107677,6000.00,Gov Net Communications ,116147,M1 6,Neighbourhood & Planning,Swindon & Wilts LEP,Marketing and Promotions,Supplies and Services,REVENUE
Wiltshire,http://opendatacommunities.org/id/unitary-authority/wiltshire,19/09/2017,5107113251,385.00,Gov Net Communications ,116147,M1 6,Resources,HR Councillor Develo,Conference Fees,Supplies and Services,REVENUE
Wiltshire,http://opendatacommunities.org/id/unitary-authority/wiltshire,14/09/2017,5107110684,2793.00,Graham Garner & Partners Ltd ,140894,BH21,Wiltshire Council,Wiltshire Council,Consultants Fees,Supplies and Services,CAPITAL
Wiltshire,http://opendatacommunities.org/id/unitary-authority/wiltshire,14/09/2017,5107110685,3724.00,Graham Garner & Partners Ltd ,140894,BH21,Wiltshire Council,Wiltshire Council,Consultants Fees,Supplies and Services,CAPITAL
Wiltshire,http://opendatacommunities.org/id/unitary-authority/wiltshire,20/09/2017,1902000637,2470.00,Great Bedwyn Youth Club ,135975,SN8 ,Community Services,Area Board Pewsey,Area Board Youth Grants,Supplies and Services,REVENUE
Wiltshire,http://opendatacommunities.org/id/unitary-authority/wiltshire,01/09/2017,5107106771,1536.00,Great Green Systems Limited ,111040,LS1 ,Wiltshire Council,Wiltshire Council,Payments to Contractors - Waste - Other,Third Party Payments,CAPITAL
Wiltshire,http://opendatacommunities.org/id/unitary-authority/wiltshire,28/09/2017,5107114805,1152.00,Great Green Systems Limited ,111040,LS1 ,Wiltshire Council,Wiltshire Council,Payments to Contractors - Waste - Other,Third Party Payments,CAPITAL
Wiltshire,http://opendatacommunities.org/id/unitary-authority/wiltshire,19/09/2017,1901999522,2209.00,Great Western Hospitals NHS FT ,131775,WF3 ,Community Services,Hospital - Great Wes,Agency Staff,Employee Related,REVENUE
Wiltshire,http://opendatacommunities.org/id/unitary-authority/wiltshire,28/09/2017,1902008953,1200.00,Great Western Hospitals NHS FT ,131775,WF3 ,Resources,Unoccupied Sites,Premises Rental / Hire Charges,Premises Related,REVENUE
Wiltshire,http://opendatacommunities.org/id/unitary-authority/wiltshire,28/09/2017,1902008954,1200.00,Great Western Hospitals NHS FT ,131775,WF3 ,Resources,Unoccupied Sites,Premises Rental / Hire Charges,Premises Related,REVENUE
Wiltshire,http://opendatacommunities.org/id/unitary-authority/wiltshire,28/09/2017,1902008955,1200.00,Great Western Hospitals NHS FT ,131775,WF3 ,Resources,Unoccupied Sites,Premises Rental / Hire Charges,Premises Related,REVENUE
Wiltshire,http://opendatacommunities.org/id/unitary-authority/wiltshire,11/09/2017,1901996967,604.61,Green Square Group ,139743,SN14,Wiltshire Council,Wiltshire Council,Other Professional Fees,Supplies and Services,CAPITAL
Wiltshire,http://opendatacommunities.org/id/unitary-authority/wiltshire,06/09/2017,5107103326,791.62,Grist Environmental Ltd ,100594,SN10,Neighbourhood & Planning,Env & Enforcement,Payments to Contractors - Waste - Other,Third Party Payments,REVENUE
Wiltshire,http://opendatacommunities.org/id/unitary-authority/wiltshire,06/09/2017,5107103327,926.75,Grist Environmental Ltd ,100594,SN10,Neighbourhood & Planning,Env & Enforcement,Payments to Contractors - Waste - Other,Third Party Payments,REVENUE
Wiltshire,http://opendatacommunities.org/id/unitary-authority/wiltshire,29/09/2017,5107107776,2741.00,Grist Environmental Ltd ,100594,SN10,Neighbourhood & Planning,Abandoned Vehicles,Payments to Contractors - Other,Third Party Payments,REVENUE
Wiltshire,http://opendatacommunities.org/id/unitary-authority/wiltshire,28/09/2017,5107113382,844.35,Grist Environmental Ltd ,100594,SN10,Neighbourhood & Planning,Env & Enforcement,Payments to Contractors - Waste - Other,Third Party Payments,REVENUE
Wiltshire,http://opendatacommunities.org/id/unitary-authority/wiltshire,28/09/2017,5107113384,844.35,Grist Environmental Ltd ,100594,SN10,Neighbourhood & Planning,Env & Enforcement,Payments to Contractors - Waste - Other,Third Party Payments,REVENUE
Wiltshire,http://opendatacommunities.org/id/unitary-authority/wiltshire,25/09/2017,1902001447,332.50,H J Knee Ltd ,100139,BA14,Resources,Social Fund,Social Fund Payments,Capital charges and Expenditure,REVENUE
Wiltshire,http://opendatacommunities.org/id/unitary-authority/wiltshire,29/09/2017,5107118715,2700.00,H L Smith Transmissions Ltd ,116250,WV7 ,Neighbourhood & Planning,Fleet,Vehicle Parts,Transport Related,REVENUE
Wiltshire,http://opendatacommunities.org/id/unitary-authority/wiltshire,28/09/2017,5107118494,487.54,Halls Auto Electrical Limited ,124010,SN5 ,Neighbourhood & Planning,Fleet,Vehicle 3rd Party Repairs,Transport Related,REVENUE
Wiltshire,http://opendatacommunities.org/id/unitary-authority/wiltshire,12/09/2017,5107110274,48164.00,Hampshire CC - Education Only ,143347,SO23,Children & Education,TOP UP NWS WP,Educational Fees,Supplies and Services,REVENUE
Wiltshire,http://opendatacommunities.org/id/unitary-authority/wiltshire,13/09/2017,1901997764,997.50,Hampshire Mobility Services Ltd ,142288,SO51,Wiltshire Council,Wiltshire Council,Payments to Contractors - Other,Third Party Payments,CAPITAL
Wiltshire,http://opendatacommunities.org/id/unitary-authority/wiltshire,21/09/2017,1902000953,1900.00,Hampshire Mobility Services Ltd ,142288,SO51,Wiltshire Council,Wiltshire Council,Payments to Contractors - Other,Third Party Payments,CAPITAL
Wiltshire,http://opendatacommunities.org/id/unitary-authority/wiltshire,28/09/2017,5107118407,695.00,Harris & Harris Solicitors ,127683,BA5 ,Children & Education,EducationLegal,Legal Fees,Supplies and Services,REVENUE
Wiltshire,http://opendatacommunities.org/id/unitary-authority/wiltshire,27/09/2017,1902008534,499.00,Haymarket Publishing Services Ltd ,124610,TW1 ,Neighbourhood & Planning,City Deals,Conference Fees,Supplies and Services,REVENUE
Wiltshire,http://opendatacommunities.org/id/unitary-authority/wiltshire,25/09/2017,1902001468,454.00,Hearts at Home ,143890,SP6 ,Community Services,HTLAH - Neighbourhoo,Interim Support Plan - HTLAH,Third Party Payments,REVENUE
Wiltshire,http://opendatacommunities.org/id/unitary-authority/wiltshire,25/09/2017,1902001490,477.00,Hearts at Home ,143890,SP6 ,Community Services,HTLAH - Neighbourhoo,Interim Support Plan - HTLAH,Third Party Payments,REVENUE
Wiltshire,http://opendatacommunities.org/id/unitary-authority/wiltshire,21/09/2017,5107114817,390.00,Heil Farid European Company Ltd ,129465,KY11,Neighbourhood & Planning,Fleet,Vehicle Parts,Transport Related,REVENUE
Wiltshire,http://opendatacommunities.org/id/unitary-authority/wiltshire,20/09/2017,1902000831,3422.00,HG & AP  Vaughan Ltd - DFG Only ,116244,BA11,Wiltshire Council,Wiltshire Council,Payments to Contractors - Other,Third Party Payments,CAPITAL
Wiltshire,http://opendatacommunities.org/id/unitary-authority/wiltshire,20/09/2017,1902000838,9723.90,HG & AP  Vaughan Ltd - DFG Only ,116244,BA11,Wiltshire Council,Wiltshire Council,Payments to Contractors - Other,Third Party Payments,CAPITAL
Wiltshire,http://opendatacommunities.org/id/unitary-authority/wiltshire,26/09/2017,1902001913,11040.00,HG & AP  Vaughan Ltd - DFG Only ,116244,BA11,Wiltshire Council,Wiltshire Council,Payments to Contractors - Other,Third Party Payments,CAPITAL
Wiltshire,http://opendatacommunities.org/id/unitary-authority/wiltshire,20/09/2017,5107114152,28500.00,High Street Estates ,116420,M7 4,Resources,Investment Estate,Premises Rental / Hire Charges,Premises Related,REVENUE
Wiltshire,http://opendatacommunities.org/id/unitary-authority/wiltshire,04/09/2017,5107106648,465300.69,Hills Waste Solutions Limited ,111132,SN1 ,Neighbourhood & Planning,Lakeside Contract,Payments to Contractors - Waste - Other,Third Party Payments,REVENUE
Wiltshire,http://opendatacommunities.org/id/unitary-authority/wiltshire,04/09/2017,5107106649,37495.58,Hills Waste Solutions Limited ,111132,SN1 ,Neighbourhood & Planning,Hills Waste Recyclin,Payments to Contractors - Waste - Other,Third Party Payments,REVENUE
Wiltshire,http://opendatacommunities.org/id/unitary-authority/wiltshire,04/09/2017,5107106750,22601.38,Hills Waste Solutions Limited ,111132,SN1 ,Neighbourhood & Planning,Lakeside Contract,Payments to Contractors - Waste - Other,Third Party Payments,REVENUE
Wiltshire,http://opendatacommunities.org/id/unitary-authority/wiltshire,05/09/2017,5107106751,58879.06,Hills Waste Solutions Limited ,111132,SN1 ,Neighbourhood & Planning,Hills Waste Recyclin,Payments to Contractors - Waste - Other,Third Party Payments,REVENUE
Wiltshire,http://opendatacommunities.org/id/unitary-authority/wiltshire,07/09/2017,5107106752,684549.64,Hills Waste Solutions Limited ,111132,SN1 ,Neighbourhood & Planning,Hills Contract,Payments to Contractors - Waste - Other,Third Party Payments,REVENUE
Wiltshire,http://opendatacommunities.org/id/unitary-authority/wiltshire,08/09/2017,5107106753,129676.07,Hills Waste Solutions Limited ,111132,SN1 ,Neighbourhood & Planning,Landfill Tax Waste D,Payments to Contractors - Waste - Landfill Tax,Third Party Payments,REVENUE
Wiltshire,http://opendatacommunities.org/id/unitary-authority/wiltshire,11/09/2017,5107106754,119456.52,Hills Waste Solutions Limited ,111132,SN1 ,Neighbourhood & Planning,Landfill Tax Waste D,Payments to Contractors - Waste - Landfill Tax,Third Party Payments,REVENUE
Wiltshire,http://opendatacommunities.org/id/unitary-authority/wiltshire,08/09/2017,5107106755,536932.29,Hills Waste Solutions Limited ,111132,SN1 ,Neighbourhood & Planning,MBT Contract,Payments to Contractors - Waste - Other,Third Party Payments,REVENUE
Wiltshire,http://opendatacommunities.org/id/unitary-authority/wiltshire,01/09/2017,5107106756,5051.10,Hills Waste Solutions Limited ,111132,SN1 ,Neighbourhood & Planning,Hazardous Waste,Payments to Contractors - Waste - Other,Third Party Payments,REVENUE
Wiltshire,http://opendatacommunities.org/id/unitary-authority/wiltshire,04/09/2017,5107106757,8201.15,Hills Waste Solutions Limited ,111132,SN1 ,Neighbourhood & Planning,MBT Contract,Payments to Contractors - Waste - Other,Third Party Payments,REVENUE
Wiltshire,http://opendatacommunities.org/id/unitary-authority/wiltshire,04/09/2017,5107106758,13230.00,Hills Waste Solutions Limited ,111132,SN1 ,Neighbourhood & Planning,Hills Waste Recyclin,Payments to Contractors - Waste - Other,Third Party Payments,REVENUE
Wiltshire,http://opendatacommunities.org/id/unitary-authority/wiltshire,04/09/2017,5107106759,18176.22,Hills Waste Solutions Limited ,111132,SN1 ,Neighbourhood & Planning,Hills Waste Recyclin,Payments to Contractors - Waste - Other,Third Party Payments,REVENUE
Wiltshire,http://opendatacommunities.org/id/unitary-authority/wiltshire,01/09/2017,5107106770,11187.16,Hills Waste Solutions Limited ,111132,SN1 ,Neighbourhood & Planning,Hills Waste Recyclin,Payments to Contractors - Waste - Other,Third Party Payments,REVENUE
Wiltshire,http://opendatacommunities.org/id/unitary-authority/wiltshire,11/09/2017,5107109214,957.07,Hills Waste Solutions Limited ,111132,SN1 ,Neighbourhood & Planning,Hills Waste Recyclin,Payments to Contractors - Waste - Other,Third Party Payments,REVENUE
Wiltshire,http://opendatacommunities.org/id/unitary-authority/wiltshire,12/09/2017,5107109331,72916.66,Hills Waste Solutions Limited ,111132,SN1 ,Neighbourhood & Planning,Hills Contract,Payments to Contractors - Waste - Other,Third Party Payments,REVENUE
Wiltshire,http://opendatacommunities.org/id/unitary-authority/wiltshire,21/09/2017,5107114820,8993.07,Hills Waste Solutions Limited ,111132,SN1 ,Neighbourhood & Planning,Hills Waste Recyclin,Payments to Contractors - Waste - Other,Third Party Payments,REVENUE
Wiltshire,http://opendatacommunities.org/id/unitary-authority/wiltshire,21/09/2017,5107115554,21674.43,Hills Waste Solutions Limited ,111132,SN1 ,Neighbourhood & Planning,MBT Contract,Payments to Contractors - Waste - Other,Third Party Payments,REVENUE
Wiltshire,http://opendatacommunities.org/id/unitary-authority/wiltshire,29/09/2017,5107118794,1843.32,Hills Waste Solutions Limited ,111132,SN1 ,Neighbourhood & Planning,Permitted Sites,Payments to Contractors - Waste - Other,Third Party Payments,REVENUE
Wiltshire,http://opendatacommunities.org/id/unitary-authority/wiltshire,29/09/2017,5107118795,5124.82,Hills Waste Solutions Limited ,111132,SN1 ,Neighbourhood & Planning,Permitted Sites,Payments to Contractors - Waste - Other,Third Party Payments,REVENUE
Wiltshire,http://opendatacommunities.org/id/unitary-authority/wiltshire,04/09/2017,1901994742,400.00,HMCTS ,125542,-,Community Services,COP APPLICATION FEES,Miscellaneous Costs,Supplies and Services,REVENUE
Wiltshire,http://opendatacommunities.org/id/unitary-authority/wiltshire,04/09/2017,1901994743,400.00,HMCTS ,125542,-,Community Services,COP APPLICATION FEES,Miscellaneous Costs,Supplies and Services,REVENUE
Wiltshire,http://opendatacommunities.org/id/unitary-authority/wiltshire,04/09/2017,1901994744,400.00,HMCTS ,125542,-,Community Services,COP APPLICATION FEES,Miscellaneous Costs,Supplies and Services,REVENUE
Wiltshire,http://opendatacommunities.org/id/unitary-authority/wiltshire,04/09/2017,1901994746,400.00,HMCTS ,125542,-,Community Services,COP APPLICATION FEES,Miscellaneous Costs,Supplies and Services,REVENUE
Wiltshire,http://opendatacommunities.org/id/unitary-authority/wiltshire,04/09/2017,1901994747,400.00,HMCTS ,125542,-,Community Services,COP APPLICATION FEES,Miscellaneous Costs,Supplies and Services,REVENUE
Wiltshire,http://opendatacommunities.org/id/unitary-authority/wiltshire,08/09/2017,1901996587,3890.00,Home Adaptations ,126701,SN14,Wiltshire Council,Wiltshire Council,Payments to Contractors - Other,Third Party Payments,CAPITAL
Wiltshire,http://opendatacommunities.org/id/unitary-authority/wiltshire,28/09/2017,1902008944,8860.00,Home Adaptations ,126701,SN14,Wiltshire Council,Wiltshire Council,Payments to Contractors - Other,Third Party Payments,CAPITAL
Wiltshire,http://opendatacommunities.org/id/unitary-authority/wiltshire,18/09/2017,5107112779,16991.41,Homes Caring for Autism Ltd ,111148,BS24,Children & Education,0-25 extnl disabty p,Other Social & Welfare Costs,Third Party Payments,REVENUE
Wiltshire,http://opendatacommunities.org/id/unitary-authority/wiltshire,29/09/2017,5107118629,272.90,Hop Back Brewery PLC ,138022,SP5 ,Neighbourhood & Planning,City Hall,Vending costs,Supplies and Services,REVENUE
Wiltshire,http://opendatacommunities.org/id/unitary-authority/wiltshire,28/09/2017,5107109353,900.00,Hopefields Limited ,116496,OX2 ,Children & Education,"Schools,Buildings&Pl",Consultants Fees,Supplies and Services,REVENUE
Wiltshire,http://opendatacommunities.org/id/unitary-authority/wiltshire,28/09/2017,5107109354,450.00,Hopefields Limited ,116496,OX2 ,Children & Education,"Schools,Buildings&Pl",Consultants Fees,Supplies and Services,REVENUE
Wiltshire,http://opendatacommunities.org/id/unitary-authority/wiltshire,28/09/2017,5107109355,1350.00,Hopefields Limited ,116496,OX2 ,Children & Education,"Schools,Buildings&Pl",Consultants Fees,Supplies and Services,REVENUE
Wiltshire,http://opendatacommunities.org/id/unitary-authority/wiltshire,04/09/2017,1901982346,395.00,Humberts ,116536,SP1 ,Neighbourhood & Planning,Sale of Council Hses,Surveyors Fees,Supplies and Services,REVENUE
Wiltshire,http://opendatacommunities.org/id/unitary-authority/wiltshire,06/09/2017,1901984739,395.00,Humberts ,116536,SP1 ,Neighbourhood & Planning,Sale of Council Hses,Surveyors Fees,Supplies and Services,REVENUE
Wiltshire,http://opendatacommunities.org/id/unitary-authority/wiltshire,13/09/2017,1901986385,395.00,Humberts ,116536,SP1 ,Neighbourhood & Planning,Sale of Council Hses,Surveyors Fees,Supplies and Services,REVENUE
Wiltshire,http://opendatacommunities.org/id/unitary-authority/wiltshire,18/09/2017,1901986886,395.00,Humberts ,116536,SP1 ,Neighbourhood & Planning,Sale of Council Hses,Surveyors Fees,Supplies and Services,REVENUE
Wiltshire,http://opendatacommunities.org/id/unitary-authority/wiltshire,15/09/2017,5107109341,995.00,Humberts Chartered Surveyors ,100896,SP1 ,Wiltshire Council,Wiltshire Council,Surveyors Fees,Supplies and Services,CAPITAL
Wiltshire,http://opendatacommunities.org/id/unitary-authority/wiltshire,19/09/2017,5107107289,332.98,Hunt's Foodservices Ltd ,140838,DT9 ,Children & Education,Braeside,Catering,Supplies and Services,REVENUE
Wiltshire,http://opendatacommunities.org/id/unitary-authority/wiltshire,04/09/2017,5107107442,4000.00,Hydrock Consultants ,129156,BS32,Wiltshire Council,Wiltshire Council,Consultants Fees,Supplies and Services,CAPITAL
Wiltshire,http://opendatacommunities.org/id/unitary-authority/wiltshire,04/09/2017,5107107443,1000.00,Hydrock Consultants ,129156,BS32,Wiltshire Council,Wiltshire Council,Consultants Fees,Supplies and Services,CAPITAL
Wiltshire,http://opendatacommunities.org/id/unitary-authority/wiltshire,05/09/2017,5107107447,920.00,Hydrock Consultants ,129156,BS32,Wiltshire Council,Wiltshire Council,Consultants Fees,Supplies and Services,CAPITAL
Wiltshire,http://opendatacommunities.org/id/unitary-authority/wiltshire,05/09/2017,5107107448,2340.00,Hydrock Consultants ,129156,BS32,Wiltshire Council,Wiltshire Council,Consultants Fees,Supplies and Services,CAPITAL
Wiltshire,http://opendatacommunities.org/id/unitary-authority/wiltshire,05/09/2017,5107107460,1840.00,Hydrock Consultants ,129156,BS32,Wiltshire Council,Wiltshire Council,Consultants Fees,Supplies and Services,CAPITAL
Wiltshire,http://opendatacommunities.org/id/unitary-authority/wiltshire,05/09/2017,5107107461,6500.00,Hydrock Consultants ,129156,BS32,Wiltshire Council,Wiltshire Council,Consultants Fees,Supplies and Services,CAPITAL
Wiltshire,http://opendatacommunities.org/id/unitary-authority/wiltshire,28/09/2017,5107113308,3350.00,Hydrock Consultants ,129156,BS32,Wiltshire Council,Wiltshire Council,Consultants Fees,Supplies and Services,CAPITAL
Wiltshire,http://opendatacommunities.org/id/unitary-authority/wiltshire,28/09/2017,5107116748,2340.00,Hydrock Consultants ,129156,BS32,Wiltshire Council,Wiltshire Council,Consultants Fees,Supplies and Services,CAPITAL
Wiltshire,http://opendatacommunities.org/id/unitary-authority/wiltshire,28/09/2017,5107116863,1125.00,Hydrock Consultants ,129156,BS32,Wiltshire Council,Wiltshire Council,Consultants Fees,Supplies and Services,CAPITAL
Wiltshire,http://opendatacommunities.org/id/unitary-authority/wiltshire,28/09/2017,5107118491,6675.00,Hydrock Consultants ,129156,BS32,Wiltshire Council,Wiltshire Council,Consultants Fees,Supplies and Services,CAPITAL
Wiltshire,http://opendatacommunities.org/id/unitary-authority/wiltshire,29/09/2017,5107118627,4000.00,Hydrock Consultants ,129156,BS32,Wiltshire Council,Wiltshire Council,Consultants Fees,Supplies and Services,CAPITAL
Wiltshire,http://opendatacommunities.org/id/unitary-authority/wiltshire,29/09/2017,5107118681,6495.00,Hydrock Consultants ,129156,BS32,Wiltshire Council,Wiltshire Council,Consultants Fees,Supplies and Services,CAPITAL
Wiltshire,http://opendatacommunities.org/id/unitary-authority/wiltshire,15/09/2017,5107109356,6757.73,Ian Williams Ltd ,100425,BS37,Wiltshire Council,Wiltshire Council,Premises Related Other Maintenance Costs,Premises Related,CAPITAL
Wiltshire,http://opendatacommunities.org/id/unitary-authority/wiltshire,15/09/2017,5107109357,650.06,Ian Williams Ltd ,100425,BS37,Wiltshire Council,Wiltshire Council,Premises Related Other Maintenance Costs,Premises Related,CAPITAL
Wiltshire,http://opendatacommunities.org/id/unitary-authority/wiltshire,15/09/2017,5107109361,46421.75,Ian Williams Ltd ,100425,BS37,Wiltshire Council,Wiltshire Council,Premises Related Other Maintenance Costs,Premises Related,CAPITAL
Wiltshire,http://opendatacommunities.org/id/unitary-authority/wiltshire,15/09/2017,5107109362,42981.18,Ian Williams Ltd ,100425,BS37,Wiltshire Council,Wiltshire Council,Premises Related Other Maintenance Costs,Premises Related,CAPITAL
Wiltshire,http://opendatacommunities.org/id/unitary-authority/wiltshire,15/09/2017,5107109363,74908.73,Ian Williams Ltd ,100425,BS37,Wiltshire Council,Wiltshire Council,Premises Related Other Maintenance Costs,Premises Related,CAPITAL
Wiltshire,http://opendatacommunities.org/id/unitary-authority/wiltshire,15/09/2017,5107109364,52658.48,Ian Williams Ltd ,100425,BS37,Wiltshire Council,Wiltshire Council,Premises Related Other Maintenance Costs,Premises Related,CAPITAL
Wiltshire,http://opendatacommunities.org/id/unitary-authority/wiltshire,15/09/2017,5107109365,119647.49,Ian Williams Ltd ,100425,BS37,Wiltshire Council,Wiltshire Council,Premises Related Other Maintenance Costs,Premises Related,CAPITAL
Wiltshire,http://opendatacommunities.org/id/unitary-authority/wiltshire,15/09/2017,5107109366,28225.53,Ian Williams Ltd ,100425,BS37,Wiltshire Council,Wiltshire Council,Premises Related Other Maintenance Costs,Premises Related,CAPITAL
Wiltshire,http://opendatacommunities.org/id/unitary-authority/wiltshire,15/09/2017,5107109367,45185.34,Ian Williams Ltd ,100425,BS37,Wiltshire Council,Wiltshire Council,Premises Related Other Maintenance Costs,Premises Related,CAPITAL
Wiltshire,http://opendatacommunities.org/id/unitary-authority/wiltshire,15/09/2017,5107109368,96002.74,Ian Williams Ltd ,100425,BS37,Wiltshire Council,Wiltshire Council,Premises Related Other Maintenance Costs,Premises Related,CAPITAL
Wiltshire,http://opendatacommunities.org/id/unitary-authority/wiltshire,21/09/2017,5107114920,9882.67,Ian Williams Ltd ,100425,BS37,Wiltshire Council,Wiltshire Council,Premises Related Other Maintenance Costs,Premises Related,CAPITAL
Wiltshire,http://opendatacommunities.org/id/unitary-authority/wiltshire,04/09/2017,5107107293,864.33,idverde ,129086,CV5 ,Resources,Melksham House,Premises Related Other Maintenance Costs,Premises Related,REVENUE
Wiltshire,http://opendatacommunities.org/id/unitary-authority/wiltshire,11/09/2017,5107108362,1881.70,idverde ,129086,CV5 ,Neighbourhood & Planning,Park Inspection & Ma,Highways Contracts - Cleansing and GM,Third Party Payments,REVENUE
Wiltshire,http://opendatacommunities.org/id/unitary-authority/wiltshire,11/09/2017,5107108363,2502.99,idverde ,129086,CV5 ,Neighbourhood & Planning,Amenity Street Clean,Highways Contracts - Other,Third Party Payments,REVENUE
Wiltshire,http://opendatacommunities.org/id/unitary-authority/wiltshire,11/09/2017,5107108364,2106.72,idverde ,129086,CV5 ,Neighbourhood & Planning,Amenity Street Clean,Highways Contracts - Other,Third Party Payments,REVENUE
Wiltshire,http://opendatacommunities.org/id/unitary-authority/wiltshire,11/09/2017,5107108366,254.63,idverde ,129086,CV5 ,Neighbourhood & Planning,Park Inspection & Ma,Highways Contracts - Cleansing and GM,Third Party Payments,REVENUE
Wiltshire,http://opendatacommunities.org/id/unitary-authority/wiltshire,12/09/2017,5107109360,330.92,idverde ,129086,CV5 ,Neighbourhood & Planning,Park Inspection & Ma,Highways Contracts - Cleansing and GM,Third Party Payments,REVENUE
Wiltshire,http://opendatacommunities.org/id/unitary-authority/wiltshire,12/09/2017,5107109360,4531.80,idverde ,129086,CV5 ,Neighbourhood & Planning,Public Conveniences,Highways Contracts - Cleansing and GM,Third Party Payments,REVENUE
Wiltshire,http://opendatacommunities.org/id/unitary-authority/wiltshire,12/09/2017,5107109360,397746.15,idverde ,129086,CV5 ,Neighbourhood & Planning,Amenity Street Clean,Highways Contracts - Cleansing and GM,Third Party Payments,REVENUE
Wiltshire,http://opendatacommunities.org/id/unitary-authority/wiltshire,14/09/2017,5107110633,3902.09,idverde ,129086,CV5 ,Neighbourhood & Planning,Bem Hth Specif Cost,Cleaning Contracts - Buildings,Premises Related,REVENUE
Wiltshire,http://opendatacommunities.org/id/unitary-authority/wiltshire,14/09/2017,5107110633,3902.09,idverde ,129086,CV5 ,Neighbourhood & Planning,Friary Specif Costs,Cleaning Contracts - Buildings,Premises Related,REVENUE
Wiltshire,http://opendatacommunities.org/id/unitary-authority/wiltshire,15/09/2017,5107110909,312.84,idverde ,129086,CV5 ,Neighbourhood & Planning,Env & Enforcement,Payments to Contractors - Waste - Other,Third Party Payments,REVENUE
Wiltshire,http://opendatacommunities.org/id/unitary-authority/wiltshire,15/09/2017,5107110951,977.63,idverde ,129086,CV5 ,Neighbourhood & Planning,Env & Enforcement,Payments to Contractors - Waste - Other,Third Party Payments,REVENUE
Wiltshire,http://opendatacommunities.org/id/unitary-authority/wiltshire,15/09/2017,5107110986,402.29,idverde ,129086,CV5 ,Neighbourhood & Planning,Env & Enforcement,Payments to Contractors - Waste - Other,Third Party Payments,REVENUE
Wiltshire,http://opendatacommunities.org/id/unitary-authority/wiltshire,01/09/2017,5107106803,780.70,Iken Business Limited ,136634,BS1 ,Resources,Legal Services,Consultants Fees,Supplies and Services,REVENUE
Wiltshire,http://opendatacommunities.org/id/unitary-authority/wiltshire,15/09/2017,5107110905,2003.71,Illy Computer Systems Ltd ,131548,N1 6,Community Services,DIP Coordinator,Substance Misuse - Payments to Contractors,Third Party Payments,REVENUE
Wiltshire,http://opendatacommunities.org/id/unitary-authority/wiltshire,15/09/2017,5107110906,999.04,Illy Computer Systems Ltd ,131548,N1 6,Community Services,DIP Coordinator,Substance Misuse - Payments to Contractors,Third Party Payments,REVENUE
Wiltshire,http://opendatacommunities.org/id/unitary-authority/wiltshire,05/09/2017,5107106555,281.87,Imperial Commercials Limited ,111185,BA11,Neighbourhood & Planning,Contract Winter Main,Vehicle Parts,Transport Related,REVENUE
Wiltshire,http://opendatacommunities.org/id/unitary-authority/wiltshire,05/09/2017,5107106597,301.43,Imperial Commercials Limited ,111185,BA11,Neighbourhood & Planning,Fleet,Vehicle Parts,Transport Related,REVENUE
Wiltshire,http://opendatacommunities.org/id/unitary-authority/wiltshire,21/09/2017,5107114798,360.00,Imperial Commercials Ltd ,116615,SN3 ,Neighbourhood & Planning,Fleet,Vehicle Parts,Transport Related,REVENUE
Wiltshire,http://opendatacommunities.org/id/unitary-authority/wiltshire,01/09/2017,5107106765,7333.73,Indeed Ireland Operations ,144157,2,Resources,HR-Recruitment & DBS,Job Advertising,Employee Related,REVENUE
Wiltshire,http://opendatacommunities.org/id/unitary-authority/wiltshire,28/09/2017,5107107960,2377.60,Indeed Ireland Operations ,144157,2,Resources,HR-Recruitment & DBS,Job Advertising,Employee Related,REVENUE
Wiltshire,http://opendatacommunities.org/id/unitary-authority/wiltshire,04/09/2017,1901984198,277.17,Initial Washroom Solutions ,111194,DY1 ,Resources,5 Rivers LC,Cleaning Contracts - Buildings,Premises Related,REVENUE
Wiltshire,http://opendatacommunities.org/id/unitary-authority/wiltshire,04/09/2017,1901984198,554.70,Initial Washroom Solutions ,111194,DY1 ,Resources,FM Leisure Centres,Cleaning Contracts - Buildings,Premises Related,REVENUE
Wiltshire,http://opendatacommunities.org/id/unitary-authority/wiltshire,04/09/2017,1901984198,669.70,Initial Washroom Solutions ,111194,DY1 ,Resources,County Hall Complex,Cleaning Contracts - Buildings,Premises Related,REVENUE
Wiltshire,http://opendatacommunities.org/id/unitary-authority/wiltshire,04/09/2017,1901984198,735.90,Initial Washroom Solutions ,111194,DY1 ,Resources,FM Libraries,Cleaning Contracts - Buildings,Premises Related,REVENUE
Wiltshire,http://opendatacommunities.org/id/unitary-authority/wiltshire,04/09/2017,1901984198,962.39,Initial Washroom Solutions ,111194,DY1 ,Resources,FM Highway Depots,Cleaning Contracts - Buildings,Premises Related,REVENUE
Wiltshire,http://opendatacommunities.org/id/unitary-authority/wiltshire,04/09/2017,1901984198,1371.06,Initial Washroom Solutions ,111194,DY1 ,Resources,Unoccupied Sites,Cleaning Contracts - Buildings,Premises Related,REVENUE
Wiltshire,http://opendatacommunities.org/id/unitary-authority/wiltshire,13/09/2017,1901997776,1440.00,Innov8sportz c.i.c. ,134743,SN8 ,Neighbourhood & Planning,Sports & Physical Ac,Other Sporting Activities,Supplies and Services,REVENUE
Wiltshire,http://opendatacommunities.org/id/unitary-authority/wiltshire,18/09/2017,5107112780,2000.58,Innovations  Wiltshire  Ltd ,111196,SN9 ,Children & Education,0-25 extnl disabty p,Other Social & Welfare Costs,Third Party Payments,REVENUE
Wiltshire,http://opendatacommunities.org/id/unitary-authority/wiltshire,28/09/2017,5107107941,8834.16,Insight Direct  UK  Ltd ,100231,UB8 ,Resources,Infrastructure,Hardware Maintenance,Supplies and Services,REVENUE
Wiltshire,http://opendatacommunities.org/id/unitary-authority/wiltshire,01/09/2017,5107107211,1552.64,Inspire Ltd ,101165,SP3 ,Children & Education,0-25 extnl disabty p,Other Social & Welfare Costs,Third Party Payments,REVENUE
Wiltshire,http://opendatacommunities.org/id/unitary-authority/wiltshire,05/09/2017,1901995464,1888.92,Integrated Transport Planning Limit ,133532,NG1 ,Neighbourhood & Planning,Concessionary Fares,Other Professional Fees,Supplies and Services,REVENUE
Wiltshire,http://opendatacommunities.org/id/unitary-authority/wiltshire,05/09/2017,1901995465,1888.92,Integrated Transport Planning Limit ,133532,NG1 ,Neighbourhood & Planning,Concessionary Fares,Other Professional Fees,Supplies and Services,REVENUE
Wiltshire,http://opendatacommunities.org/id/unitary-authority/wiltshire,28/09/2017,5107114803,7042.07,Iron Mountain Offsite Data Protection,116722,EH54,Neighbourhood & Planning,Partnerships & Gov,Premises Related Other Maintenance Costs,Premises Related,REVENUE
Wiltshire,http://opendatacommunities.org/id/unitary-authority/wiltshire,29/09/2017,5107110385,297.25,J L A Limited ,116829,HX6 ,Neighbourhood & Planning,SH The Orchard,Equipment Hire,Supplies and Services,REVENUE
Wiltshire,http://opendatacommunities.org/id/unitary-authority/wiltshire,29/09/2017,5107110385,408.98,J L A Limited ,116829,HX6 ,Neighbourhood & Planning,SH Nadder Close,Equipment Hire,Supplies and Services,REVENUE
Wiltshire,http://opendatacommunities.org/id/unitary-authority/wiltshire,14/09/2017,5107110592,297.25,J L A Limited ,116829,HX6 ,Neighbourhood & Planning,SH The Orchard,Equipment Hire,Supplies and Services,REVENUE
Wiltshire,http://opendatacommunities.org/id/unitary-authority/wiltshire,14/09/2017,5107110592,408.98,J L A Limited ,116829,HX6 ,Neighbourhood & Planning,SH Nadder Close,Equipment Hire,Supplies and Services,REVENUE
Wiltshire,http://opendatacommunities.org/id/unitary-authority/wiltshire,28/09/2017,5107118409,296.55,J P Todd Glass  and  Glazing Ltd ,100255,SP4 ,Neighbourhood & Planning,DLO,Equipment Purchase,Supplies and Services,REVENUE
Wiltshire,http://opendatacommunities.org/id/unitary-authority/wiltshire,05/09/2017,1901995451,3292.25,J V Pickford T/A Faresaver Buses ,100106,SN14,Neighbourhood & Planning,Public Transport,Transport Contracts,Third Party Payments,REVENUE
Wiltshire,http://opendatacommunities.org/id/unitary-authority/wiltshire,05/09/2017,1901995452,2346.63,J V Pickford T/A Faresaver Buses ,100106,SN14,Neighbourhood & Planning,Public Transport,Transport Contracts,Third Party Payments,REVENUE
Wiltshire,http://opendatacommunities.org/id/unitary-authority/wiltshire,05/09/2017,1901995453,2505.69,J V Pickford T/A Faresaver Buses ,100106,SN14,Neighbourhood & Planning,Mainstream Secondary,Transport Contracts,Third Party Payments,REVENUE
Wiltshire,http://opendatacommunities.org/id/unitary-authority/wiltshire,05/09/2017,1901995453,6890.13,J V Pickford T/A Faresaver Buses ,100106,SN14,Neighbourhood & Planning,Public Transport,Transport Contracts,Third Party Payments,REVENUE
Wiltshire,http://opendatacommunities.org/id/unitary-authority/wiltshire,05/09/2017,1901995457,6666.66,J V Pickford T/A Faresaver Buses ,100106,SN14,Neighbourhood & Planning,Mainstream Secondary,Transport Contracts,Third Party Payments,REVENUE
Wiltshire,http://opendatacommunities.org/id/unitary-authority/wiltshire,05/09/2017,1901995457,7777.77,J V Pickford T/A Faresaver Buses ,100106,SN14,Neighbourhood & Planning,Mainstream Primary,Transport Contracts,Third Party Payments,REVENUE
Wiltshire,http://opendatacommunities.org/id/unitary-authority/wiltshire,05/09/2017,1901995457,8047.65,J V Pickford T/A Faresaver Buses ,100106,SN14,Neighbourhood & Planning,Public Transport,Transport Contracts,Third Party Payments,REVENUE
Wiltshire,http://opendatacommunities.org/id/unitary-authority/wiltshire,05/09/2017,1901995466,627.00,J V Pickford T/A Faresaver Buses ,100106,SN14,Neighbourhood & Planning,Public Transport,Transport Contracts,Third Party Payments,REVENUE
Wiltshire,http://opendatacommunities.org/id/unitary-authority/wiltshire,05/09/2017,1901995466,1083.00,J V Pickford T/A Faresaver Buses ,100106,SN14,Neighbourhood & Planning,Mainstream Primary,Transport Contracts,Third Party Payments,REVENUE
Wiltshire,http://opendatacommunities.org/id/unitary-authority/wiltshire,05/09/2017,1901995466,1140.00,J V Pickford T/A Faresaver Buses ,100106,SN14,Neighbourhood & Planning,Mainstream Secondary,Transport Contracts,Third Party Payments,REVENUE
Wiltshire,http://opendatacommunities.org/id/unitary-authority/wiltshire,05/09/2017,1901995467,1329.46,J V Pickford T/A Faresaver Buses ,100106,SN14,Neighbourhood & Planning,Public Transport,Transport Contracts,Third Party Payments,REVENUE
Wiltshire,http://opendatacommunities.org/id/unitary-authority/wiltshire,05/09/2017,1901995468,1265.94,J V Pickford T/A Faresaver Buses ,100106,SN14,Neighbourhood & Planning,Mainstream Secondary,Transport Contracts,Third Party Payments,REVENUE
Wiltshire,http://opendatacommunities.org/id/unitary-authority/wiltshire,05/09/2017,1901995469,564.75,J V Pickford T/A Faresaver Buses ,100106,SN14,Neighbourhood & Planning,Public Transport,Transport Contracts,Third Party Payments,REVENUE
Wiltshire,http://opendatacommunities.org/id/unitary-authority/wiltshire,05/09/2017,1901995470,601.64,J V Pickford T/A Faresaver Buses ,100106,SN14,Neighbourhood & Planning,Public Transport,Transport Contracts,Third Party Payments,REVENUE
Wiltshire,http://opendatacommunities.org/id/unitary-authority/wiltshire,05/09/2017,1901995471,700.93,J V Pickford T/A Faresaver Buses ,100106,SN14,Neighbourhood & Planning,Mainstream 16+ FE,Transport Contract -  Bus Season Tickets,Third Party Payments,REVENUE
Wiltshire,http://opendatacommunities.org/id/unitary-authority/wiltshire,05/09/2017,1901995471,3017.07,J V Pickford T/A Faresaver Buses ,100106,SN14,Neighbourhood & Planning,Mainstream Secondary,Transport Contract -  Bus Season Tickets,Third Party Payments,REVENUE
Wiltshire,http://opendatacommunities.org/id/unitary-authority/wiltshire,05/09/2017,1901995472,1732.78,J V Pickford T/A Faresaver Buses ,100106,SN14,Neighbourhood & Planning,Mainstream Secondary,Transport Contracts,Third Party Payments,REVENUE
Wiltshire,http://opendatacommunities.org/id/unitary-authority/wiltshire,05/09/2017,1901995473,833.34,J V Pickford T/A Faresaver Buses ,100106,SN14,Neighbourhood & Planning,Public Transport,Transport Contracts,Third Party Payments,REVENUE
Wiltshire,http://opendatacommunities.org/id/unitary-authority/wiltshire,05/09/2017,1901995474,3230.00,J V Pickford T/A Faresaver Buses ,100106,SN14,Neighbourhood & Planning,Mainstream Secondary,Transport Contracts,Third Party Payments,REVENUE
Wiltshire,http://opendatacommunities.org/id/unitary-authority/wiltshire,05/09/2017,1901995475,600.00,J V Pickford T/A Faresaver Buses ,100106,SN14,Neighbourhood & Planning,Mainstream 16+ FE,Transport Contracts,Third Party Payments,REVENUE
Wiltshire,http://opendatacommunities.org/id/unitary-authority/wiltshire,05/09/2017,1901995475,3400.00,J V Pickford T/A Faresaver Buses ,100106,SN14,Neighbourhood & Planning,Public Transport,Transport Contracts,Third Party Payments,REVENUE
Wiltshire,http://opendatacommunities.org/id/unitary-authority/wiltshire,05/09/2017,1901995476,839.33,J V Pickford T/A Faresaver Buses ,100106,SN14,Neighbourhood & Planning,Public Transport,Transport Contracts,Third Party Payments,REVENUE
Wiltshire,http://opendatacommunities.org/id/unitary-authority/wiltshire,05/09/2017,1901995477,1666.67,J V Pickford T/A Faresaver Buses ,100106,SN14,Neighbourhood & Planning,Public Transport,Transport Contracts,Third Party Payments,REVENUE
Wiltshire,http://opendatacommunities.org/id/unitary-authority/wiltshire,05/09/2017,1901995478,5519.34,J V Pickford T/A Faresaver Buses ,100106,SN14,Neighbourhood & Planning,Public Transport,Transport Contracts,Third Party Payments,REVENUE
Wiltshire,http://opendatacommunities.org/id/unitary-authority/wiltshire,05/09/2017,1901995480,384.57,J V Pickford T/A Faresaver Buses ,100106,SN14,Neighbourhood & Planning,Public Transport,Transport Contracts,Third Party Payments,REVENUE
Wiltshire,http://opendatacommunities.org/id/unitary-authority/wiltshire,07/09/2017,1901996404,478.56,J V Pickford T/A Faresaver Buses ,100106,SN14,Neighbourhood & Planning,Public Transport,Transport Contracts,Third Party Payments,REVENUE
Wiltshire,http://opendatacommunities.org/id/unitary-authority/wiltshire,07/09/2017,1901996405,7858.00,J V Pickford T/A Faresaver Buses ,100106,SN14,Neighbourhood & Planning,Public Transport,Transport Contracts,Third Party Payments,REVENUE
Wiltshire,http://opendatacommunities.org/id/unitary-authority/wiltshire,19/09/2017,1902000373,61000.00,J V Pickford T/A Faresaver Buses ,100106,SN14,Neighbourhood & Planning,Concessionary Fares,Compensation for Concessionary fares,Third Party Payments,REVENUE
Wiltshire,http://opendatacommunities.org/id/unitary-authority/wiltshire,19/09/2017,5107110978,5180.00,Jamstick Ltd ,145462,SP8 ,Resources,Staffing (Applctns),Consultants Fees,Supplies and Services,REVENUE
Wiltshire,http://opendatacommunities.org/id/unitary-authority/wiltshire,20/09/2017,5107114131,3330.00,Jamstick Ltd ,145462,SP8 ,Resources,Staffing (Applctns),Consultants Fees,Supplies and Services,REVENUE
Wiltshire,http://opendatacommunities.org/id/unitary-authority/wiltshire,20/09/2017,5107110921,470.00,Jewsons ,123933,SP1 ,Neighbourhood & Planning,DLO,Equipment Purchase,Supplies and Services,REVENUE
Wiltshire,http://opendatacommunities.org/id/unitary-authority/wiltshire,28/09/2017,5107118493,2850.00,JTS Associates ,138088,BA14,Wiltshire Council,Wiltshire Council,Consultants Fees,Supplies and Services,CAPITAL
Wiltshire,http://opendatacommunities.org/id/unitary-authority/wiltshire,14/09/2017,1901998206,260.00,Jubilee Computing Services Ltd ,117063,DT9 ,Neighbourhood & Planning,Cranbourn Chase AONB,ICT - Support arrangements,Supplies and Services,REVENUE
Wiltshire,http://opendatacommunities.org/id/unitary-authority/wiltshire,14/09/2017,1901998208,520.00,Jubilee Computing Services Ltd ,117063,DT9 ,Neighbourhood & Planning,Cranbourn Chase AONB,ICT - Support arrangements,Supplies and Services,REVENUE
Wiltshire,http://opendatacommunities.org/id/unitary-authority/wiltshire,28/09/2017,5107108397,260.00,Jubilee Computing Services Ltd ,117063,DT9 ,Neighbourhood & Planning,N Wessex Downs AONB,Consultants Fees,Supplies and Services,REVENUE
Wiltshire,http://opendatacommunities.org/id/unitary-authority/wiltshire,12/09/2017,5107108399,390.00,Jubilee Computing Services Ltd ,117063,DT9 ,Neighbourhood & Planning,N Wessex Downs AONB,Consultants Fees,Supplies and Services,REVENUE
Wiltshire,http://opendatacommunities.org/id/unitary-authority/wiltshire,26/09/2017,1902002149,5510.00,K C Brown Builders Ltd - DFG Only ,117095,BA14,Wiltshire Council,Wiltshire Council,Community Safety - Payments to Contractors,Third Party Payments,CAPITAL
Wiltshire,http://opendatacommunities.org/id/unitary-authority/wiltshire,21/09/2017,5107114832,704.00,K9 Security Services ,117132,SN15,Neighbourhood & Planning,Off Street Parking,Preventative Property Maintenance,Premises Related,REVENUE
Wiltshire,http://opendatacommunities.org/id/unitary-authority/wiltshire,19/09/2017,5107113320,1800.00,Kandu Arts For Sustainable Developm ,117140,SN15,Children & Education,Edctn Serv to CLA,Educational Fees,Supplies and Services,REVENUE
Wiltshire,http://opendatacommunities.org/id/unitary-authority/wiltshire,28/09/2017,1902000787,736.48,Kavanaghs ,111314,SN12,Resources,Investment Estate,Consultants Fees,Supplies and Services,REVENUE
Wiltshire,http://opendatacommunities.org/id/unitary-authority/wiltshire,14/09/2017,5107110919,1800.00,KBG Chambers - Mr Rowden Crozier ,145816,PL4 ,Children & Education,HQ Social Care,Legal Fees,Supplies and Services,REVENUE
Wiltshire,http://opendatacommunities.org/id/unitary-authority/wiltshire,05/09/2017,5107107466,4200.00,Keeping & Co. Ltd. ,145559,BH8 ,Neighbourhood & Planning,Growth Hub - Round 3,Marketing and Promotions,Supplies and Services,REVENUE
Wiltshire,http://opendatacommunities.org/id/unitary-authority/wiltshire,06/09/2017,5107107780,3150.00,Keeping & Co. Ltd. ,145559,BH8 ,Neighbourhood & Planning,Growth Hub - Round 3,Marketing and Promotions,Supplies and Services,REVENUE
Wiltshire,http://opendatacommunities.org/id/unitary-authority/wiltshire,11/09/2017,5107108321,2100.00,Keeping & Co. Ltd. ,145559,BH8 ,Neighbourhood & Planning,Growth Hub - Round 3,Marketing and Promotions,Supplies and Services,REVENUE
Wiltshire,http://opendatacommunities.org/id/unitary-authority/wiltshire,18/09/2017,5107103328,416.65,Keltic Clothing Ltd ,111319,WS2 ,Neighbourhood & Planning,Car Park Enforcement,Clothing and Uniform Purchase,Supplies and Services,REVENUE
Wiltshire,http://opendatacommunities.org/id/unitary-authority/wiltshire,28/09/2017,5107107933,626.05,Keltic Clothing Ltd ,111319,WS2 ,Neighbourhood & Planning,Car Park Enforcement,Clothing and Uniform Purchase,Supplies and Services,REVENUE
Wiltshire,http://opendatacommunities.org/id/unitary-authority/wiltshire,05/09/2017,5107107449,5367.90,Kendall Kingscott ,111320,BS34,Wiltshire Council,Wiltshire Council,Consultants Fees,Supplies and Services,CAPITAL
Wiltshire,http://opendatacommunities.org/id/unitary-authority/wiltshire,05/09/2017,5107107484,5698.50,Kendall Kingscott ,111320,BS34,Wiltshire Council,Wiltshire Council,Consultants Fees,Supplies and Services,CAPITAL
Wiltshire,http://opendatacommunities.org/id/unitary-authority/wiltshire,06/09/2017,5107107627,19379.10,Kendall Kingscott ,111320,BS34,Wiltshire Council,Wiltshire Council,Consultants Fees,Supplies and Services,CAPITAL
Wiltshire,http://opendatacommunities.org/id/unitary-authority/wiltshire,06/09/2017,5107107628,6838.20,Kendall Kingscott ,111320,BS34,Wiltshire Council,Wiltshire Council,Consultants Fees,Supplies and Services,CAPITAL
